Workbook

Sheet CAMP PILOTO EVOL
A1: PARA DESTACAR UM PILOTO MARQUE/DESMARQUE COM UM "X" AO LADO DO NOME E CLIQUE NO BOTÃO. => | D1: OK | F1: OK | H1: OK | J1: OK | L1: OK | N1: OK | P1: OK | R1: OK | T1: OK | V1: OK | X1: OK | Z1: OK | AB1: DIF. LIDER | AC1: DIF. PRÓXIMO | AD1: DIF. 5º
D2: 1ª etapa | F2: 2ª etapa | H2: 3ª etapa | J2: 4ª etapa | L2: 5ª etapa | N2: 6ª etapa | P2: 7ª etapa | R2: 8ª etapa | T2: 9ª etapa | V2: 10ª etapa | X2: 11ª etapa | Z2: 12ª etapa
B4: Nome do (a) Piloto (a) | D4: PILOTO | E4: PONTOS | F4: PILOTO | G4: PONTOS | H4: PILOTO | I4: PONTOS | J4: PILOTO | K4: PONTOS | L4: PILOTO | M4: PONTOS | N4: PILOTO | O4: PONTOS | P4: PILOTO | Q4: PONTOS | R4: PILOTO | S4: PONTOS | T4: PILOTO | U4: PONTOS | V4: PILOTO | W4: PONTOS | X4: PILOTO | Y4: PONTOS | Z4: PILOTO | AA4: PONTOS
B5: Adriano Morato | C5: 1 | D5: Marconi Teixeira | E5: 60 | F5: Marconi Teixeira | G5: 112 | H5: Marconi Teixeira | I5: 115 | J5: Marconi Teixeira | K5: 122 | L5: Marconi Teixeira | M5: 177 | N5: Marconi Teixeira | O5: 237 | P5: Marconi Teixeira | Q5: 289 | R5: Marconi Teixeira | S5: 333 | T5: Marconi Teixeira | U5: 375 | V5: Fernando Medeiros | W5: 388 | X5: Fernando Medeiros | Y5: 443 | Z5: Marcelo Pereira | AA5: 495 | AB5: - | AC5: - | AD5: -
B6: Alexandre Melillo | C6: 2 | D6: Marcelo Pereira | E6: 57 | F6: Marcelo Campos | G6: 108 | H6: Marcelo Campos | I6: 108 | J6: Marcelo Campos | K6: 108 | L6: Marcelo Pereira | M6: 155 | N6: Marcelo Pereira | O6: 207 | P6: Marcelo Pereira | Q6: 257 | R6: Marcelo Pereira | S6: 305 | T6: Wesley Bambirra | U6: 350 | V6: Marcelo Pereira | W6: 385 | X6: Marcelo Pereira | Y6: 433 | Z6: Fernando Medeiros | AA6: 483 | AB6: =$AA5-$AA6 -> 12 | AC6: =$AA5-$AA6 -> 12 | AD6: -
B7: Antônio Mourão | C7: 3 | D7: Cláudio Dumont | E7: 52 | F7: Marcelo Pereira | G7: 105 | H7: Marcelo Pereira | I7: 107 | J7: Marcelo Pereira | K7: 107 | L7: Wesley Bambirra | M7: 152 | N7: Wesley Bambirra | O7: 196 | P7: Fernando Medeiros | Q7: 242 | R7: Fernando Medeiros | S7: 294 | T7: Fernando Medeiros | U7: 346 | V7: Marconi Teixeira | W7: 375 | X7: Marconi Teixeira | Y7: 421 | Z7: Wesley Bambirra | AA7: 472 | AB7: =$AA$5-AA7 -> 23 | AC7: =$AA6-$AA7 -> 11 | AD7: -
B8: Cláudio Dumont | C8: 4 | D8: Wesley Bambirra | E8: 50 | F8: Wesley Bambirra | G8: 94 | H8: Wesley Bambirra | I8: 94 | J8: Wesley Bambirra | K8: 102 | L8: Fernando Medeiros | M8: 150 | N8: Fernando Medeiros | O8: 192 | P8: Wesley Bambirra | Q8: 236 | R8: Wesley Bambirra | S8: 288 | T8: Marcelo Pereira | U8: 337 | V8: Wesley Bambirra | W8: 368 | X8: Wesley Bambirra | Y8: 420 | Z8: Marcelo Campos | AA8: 443 | AB8: =$AA$5-AA8 -> 52 | AC8: =$AA7-$AA8 -> 29 | AD8: -
B9: Claudio Junqueira | C9: 5 | D9: Marcelo Campos | E9: 46 | F9: Marcus Silva | G9: 88 | H9: Marcus Silva | I9: 88 | J9: Fernando Medeiros | K9: 93 | L9: Cláudio Dumont | M9: 132 | N9: Cláudio Dumont | O9: 170 | P9: Marcelo Campos | Q9: 223 | R9: Marcelo Campos | S9: 267 | T9: Marcelo Campos | U9: 311 | V9: Marcelo Campos | W9: 353 | X9: Marcelo Campos | Y9: 393 | Z9: Marconi Teixeira | AA9: 421 | AB9: =$AA$5-AA9 -> 74 | AC9: =$AA8-$AA9 -> 22 | AD9: -
B10: Daniel Nahum | C10: 6 | D10: Antônio Mourão | E10: 44 | F10: Pedro Fialho | G10: 79 | H10: Daniel Nahum | I10: 82 | J10: Marcus Silva | K10: 88 | L10: Daniel Nahum | M10: 124 | N10: Marcelo Campos | O10: 168 | P10: Pedro Fialho | Q10: 195 | R10: Cláudio Dumont | S10: 237 | T10: Pedro Fialho | U10: 261 | V10: Pedro Fialho | W10: 311 | X10: Roberto Torres | Y10: 344 | Z10: Leonardo Oliveira | AA10: 379 | AB10: =$AA$5-AA10 -> 116 | AC10: =$AA9-$AA10 -> 42 | AD10: =$AA$9-$AA10 -> 42
B11: Daniel Paranhos | C11: 7 | D11: Marcus Silva | E11: 42 | F11: Thiara Silveira | G11: 66 | H11: Marcelo Sant'anna | I11: 78 | J11: Eduardo Henrique | K11: 82 | L11: Marcelo Campos | M11: 122 | N11: Roberto Torres | O11: 162 | P11: Cláudio Dumont | Q11: 182 | R11: Pedro Fialho | S11: 231 | T11: Marcelo Sant'anna | U11: 256 | V11: Roberto Torres | W11: 300 | X11: Pedro Fialho | Y11: 343 | Z11: Pedro Fialho | AA11: 377 | AB11: =$AA$5-AA11 -> 118 | AC11: =$AA10-$AA11 -> 2 | AD11: =$AA$9-$AA11 -> 44
B12: Diego Silva | C12: 8 | D12: Marcelo Sant'anna | E12: 40 | F12: Cláudio Dumont | G12: 64 | H12: Alexandre Melillo | I12: 76 | J12: Daniel Nahum | K12: 82 | L12: Marcelo Sant'anna | M12: 122 | N12: Pedro Fialho | O12: 159 | P12: Rodrigo Mercadante | Q12: 182 | R12: Roberto Torres | S12: 224 | T12: Rodrigo Mercadante | U12: 256 | V12: Marcelo Sant'anna | W12: 292 | X12: Marcelo Sant'anna | Y12: 328 | Z12: Roberto Torres | AA12: 368 | AB12: =$AA$5-AA12 -> 127 | AC12: =$AA11-$AA12 -> 9 | AD12: =$AA$9-$AA12 -> 53
B13: Eduardo Henrique | C13: 9 | D13: Thiara Silveira | E13: 38 | F13: Raphael Reis | G13: 64 | H13: Roberto Torres | I13: 76 | J13: Raphael Reis | K13: 82 | L13: Pedro Fialho | M13: 115 | N13: Rodrigo Mercadante | O13: 154 | P13: Roberto Torres | Q13: 178 | R13: Eduardo Henrique | S13: 210 | T13: Leonardo Oliveira | U13: 242 | V13: Guilherme Alves | W13: 288 | X13: Eduardo Henrique | Y13: 324 | Z13: Leonardo Bastos | AA13: 362 | AB13: =$AA$5-AA13 -> 133 | AC13: =$AA12-$AA13 -> 6 | AD13: =$AA$9-$AA13 -> 59
B14: Fernando Lobo | C14: 10 | D14: Alexandre Melillo | E14: 36 | F14: Fernando Medeiros | G14: 61 | H14: Rodrigo Mercadante | I14: 74 | J14: Marcelo Sant'anna | K14: 78 | L14: Rodrigo Mercadante | M14: 114 | N14: Marcelo Sant'anna | O14: 152 | P14: Marcelo Sant'anna | Q14: 178 | R14: Rodrigo Mercadante | S14: 210 | T14: Roberto Torres | U14: 240 | V14: Rodrigo Mercadante | W14: 284 | X14: Leonardo Oliveira | Y14: 324 | Z14: Marcelo Sant'anna | AA14: 358 | AB14: =$AA$5-AA14 -> 137 | AC14: =$AA13-$AA14 -> 4 | AD14: =$AA$9-$AA14 -> 63
A15: X | B15: Fernando Medeiros | C15: 11 | D15: Daniel Nahum | E15: 34 | F15: Jarbas Reis | G15: 60 | H15: Cláudio Dumont | I15: 72 | J15: Roberto Torres | K15: 76 | L15: Roberto Torres | M15: 112 | N15: Daniel Nahum | O15: 146 | P15: Eduardo Henrique | Q15: 176 | R15: Guilherme Alves | S15: 204 | T15: Guilherme Alves | U15: 238 | V15: Eduardo Henrique | W15: 282 | X15: Leonardo Bastos | Y15: 314 | Z15: Rodrigo Mercadante | AA15: 356 | AB15: =$AA$5-AA15 -> 139 | AC15: =$AA14-$AA15 -> 2 | AD15: =$AA$9-$AA15 -> 65
B16: Fred Mello | C16: 12 | D16: Rodrigo Mercadante | E16: 32 | F16: Claudio Junqueira | G16: 58 | H16: Jarbas Reis | I16: 70 | J16: Rodrigo Mercadante | K16: 74 | L16: Eduardo Henrique | M16: 108 | N16: Eduardo Henrique | O16: 142 | P16: Guilherme Alves | Q16: 174 | R16: Marcelo Sant'anna | S16: 201 | T16: Cláudio Dumont | U16: 237 | V16: Cláudio Dumont | W16: 269 | X16: Guilherme Alves | Y16: 312 | Z16: Eduardo Henrique | AA16: 350 | AB16: =$AA$5-AA16 -> 145 | AC16: =$AA15-$AA16 -> 6 | AD16: =$AA$9-$AA16 -> 71
B17: Guilherme Alves | C17: 13 | D17: Ivan Renault | E17: 30 | F17: Alexandre Melillo | G17: 56 | H17: Pedro Fialho | I17: 69 | J17: Fernando Lobo | K17: 74 | L17: Raphael Reis | M17: 104 | N17: Guilherme Alves | O17: 132 | P17: Daniel Nahum | Q17: 166 | R17: Leonardo Oliveira | S17: 192 | T17: Eduardo Henrique | U17: 230 | V17: Leonardo Bastos | W17: 266 | X17: Rodrigo Mercadante | Y17: 312 | Z17: Guilherme Alves | AA17: 350 | AB17: =$AA$5-AA17 -> 145 | AC17: =$AA16-$AA17 -> 0 | AD17: =$AA$9-$AA17 -> 71
B18: Heimar Mata | C18: 14 | D18: Claudio Junqueira | E18: 28 | F18: Antônio Mourão | G18: 55 | H18: Thiara Silveira | I18: 66 | J18: Cláudio Dumont | K18: 72 | L18: Alexandre Melillo | M18: 98 | N18: Rafael Alves | O18: 132 | P18: Alexandre Melillo | Q18: 158 | R18: Daniel Nahum | S18: 186 | T18: Rafael Alves | U18: 224 | V18: Leonardo Oliveira | W18: 264 | X18: Daniel Nahum | Y18: 292 | Z18: Daniel Nahum | AA18: 338 | AB18: =$AA$5-AA18 -> 157 | AC18: =$AA17-$AA18 -> 12 | AD18: =$AA$9-$AA18 -> 83
B19: Ivan Renault | C19: 15 | D19: Jarbas Reis | E19: 26 | F19: Fernando Lobo | G19: 53 | H19: Raphael Reis | I19: 64 | J19: Pedro Fialho | K19: 69 | L19: Wesley Canuto | M19: 92 | N19: Alexandre Melillo | O19: 126 | P19: Diego Silva | Q19: 154 | R19: Oldack Sérgio | S19: 182 | T19: Diego Silva | U19: 216 | V19: Diego Silva | W19: 262 | X19: Diego Silva | Y19: 288 | Z19: Diego Silva | AA19: 324 | AB19: =$AA$5-AA19 -> 171 | AC19: =$AA18-$AA19 -> 14 | AD19: =$AA$9-$AA19 -> 97
B20: Jarbas Reis | C20: 16 | D20: Pedro Fialho | E20: 24 | F20: Wesley Canuto | G20: 52 | H20: Fernando Medeiros | I20: 64 | J20: Leonardo Bastos | K20: 68 | L20: Fernando Lobo | M20: 91 | N20: Raphael Reis | O20: 125 | P20: Rafael Alves | Q20: 154 | R20: Rafael Alves | S20: 182 | T20: Daniel Nahum | U20: 214 | V20: Alexandre Melillo | W20: 252 | X20: Jarbas Reis | Y20: 278 | Z20: Jarbas Reis | AA20: 293 | AB20: =$AA$5-AA20 -> 202 | AC20: =$AA19-$AA20 -> 31 | AD20: =$AA$9-$AA20 -> 128
B21: Leandro Malias | C21: 17 | D21: Fernando Medeiros | E21: 23 | F21: Daniel Nahum | G21: 52 | H21: Wesley Canuto | I21: 60 | J21: Thiara Silveira | K21: 66 | L21: Marcelo Surerus | M21: 91 | N21: Marcelo Surerus | O21: 123 | P21: Leonardo Bastos | Q21: 147 | R21: Alexandre Melillo | S21: 178 | T21: Jarbas Reis | U21: 214 | V21: Jarbas Reis | W21: 252 | X21: Rafael Alves | Y21: 274 | Z21: Rafael Alves | AA21: 292 | AB21: =$AA$5-AA21 -> 203 | AC21: =$AA20-$AA21 -> 1 | AD21: =$AA$9-$AA21 -> 129
B22: Leonardo Bastos | C22: 18 | D22: Raphael Reis | E22: 22 | F22: Marcelo Sant'anna | G22: 49 | H22: Roberto Veloso | I22: 58 | J22: Alexandre Melillo | K22: 62 | L22: Marcus Silva | M22: 88 | N22: Oldack Sérgio | O22: 122 | P22: Wesley Canuto | Q22: 144 | R22: Diego Silva | S22: 176 | T22: Leonardo Bastos | U22: 211 | V22: Rafael Alves | W22: 244 | X22: Alexandre Melillo | Y22: 272 | Z22: Claudio Junqueira | AA22: 282 | AB22: =$AA$5-AA22 -> 213 | AC22: =$AA21-$AA22 -> 10 | AD22: =$AA$9-$AA22 -> 139
B23: Lucas Mourão | C23: 19 | D23: Marcelo Horta | E23: 21 | F23: Rafael Alves | G23: 44 | H23: Claudio Junqueira | I23: 58 | J23: Wesley Canuto | K23: 60 | L23: Rafael Alves | M23: 88 | N23: Wesley Canuto | O23: 120 | P23: Raphael Reis | Q23: 143 | R23: Leonardo Bastos | S23: 173 | T23: Alexandre Melillo | U23: 208 | V23: Daniel Nahum | W23: 240 | X23: Cláudio Dumont | Y23: 269 | Z23: Alexandre Melillo | AA23: 272 | AB23: =$AA$5-AA23 -> 223 | AC23: =$AA22-$AA23 -> 10 | AD23: =$AA$9-$AA23 -> 149
B24: Luis Almeida | C24: 20 | D24: Oldack Sérgio | E24: 20 | F24: Ivan Renault | G24: 43 | H24: Antônio Mourão | I24: 55 | J24: Roberto Veloso | K24: 58 | L24: Guilherme Alves | M24: 84 | N24: Diego Silva | O24: 108 | P24: Oldack Sérgio | Q24: 142 | R24: Wesley Canuto | S24: 168 | T24: Oldack Sérgio | U24: 201 | V24: Oldack Sérgio | W24: 219 | X24: Claudio Junqueira | Y24: 240 | Z24: Cláudio Dumont | AA24: 269 | AB24: =$AA$5-AA24 -> 226 | AC24: =$AA23-$AA24 -> 3 | AD24: =$AA$9-$AA24 -> 152
A25: X | B25: Marcelo Campos | C25: 21 | D25: Leandro Malias | E25: 19 | F25: Oldack Sérgio | G25: 43 | H25: Fernando Lobo | I25: 53 | J25: Rafael Alves | K25: 58 | L25: Daniel Paranhos | M25: 82 | N25: Daniel Paranhos | O25: 103 | P25: Marcelo Surerus | Q25: 135 | R25: Marcelo Surerus | S25: 167 | T25: Marcelo Surerus | U25: 191 | V25: Wesley Canuto | W25: 214 | X25: Oldack Sérgio | Y25: 219 | Z25: Oldack Sérgio | AA25: 251 | AB25: =$AA$5-AA25 -> 244 | AC25: =$AA24-$AA25 -> 18 | AD25: =$AA$9-$AA25 -> 170
B26: Marcelo Horta | C26: 22 | D26: Rafael Alves | E26: 18 | F26: Rodrigo Mercadante | G26: 39 | H26: Oldack Sérgio | I26: 53 | J26: Claudio Junqueira | K26: 58 | L26: Leonardo Bastos | M26: 77 | N26: Fernando Lobo | O26: 98 | P26: Leonardo Oliveira | Q26: 132 | R26: Jarbas Reis | S26: 166 | T26: Wesley Canuto | U26: 184 | V26: Claudio Junqueira | W26: 202 | X26: Raphael Reis | Y26: 216 | Z26: Wesley Canuto | AA26: 237 | AB26: =$AA$5-AA26 -> 258 | AC26: =$AA25-$AA26 -> 14 | AD26: =$AA$9-$AA26 -> 184
A27: X | B27: Marcelo Pereira | C27: 23 | D27: Diego Silva | E27: 17 | F27: Diego Silva | G27: 38 | H27: Eduardo Henrique | I27: 51 | J27: Marcelo Surerus | K27: 57 | L27: Oldack Sérgio | M27: 76 | N27: Leonardo Bastos | O27: 95 | P27: Jarbas Reis | Q27: 128 | R27: Raphael Reis | S27: 159 | T27: Daniel Paranhos | U27: 166 | V27: Marcelo Surerus | W27: 191 | X27: Wesley Canuto | Y27: 214 | Z27: Raphael Reis | AA27: 216 | AB27: =$AA$5-AA27 -> 279 | AC27: =$AA26-$AA27 -> 21 | AD27: =$AA$9-$AA27 -> 205
B28: Marcelo Sant'anna | C28: 24 | D28: Wesley Canuto | E28: 16 | F28: Leonardo Bastos | G28: 37 | H28: Renato Cardoso | I28: 47 | J28: Antônio Mourão | K28: 55 | L28: Renato Cardoso | M28: 71 | N28: Claudio Junqueira | O28: 90 | P28: Daniel Paranhos | Q28: 127 | R28: Daniel Paranhos | S28: 150 | T28: Claudio Junqueira | U28: 162 | V28: Raphael Reis | W28: 182 | X28: Marcelo Surerus | Y28: 197 | Z28: Marcelo Surerus | AA28: 197 | AB28: =$AA$5-AA28 -> 298 | AC28: =$AA27-$AA28 -> 19 | AD28: =$AA$9-$AA28 -> 224
B29: Marcelo Surerus | C29: 25 | D29: Leonardo Bastos | E29: 15 | F29: Leandro Malias | G29: 36 | H29: Luis Almeida | I29: 47 | J29: Oldack Sérgio | K29: 53 | L29: Diego Silva | M29: 70 | N29: Jarbas Reis | O29: 90 | P29: Claudio Junqueira | Q29: 126 | R29: Fernando Lobo | S29: 127 | T29: Raphael Reis | U29: 159 | V29: Daniel Paranhos | W29: 180 | X29: Fernando Lobo | Y29: 188 | Z29: Fernando Lobo | AA29: 188 | AB29: =$AA$5-AA29 -> 307 | AC29: =$AA28-$AA29 -> 9 | AD29: =$AA$9-$AA29 -> 233
A30: X | B30: Marconi Teixeira | C30: 26 | D30: Daniel Paranhos | E30: 14 | F30: Eduardo Henrique | G30: 32 | H30: Rafael Alves | I30: 44 | J30: Luis Almeida | K30: 48 | L30: Luis Almeida | M30: 68 | N30: Marcus Silva | O30: 88 | P30: Fernando Lobo | Q30: 111 | R30: Luis Almeida | S30: 127 | T30: Fernando Lobo | U30: 153 | V30: Fernando Lobo | W30: 177 | X30: Daniel Paranhos | Y30: 180 | Z30: Daniel Paranhos | AA30: 180 | AB30: =$AA$5-AA30 -> 315 | AC30: =$AA29-$AA30 -> 8 | AD30: =$AA$9-$AA30 -> 241
B31: Marcus Silva | C31: 27 | D31: Fernando Lobo | E31: 13 | F31: Daniel Paranhos | G31: 30 | H31: Ivan Renault | I31: 43 | J31: Diego Silva | K31: 48 | L31: Claudio Junqueira | M31: 66 | N31: Luis Almeida | O31: 87 | P31: Luis Almeida | Q31: 110 | R31: Claudio Junqueira | S31: 126 | T31: Luis Almeida | U31: 148 | V31: Luis Almeida | W31: 162 | X31: Luis Almeida | Y31: 170 | Z31: Luis Almeida | AA31: 170 | AB31: =$AA$5-AA31 -> 325 | AC31: =$AA30-$AA31 -> 10 | AD31: =$AA$9-$AA31 -> 251
B32: Oldack Sérgio | C32: 28 | D32: Will Conrad | E32: 12 | F32: Luis Almeida | G32: 27 | H32: Diego Silva | I32: 43 | J32: Jarbas Reis | K32: 47 | L32: Thiara Silveira | M32: 66 | N32: Leonardo Oliveira | O32: 72 | P32: Renato Cardoso | Q32: 92 | R32: Renato Cardoso | S32: 110 | T32: Renato Cardoso | U32: 127 | V32: Renato Cardoso | W32: 127 | X32: Renato Cardoso | Y32: 127 | Z32: Renato Cardoso | AA32: 155 | AB32: =$AA$5-AA32 -> 340 | AC32: =$AA31-$AA32 -> 15 | AD32: =$AA$9-$AA32 -> 266
B33: Pedro Fialho | C33: 29 | D33: Junior Torres | E33: 11 | F33: Roberto Torres | G33: 24 | H33: Daniel Paranhos | I33: 39 | J33: Renato Cardoso | K33: 47 | L33: Roberto Veloso | M33: 58 | N33: Renato Cardoso | O33: 71 | P33: Marcus Silva | Q33: 88 | R33: Marcus Silva | S33: 88 | T33: Marcus Silva | U33: 88 | V33: Marcus Silva | W33: 88 | X33: Marcus Silva | Y33: 88 | Z33: Marcus Silva | AA33: 88 | AB33: =$AA$5-AA33 -> 407 | AC33: =$AA32-$AA33 -> 67 | AD33: =$AA$9-$AA33 -> 333
B34: Leonardo Oliveira | C34: 30 | D34: Sylvio Junior | E34: 10 | F34: Marcelo Horta | G34: 21 | H34: Marcelo Horta | I34: 38 | J34: Daniel Paranhos | K34: 44 | L34: Jarbas Reis | M34: 56 | N34: Thiara Silveira | O34: 66 | P34: Thiara Silveira | Q34: 66 | R34: Thiara Silveira | S34: 66 | T34: Thiara Silveira | U34: 66 | V34: Wesley Camargos | W34: 71 | X34: Wesley Camargos | Y34: 71 | Z34: Wesley Camargos | AA34: 71 | AB34: =$AA$5-AA34 -> 424 | AC34: =$AA33-$AA34 -> 17 | AD34: =$AA$9-$AA34 -> 350
B35: Rafael Alves | C35: 31 | D35: Samuel Silva | E35: 9 | F35: Will Conrad | G35: 20 | H35: Leonardo Bastos | I35: 37 | J35: Ivan Renault | K35: 43 | L35: Antônio Mourão | M35: 55 | N35: Roberto Veloso | O35: 58 | P35: Roberto Veloso | Q35: 58 | R35: Roberto Veloso | S35: 58 | T35: Samuel Silva | U35: 59 | V35: Thiara Silveira | W35: 66 | X35: Thiara Silveira | Y35: 66 | Z35: Thiara Silveira | AA35: 66 | AB35: =$AA$5-AA35 -> 429 | AC35: =$AA34-$AA35 -> 5 | AD35: =$AA$9-$AA35 -> 355
B36: Raphael Reis | C36: 32 | D36: Luis Almeida | E36: 8 | F36: Renato Cardoso | G36: 15 | H36: Leandro Malias | I36: 36 | J36: Marcelo Horta | K36: 38 | L36: Ivan Renault | M36: 43 | N36: Antônio Mourão | O36: 55 | P36: Antônio Mourão | Q36: 55 | R36: Antônio Mourão | S36: 55 | T36: Roberto Veloso | U36: 58 | V36: Samuel Silva | W36: 59 | X36: Samuel Silva | Y36: 59 | Z36: Samuel Silva | AA36: 59 | AB36: =$AA$5-AA36 -> 436 | AC36: =$AA35-$AA36 -> 7 | AD36: =$AA$9-$AA36 -> 362
B37: Renato Cardoso | C37: 33 | D37: Adriano Morato | E37: 7 | F37: Roberto Veloso | G37: 14 | H37: Samuel Silva | I37: 25 | J37: Leandro Malias | K37: 36 | L37: Marcelo Horta | M37: 38 | N37: Leandro Malias | O37: 53 | P37: Leandro Malias | Q37: 53 | R37: Leandro Malias | S37: 53 | T37: Antônio Mourão | U37: 55 | V37: Roberto Veloso | W37: 58 | X37: Roberto Veloso | Y37: 58 | Z37: Roberto Veloso | AA37: 58 | AB37: =$AA$5-AA37 -> 437 | AC37: =$AA36-$AA37 -> 1 | AD37: =$AA$9-$AA37 -> 363
B38: Roberto Veloso | C38: 34 | D38: Lucas Mourão | E38: 6 | F38: Junior Torres | G38: 11 | H38: Marcelo Surerus | I38: 21 | J38: Guilherme Alves | K38: 32 | L38: Leandro Malias | M38: 36 | N38: Ivan Renault | O38: 43 | P38: Ivan Renault | Q38: 43 | R38: Ivan Renault | S38: 43 | T38: Leandro Malias | U38: 53 | V38: Antônio Mourão | W38: 55 | X38: Antônio Mourão | Y38: 55 | Z38: Antônio Mourão | AA38: 55 | AB38: =$AA$5-AA38 -> 440 | AC38: =$AA37-$AA38 -> 3 | AD38: =$AA$9-$AA38 -> 366
B39: Rodrigo Mercadante | C39: 35 | D39: Eduardo Henrique | E39: 0 | F39: Heimar Mata | G39: 10 | H39: Will Conrad | I39: 20 | J39: Samuel Silva | K39: 25 | L39: Wesley Camargos | M39: 31 | N39: Marcelo Horta | O39: 38 | P39: Marcelo Horta | Q39: 38 | R39: Marcelo Horta | S39: 38 | T39: Heimar Mata | U39: 51 | V39: Leandro Malias | W39: 53 | X39: Leandro Malias | Y39: 53 | Z39: Leandro Malias | AA39: 53 | AB39: =$AA$5-AA39 -> 442 | AC39: =$AA38-$AA39 -> 2 | AD39: =$AA$9-$AA39 -> 368
B40: Samuel Silva | C40: 36 | D40: Renato Cardoso | E40: 0 | F40: Sylvio Junior | G40: 10 | H40: Wesley Camargos | I40: 13 | J40: Adriano Morato | K40: 24 | L40: Samuel Silva | M40: 25 | N40: Adriano Morato | O40: 37 | P40: Adriano Morato | Q40: 37 | R40: Adriano Morato | S40: 37 | T40: Wesley Camargos | U40: 50 | V40: Heimar Mata | W40: 51 | X40: Heimar Mata | Y40: 51 | Z40: Heimar Mata | AA40: 51 | AB40: =$AA$5-AA40 -> 444 | AC40: =$AA39-$AA40 -> 2 | AD40: =$AA$9-$AA40 -> 370
B41: Sylvio Junior | C41: 37 | D41: Roberto Veloso | E41: 0 | F41: Samuel Silva | G41: 9 | H41: Junior Torres | I41: 11 | J41: Will Conrad | K41: 20 | L41: Adriano Morato | M41: 24 | N41: Wesley Camargos | O41: 31 | P41: Samuel Silva | Q41: 36 | R41: Samuel Silva | S41: 36 | T41: Ivan Renault | U41: 43 | V41: Ivan Renault | W41: 43 | X41: Ivan Renault | Y41: 43 | Z41: Ivan Renault | AA41: 43 | AB41: =$AA$5-AA41 -> 452 | AC41: =$AA40-$AA41 -> 8 | AD41: =$AA$9-$AA41 -> 378
B42: Thiara Silveira | C42: 38 | D42: Heimar Mata | E42: 0 | F42: Adriano Morato | G42: 7 | H42: Fred Mello | I42: 10 | J42: Wesley Camargos | K42: 13 | L42: Will Conrad | M42: 20 | N42: Heimar Mata | O42: 29 | P42: Wesley Camargos | Q42: 31 | R42: Wesley Camargos | S42: 31 | T42: Marcelo Horta | U42: 38 | V42: Marcelo Horta | W42: 38 | X42: Marcelo Horta | Y42: 38 | Z42: Marcelo Horta | AA42: 38 | AB42: =$AA$5-AA42 -> 457 | AC42: =$AA41-$AA42 -> 5 | AD42: =$AA$9-$AA42 -> 383
A43: X | B43: Wesley Bambirra | C43: 39 | D43: Fred Mello | E43: 0 | F43: Lucas Mourão | G43: 6 | H43: Heimar Mata | I43: 10 | J43: Junior Torres | K43: 11 | L43: Leonardo Oliveira | M43: 15 | N43: Samuel Silva | O43: 25 | P43: Heimar Mata | Q43: 29 | R43: Heimar Mata | S43: 29 | T43: Adriano Morato | U43: 37 | V43: Adriano Morato | W43: 37 | X43: Adriano Morato | Y43: 37 | Z43: Adriano Morato | AA43: 37 | AB43: =$AA$5-AA43 -> 458 | AC43: =$AA42-$AA43 -> 1 | AD43: =$AA$9-$AA43 -> 384
B44: Wesley Camargos | C44: 40 | D44: Guilherme Alves | E44: 0 | F44: Fred Mello | G44: 0 | H44: Sylvio Junior | I44: 10 | J44: Fred Mello | K44: 10 | L44: Junior Torres | M44: 15 | N44: Will Conrad | O44: 20 | P44: Will Conrad | Q44: 20 | R44: Will Conrad | S44: 20 | T44: Will Conrad | U44: 20 | V44: Will Conrad | W44: 20 | X44: Will Conrad | Y44: 20 | Z44: Will Conrad | AA44: 20 | AB44: =$AA$5-AA44 -> 475 | AC44: =$AA43-$AA44 -> 17 | AD44: =$AA$9-$AA44 -> 401
B45: Wesley Canuto | C45: 41 | D45: Marcelo Surerus | E45: 0 | F45: Guilherme Alves | G45: 0 | H45: Guilherme Alves | I45: 9 | J45: Heimar Mata | K45: 10 | L45: Fred Mello | M45: 10 | N45: Junior Torres | O45: 15 | P45: Junior Torres | Q45: 15 | R45: Junior Torres | S45: 15 | T45: Junior Torres | U45: 15 | V45: Junior Torres | W45: 15 | X45: Junior Torres | Y45: 15 | Z45: Junior Torres | AA45: 15 | AB45: =$AA$5-AA45 -> 480 | AC45: =$AA44-$AA45 -> 5 | AD45: =$AA$9-$AA45 -> 406
B46: Will Conrad | C46: 42 | D46: Leonardo Oliveira | E46: 0 | F46: Marcelo Surerus | G46: 0 | H46: Adriano Morato | I46: 7 | J46: Sylvio Junior | K46: 10 | L46: Heimar Mata | M46: 10 | N46: Fred Mello | O46: 10 | P46: Fred Mello | Q46: 10 | R46: Fred Mello | S46: 10 | T46: Fred Mello | U46: 10 | V46: Fred Mello | W46: 10 | X46: Fred Mello | Y46: 10 | Z46: Fred Mello | AA46: 10 | AB46: =$AA$5-AA46 -> 485 | AC46: =$AA45-$AA46 -> 5 | AD46: =$AA$9-$AA46 -> 411
B47: Junior Torres | C47: 43 | D47: Wesley Camargos | E47: 0 | F47: Leonardo Oliveira | G47: 0 | H47: Lucas Mourão | I47: 6 | J47: Lucas Mourão | K47: 6 | L47: Sylvio Junior | M47: 10 | N47: Sylvio Junior | O47: 10 | P47: Sylvio Junior | Q47: 10 | R47: Sylvio Junior | S47: 10 | T47: Sylvio Junior | U47: 10 | V47: Sylvio Junior | W47: 10 | X47: Sylvio Junior | Y47: 10 | Z47: Sylvio Junior | AA47: 10 | AB47: =$AA$5-AA47 -> 485 | AC47: =$AA46-$AA47 -> 0 | AD47: =$AA$9-$AA47 -> 411
B48: Roberto Torres | C48: 44 | D48: Roberto Torres | E48: 0 | F48: Wesley Camargos | G48: 0 | H48: Leonardo Oliveira | I48: 0 | J48: Leonardo Oliveira | K48: 0 | L48: Lucas Mourão | M48: 6 | N48: Lucas Mourão | O48: 6 | P48: Lucas Mourão | Q48: 6 | R48: Lucas Mourão | S48: 6 | T48: Lucas Mourão | U48: 6 | V48: Lucas Mourão | W48: 6 | X48: Lucas Mourão | Y48: 6 | Z48: Lucas Mourão | AA48: 6 | AB48: =$AA$5-AA48 -> 489 | AC48: =$AA47-$AA48 -> 4 | AD48: =$AA$9-$AA48 -> 415
C49: 45 | L49: XXXXXXX | M49: 0 | N49: XXXXXXX | O49: 0 | R49: XXXXXXX | S49: 0 | T49: XXXXXXX | U49: 0 | V49: XXXXXXX | W49: 0 | Z49: - | AA49: - | AB49: - | AC49: - | AD49: -

Sheet CAMP EQUIPE EVOL
A1: 2020 | B1: OK | D1: OK | F1: OK | H1: OK | J1: OK | L1: OK | N1: OK | P1: OK | R1: OK | T1: OK | V1: OK | X1: OK | Z1: DIF. LIDER | AA1: DIF. PRÓXIMO | AB1: DIF. 5º
B2: 1ª etapa | D2: 2ª etapa | F2: 3ª etapa | H2: 4ª etapa | J2: 5ª etapa | L2: 6ª etapa | N2: 7ª etapa | P2: 8ª etapa | R2: 9ª etapa | T2: 10ª etapa | V2: 11ª etapa | X2: 12ª etapa
D3: 0 | F3: 00:00:00 | H3: 00:00:00 | J3: 00:00:00 | L3: 00:00:00 | N3: 00:00:00 | P3: 00:00:00 | R3: 00:00:00 | T3: 00:00:00 | V3: 00:00:00 | X3: 00:00:00
A4: EQUIPES | B4: EQUIPES | C4: Pontuação Geral | D4: EQUIPES | E4: Pontuação Geral | F4: EQUIPES | G4: Pontuação Geral | H4: EQUIPES | I4: Pontuação Geral | J4: EQUIPES | K4: Pontuação Geral | L4: EQUIPES | M4: Pontuação Geral | N4: Posição | O4: Pontos | P4: Posição | Q4: Pontos | R4: Posição | S4: Pontos | T4: Posição | U4: Pontos | V4: Posição | W4: Pontos | X4: Posição | Y4: Pontos
A5: 1º | B5: EQUIPE 3 | C5: 122 | D5: EQUIPE 7 | E5: 244 | F5: EQUIPE 7 | G5: 244 | H5: EQUIPE 7 | I5: 275 | J5: EQUIPE 7 | K5: 376 | L5: EQUIPE 7 | M5: 510 | N5: EQUIPE 7 | O5: 630 | P5: EQUIPE 7 | Q5: 732 | R5: EQUIPE 7 | S5: 833 | T5: EQUIPE 7 | U5: 959 | V5: EQUIPE 7 | W5: 1063 | X5: EQUIPE 7 | Y5: 1163 | Z5: - | AA5: - | AB5: -
B6: Cláudio Dumont | C6: 52 | D6: Marconi Teixeira | E6: 112 | F6: Marconi Teixeira | G6: 112 | H6: Marconi Teixeira | I6: 114 | J6: Marconi Teixeira | K6: 174 | L6: Marconi Teixeira | M6: 234 | N6: Marconi Teixeira | O6: 278 | P6: Marconi Teixeira | Q6: 320 | R6: Marconi Teixeira | S6: 375 | T6: Marconi Teixeira | U6: 375 | V6: Marconi Teixeira | W6: 421 | X6: Marconi Teixeira | Y6: 421 | Z6: - | AA6: - | AB6: -
B7: Rodrigo Mercadante | C7: 32 | D7: Wesley Canuto | E7: 36 | F7: Wesley Canuto | G7: 36 | H7: Wesley Canuto | I7: 36 | J7: Wesley Canuto | K7: 36 | L7: Wesley Canuto | M7: 36 | N7: Wesley Canuto | O7: 36 | P7: Wesley Canuto | Q7: 60 | R7: Wesley Canuto | S7: 84 | T7: Wesley Canuto | U7: 114 | V7: Wesley Canuto | W7: 114 | X7: Wesley Canuto | Y7: 146 | Z7: - | AA7: - | AB7: -
B8: Will Conrad | C8: 0 | D8: Diego Silva | E8: 17 | F8: Diego Silva | G8: 17 | H8: Diego Silva | I8: 26 | J8: Diego Silva | K8: 43 | L8: Diego Silva | M8: 81 | N8: Diego Silva | O8: 127 | P8: Diego Silva | Q8: 127 | R8: Diego Silva | S8: 149 | T8: Diego Silva | U8: 195 | V8: Diego Silva | W8: 221 | X8: Diego Silva | Y8: 243 | Z8: - | AA8: - | AB8: -
B9: Thiara Silveira | C9: 38 | D9: Pedro Fialho | E9: 79 | F9: Pedro Fialho | G9: 79 | H9: Pedro Fialho | I9: 99 | J9: Pedro Fialho | K9: 123 | L9: Pedro Fialho | M9: 159 | N9: Pedro Fialho | O9: 189 | P9: Pedro Fialho | Q9: 225 | R9: Pedro Fialho | S9: 225 | T9: Pedro Fialho | U9: 275 | V9: Pedro Fialho | W9: 307 | X9: Pedro Fialho | Y9: 353 | Z9: - | AA9: - | AB9: -
B10: Roberto Torres | C10: 0 | D10: XXX | E10: 0 | F10: XXX | G10: 0 | H10: XXX | I10: 0 | J10: XXX | K10: 0 | L10: XXX | M10: 0 | N10: XXX | O10: 0 | P10: XXX | Q10: 0 | R10: XXX | S10: 0 | T10: XXX | U10: 0 | V10: XXX | W10: 0 | X10: XXX | Y10: 0 | Z10: - | AA10: - | AB10: -
A11: 2º | B11: EQUIPE 1 | C11: 113 | D11: EQUIPE 1 | E11: 223 | F11: EQUIPE 3 | G11: 236 | H11: EQUIPE 3 | I11: 236 | J11: EQUIPE 3 | K11: 372 | L11: EQUIPE 3 | M11: 462 | N11: EQUIPE 3 | O11: 544 | P11: EQUIPE 3 | Q11: 664 | R11: EQUIPE 6 | S11: 763 | T11: EQUIPE 3 | U11: 848 | V11: EQUIPE 6 | W11: 942 | X11: EQUIPE 6 | Y11: 1037 | Z11: =$Y$5-$Y11 -> 126 | AA11: =$Y5-$Y11 -> 126 | AB11: -
B12: Marcelo Pereira | C12: 57 | D12: Marcelo Pereira | E12: 105 | F12: Cláudio Dumont | G12: 72 | H12: Cláudio Dumont | I12: 72 | J12: Cláudio Dumont | K12: 132 | L12: Cláudio Dumont | M12: 132 | N12: Cláudio Dumont | O12: 170 | P12: Cláudio Dumont | Q12: 225 | R12: Fernando Medeiros | S12: 346 | T12: Cláudio Dumont | U12: 269 | V12: Fernando Medeiros | W12: 443 | X12: Fernando Medeiros | Y12: 483 | Z12: - | AA12: - | AB12: -
B13: Sylvio Junior | C13: 10 | D13: Sylvio Junior | E13: 10 | F13: Rodrigo Mercadante | G13: 74 | H13: Rodrigo Mercadante | I13: 74 | J13: Rodrigo Mercadante | K13: 114 | L13: Rodrigo Mercadante | M13: 154 | N13: Rodrigo Mercadante | O13: 182 | P13: Rodrigo Mercadante | Q13: 201 | R13: Heimar Mata | S13: 32 | T13: Rodrigo Mercadante | U13: 229 | V13: Heimar Mata | W13: 32 | X13: Heimar Mata | Y13: 32 | Z13: - | AA13: - | AB13: -
B14: Wesley Camargos | C14: 0 | D14: Wesley Camargos | E14: 0 | F14: Will Conrad | G14: 0 | H14: Will Conrad | I14: 0 | J14: Will Conrad | K14: 0 | L14: Will Conrad | M14: 0 | N14: Will Conrad | O14: 0 | P14: Will Conrad | Q14: 0 | R14: Daniel Paranhos | S14: 143 | T14: Will Conrad | U14: 0 | V14: Daniel Paranhos | W14: 143 | X14: Daniel Paranhos | Y14: 143 | Z14: - | AA14: - | AB14: -
B15: Marcelo Campos | C15: 46 | D15: Marcelo Campos | E15: 108 | F15: Thiara Silveira | G15: 38 | H15: Thiara Silveira | I15: 38 | J15: Thiara Silveira | K15: 38 | L15: Thiara Silveira | M15: 38 | N15: Thiara Silveira | O15: 38 | P15: Thiara Silveira | Q15: 38 | R15: Leonardo Oliveira | S15: 242 | T15: Thiara Silveira | U15: 66 | V15: Leonardo Oliveira | W15: 324 | X15: Leonardo Oliveira | Y15: 379 | Z15: - | AA15: - | AB15: -
B16: XXX | C16: 0 | D16: XXX | E16: 0 | F16: Roberto Torres | G16: 52 | H16: Roberto Torres | I16: 52 | J16: Roberto Torres | K16: 88 | L16: Roberto Torres | M16: 138 | N16: Roberto Torres | O16: 154 | P16: Roberto Torres | Q16: 200 | R16: XXX | S16: 0 | T16: Roberto Torres | U16: 284 | V16: XXX | W16: 0 | X16: XXX | Y16: 0 | Z16: - | AA16: - | AB16: -
A17: 3º | B17: EQUIPE 5 | C17: 112 | D17: EQUIPE 5 | E17: 196 | F17: EQUIPE 1 | G17: 224 | H17: EQUIPE 1 | I17: 224 | J17: EQUIPE 1 | K17: 332 | L17: EQUIPE 1 | M17: 422 | N17: EQUIPE 1 | O17: 527 | P17: EQUIPE 6 | Q17: 639 | R17: EQUIPE 3 | S17: 728 | T17: EQUIPE 6 | U17: 827 | V17: EQUIPE 3 | W17: 920 | X17: EQUIPE 1 | Y17: 988 | Z17: =$Y$5-$Y17 -> 175 | AA17: =$Y11-$Y17 -> 49
B18: Wesley Bambirra | C18: 50 | D18: Wesley Bambirra | E18: 94 | F18: Marcelo Pereira | G18: 107 | H18: Marcelo Pereira | I18: 107 | J18: Marcelo Pereira | K18: 155 | L18: Marcelo Pereira | M18: 203 | N18: Marcelo Pereira | O18: 253 | P18: Fernando Medeiros | Q18: 294 | R18: Cláudio Dumont | S18: 237 | T18: Fernando Medeiros | U18: 388 | V18: Cláudio Dumont | W18: 269 | X18: Marcelo Pereira | Y18: 495 | Z18: - | AA18: -
B19: Roberto Veloso | C19: 0 | D19: Roberto Veloso | E19: 14 | F19: Sylvio Junior | G19: 10 | H19: Sylvio Junior | I19: 10 | J19: Sylvio Junior | K19: 10 | L19: Sylvio Junior | M19: 10 | N19: Sylvio Junior | O19: 10 | P19: Heimar Mata | Q19: 10 | R19: Rodrigo Mercadante | S19: 201 | T19: Heimar Mata | U19: 32 | V19: Rodrigo Mercadante | W19: 257 | X19: Sylvio Junior | Y19: 10 | Z19: - | AA19: -
B20: Antônio Mourão | C20: 44 | D20: Antônio Mourão | E20: 44 | F20: Wesley Camargos | G20: 13 | H20: Wesley Camargos | I20: 13 | J20: Wesley Camargos | K20: 13 | L20: Wesley Camargos | M20: 13 | N20: Wesley Camargos | O20: 13 | P20: Daniel Paranhos | Q20: 143 | R20: Will Conrad | S20: 0 | T20: Daniel Paranhos | U20: 143 | V20: Will Conrad | W20: 0 | X20: Wesley Camargos | Y20: 50 | Z20: - | AA20: -
B21: Rafael Alves | C21: 18 | D21: Rafael Alves | E21: 44 | F21: Marcelo Campos | G21: 94 | H21: Marcelo Campos | I21: 94 | J21: Marcelo Campos | K21: 154 | L21: Marcelo Campos | M21: 196 | N21: Marcelo Campos | O21: 251 | P21: Leonardo Oliveira | Q21: 192 | R21: Thiara Silveira | S21: 66 | T21: Leonardo Oliveira | U21: 264 | V21: Thiara Silveira | W21: 66 | X21: Marcelo Campos | Y21: 433 | Z21: - | AA21: -
B22: XXX | C22: 0 | D22: XXX | E22: 0 | F22: XXX | G22: 0 | H22: XXX | I22: 0 | J22: XXX | K22: 0 | L22: XXX | M22: 0 | N22: XXX | O22: 0 | P22: XXX | Q22: 0 | R22: Roberto Torres | S22: 224 | T22: XXX | U22: 0 | V22: Roberto Torres | W22: 328 | X22: XXX | Y22: 0 | Z22: - | AA22: -
A23: 4º | B23: EQUIPE 9 | C23: 103 | D23: EQUIPE 3 | E23: 186 | F23: EQUIPE 9 | G23: 218 | H23: EQUIPE 9 | I23: 218 | J23: EQUIPE 9 | K23: 297 | L23: EQUIPE 9 | M23: 373 | N23: EQUIPE 6 | O23: 504 | P23: EQUIPE 1 | Q23: 619 | R23: EQUIPE 1 | S23: 714 | T23: EQUIPE 1 | U23: 796 | V23: EQUIPE 1 | W23: 876 | X23: EQUIPE 3 | Y23: 988 | Z23: =$Y$5-$Y23 -> 175 | AA23: =$Y17-$Y23 -> 0
B24: Marcelo Sant'anna | C24: 40 | D24: Cláudio Dumont | E24: 64 | F24: Marcelo Sant'anna | G24: 78 | H24: Marcelo Sant'anna | I24: 78 | J24: Marcelo Sant'anna | K24: 87 | L24: Marcelo Sant'anna | M24: 117 | N24: Fernando Medeiros | O24: 242 | P24: Marcelo Pereira | Q24: 301 | R24: Marcelo Pereira | S24: 333 | T24: Marcelo Pereira | U24: 385 | V24: Marcelo Pereira | W24: 433 | X24: Cláudio Dumont | Y24: 269 | Z24: - | AA24: -
B25: XXXXXXX | C25: 48 | D25: Rodrigo Mercadante | E25: 32 | F25: XXXXXXX | G25: 110 | H25: XXXXXXX | I25: 110 | J25: Leonardo Bastos | K25: 52 | L25: Leonardo Bastos | M25: 98 | N25: Heimar Mata | O25: 10 | P25: Sylvio Junior | Q25: 10 | R25: Sylvio Junior | S25: 10 | T25: Sylvio Junior | U25: 10 | V25: Sylvio Junior | W25: 10 | X25: Rodrigo Mercadante | Y25: 301 | Z25: - | AA25: -
B26: Leonardo Bastos | C26: 15 | D26: Will Conrad | E26: 0 | F26: Leonardo Bastos | G26: 30 | H26: Leonardo Bastos | I26: 30 | J26: Junior Torres | K26: 0 | L26: Junior Torres | M26: 0 | N26: Daniel Paranhos | O26: 120 | P26: Wesley Camargos | Q26: 13 | R26: Wesley Camargos | S26: 32 | T26: Wesley Camargos | U26: 32 | V26: Wesley Camargos | W26: 50 | X26: Will Conrad | Y26: 0 | Z26: - | AA26: -
B27: Junior Torres | C27: 0 | D27: Thiara Silveira | E27: 66 | F27: Junior Torres | G27: 0 | H27: Junior Torres | I27: 0 | J27: XXXXXXX | K27: 158 | L27: XXXXXXX | M27: 158 | N27: Leonardo Oliveira | O27: 132 | P27: Marcelo Campos | Q27: 295 | R27: Marcelo Campos | S27: 339 | T27: Marcelo Campos | U27: 369 | V27: Marcelo Campos | W27: 383 | X27: Thiara Silveira | Y27: 66 | Z27: - | AA27: -
B28: XXX | C28: 0 | D28: Roberto Torres | E28: 24 | F28: XXX | G28: 0 | H28: XXX | I28: 0 | J28: XXX | K28: 0 | L28: XXX | M28: 0 | N28: XXX | O28: 0 | P28: XXX | Q28: 0 | R28: XXX | S28: 0 | T28: XXX | U28: 0 | V28: XXX | W28: 0 | X28: Roberto Torres | Y28: 352 | Z28: - | AA28: -
A29: 5º | B29: EQUIPE 7 | C29: 101 | D29: EQUIPE 9 | E29: 184 | F29: EQUIPE 5 | G29: 202 | H29: EQUIPE 5 | I29: 202 | J29: EQUIPE 5 | K29: 286 | L29: EQUIPE 6 | M29: 370 | N29: EQUIPE 9 | O29: 451 | P29: EQUIPE 11 | Q29: 531 | R29: EQUIPE 5 | S29: 634 | T29: EQUIPE 11 | U29: 708 | V29: EQUIPE 5 | W29: 786 | X29: EQUIPE 9 | Y29: 854 | Z29: =$Y$5-$Y29 -> 309 | AA29: =$Y23-$Y29 -> 134
B30: Marconi Teixeira | C30: 60 | D30: Marcelo Sant'anna | E30: 49 | F30: Wesley Bambirra | G30: 84 | H30: Wesley Bambirra | I30: 84 | J30: Wesley Bambirra | K30: 128 | L30: Fernando Medeiros | M30: 192 | N30: Marcelo Sant'anna | O30: 143 | P30: Guilherme Alves | Q30: 195 | R30: Wesley Bambirra | S30: 344 | T30: Guilherme Alves | U30: 279 | V30: Wesley Bambirra | W30: 422 | X30: Marcelo Sant'anna | Y30: 344 | Z30: - | AA30: -
B31: Wesley Canuto | C31: 0 | D31: XXXXXXX | E31: 98 | F31: Roberto Veloso | G31: 44 | H31: Roberto Veloso | I31: 44 | J31: Roberto Veloso | K31: 58 | L31: Heimar Mata | M31: 10 | N31: Leonardo Bastos | O31: 150 | P31: Eduardo Henrique | Q31: 197 | R31: Roberto Veloso | S31: 58 | T31: Eduardo Henrique | U31: 269 | V31: Roberto Veloso | W31: 58 | X31: Leonardo Bastos | Y31: 348 | Z31: - | AA31: -
B32: Diego Silva | C32: 17 | D32: Leonardo Bastos | E32: 37 | F32: Antônio Mourão | G32: 44 | H32: Antônio Mourão | I32: 44 | J32: Antônio Mourão | K32: 44 | L32: Daniel Paranhos | M32: 96 | N32: Junior Torres | O32: 0 | P32: Luis Almeida | Q32: 122 | R32: Antônio Mourão | S32: 44 | T32: Luis Almeida | U32: 143 | V32: Antônio Mourão | W32: 44 | X32: Junior Torres | Y32: 4 | Z32: - | AA32: -
B33: Pedro Fialho | C33: 24 | D33: Junior Torres | E33: 0 | F33: Rafael Alves | G33: 30 | H33: Rafael Alves | I33: 30 | J33: Rafael Alves | K33: 56 | L33: Leonardo Oliveira | M33: 72 | N33: XXXXXXX | O33: 158 | P33: Marcelo Horta | Q33: 17 | R33: Rafael Alves | S33: 188 | T33: Marcelo Horta | U33: 17 | V33: Rafael Alves | W33: 262 | X33: XXXXXXX | Y33: 158 | Z33: - | AA33: -
B34: XXX | C34: 0 | D34: XXX | E34: 0 | F34: XXX | G34: 0 | H34: XXX | I34: 0 | J34: XXX | K34: 0 | L34: XXX | M34: 0 | N34: XXX | O34: 0 | P34: XXX | Q34: 0 | R34: XXX | S34: 0 | T34: XXX | U34: 0 | V34: XXX | W34: 0 | X34: XXX | Y34: 0 | Z34: - | AA34: -
A35: 6º | B35: EQUIPE 10 | C35: 84 | D35: EQUIPE 8 | E35: 167 | F35: EQUIPE 8 | G35: 183 | H35: EQUIPE 8 | I35: 183 | J35: EQUIPE 11 | K35: 255 | L35: EQUIPE 5 | M35: 370 | N35: EQUIPE 5 | O35: 450 | P35: EQUIPE 5 | Q35: 530 | R35: EQUIPE 11 | S35: 606 | T35: EQUIPE 5 | U35: 704 | V35: EQUIPE 9 | W35: 776 | X35: EQUIPE 5 | Y35: 848 | Z35: =$Y$5-$Y35 -> 315 | AA35: =$Y29-$Y35 -> 6 | AB35: =$Y$29-Y35 -> 6
B36: Alexandre Melillo | C36: 36 | D36: Jarbas Reis | E36: 60 | F36: Jarbas Reis | G36: 70 | H36: Jarbas Reis | I36: 70 | J36: Guilherme Alves | K36: 75 | L36: Wesley Bambirra | M36: 180 | N36: Wesley Bambirra | O36: 230 | P36: Wesley Bambirra | Q36: 282 | R36: Guilherme Alves | S36: 229 | T36: Wesley Bambirra | U36: 370 | V36: Marcelo Sant'anna | W36: 314 | X36: Wesley Bambirra | Y36: 462 | Z36: - | AA36: - | AB36: -
B37: Marcelo Surerus | C37: 0 | D37: Raphael Reis | E37: 64 | F37: Raphael Reis | G37: 60 | H37: Raphael Reis | I37: 60 | J37: Eduardo Henrique | K37: 95 | L37: Roberto Veloso | M37: 58 | N37: Roberto Veloso | O37: 58 | P37: Roberto Veloso | Q37: 58 | R37: Eduardo Henrique | S37: 217 | T37: Roberto Veloso | U37: 58 | V37: Leonardo Bastos | W37: 300 | X37: Roberto Veloso | Y37: 58 | Z37: - | AA37: - | AB37: -
B38: Lucas Mourão | C38: 6 | D38: Leandro Malias | E38: 0 | F38: Leandro Malias | G38: 0 | H38: Leandro Malias | I38: 0 | J38: Luis Almeida | K38: 68 | L38: Antônio Mourão | M38: 44 | N38: Antônio Mourão | O38: 44 | P38: Antônio Mourão | Q38: 44 | R38: Luis Almeida | S38: 143 | T38: Antônio Mourão | U38: 44 | V38: Junior Torres | W38: 4 | X38: Antônio Mourão | Y38: 44 | Z38: - | AA38: - | AB38: -
B39: Marcus Silva | C39: 42 | D39: Oldack Sérgio | E39: 43 | F39: Oldack Sérgio | G39: 53 | H39: Oldack Sérgio | I39: 53 | J39: Marcelo Horta | K39: 17 | L39: Rafael Alves | M39: 88 | N39: Rafael Alves | O39: 118 | P39: Rafael Alves | Q39: 146 | R39: Marcelo Horta | S39: 17 | T39: Rafael Alves | U39: 232 | V39: XXXXXXX | W39: 158 | X39: Rafael Alves | Y39: 284 | Z39: - | AA39: - | AB39: -
B40: XXX | C40: 0 | D40: XXX | E40: 0 | F40: XXX | G40: 0 | H40: XXX | I40: 0 | J40: XXX | K40: 0 | L40: XXX | M40: 0 | N40: XXX | O40: 0 | P40: XXX | Q40: 0 | R40: XXX | S40: 0 | T40: XXX | U40: 0 | V40: XXX | W40: 0 | X40: XXX | Y40: 0 | Z40: - | AA40: - | AB40: -
A41: 7º | B41: EQUIPE 4 | C41: 73 | D41: EQUIPE 10 | E41: 150 | F41: EQUIPE 10 | G41: 150 | H41: EQUIPE 11 | I41: 157 | J41: EQUIPE 8 | K41: 252 | L41: EQUIPE 11 | M41: 351 | N41: EQUIPE 11 | O41: 450 | P41: EQUIPE 9 | Q41: 508 | R41: EQUIPE 9 | S41: 601 | T41: EQUIPE 9 | U41: 692 | V41: EQUIPE 11 | W41: 774 | X41: EQUIPE 11 | Y41: 838 | Z41: =$Y$5-$Y41 -> 325 | AA41: =$Y35-$Y41 -> 10 | AB41: =$Y$29-Y41 -> 16
B42: Daniel Nahum | C42: 34 | D42: Alexandre Melillo | E42: 56 | F42: Alexandre Melillo | G42: 56 | H42: Guilherme Alves | I42: 23 | J42: Jarbas Reis | K42: 81 | L42: Guilherme Alves | M42: 123 | N42: Guilherme Alves | O42: 165 | P42: Marcelo Sant'anna | Q42: 187 | R42: Marcelo Sant'anna | S42: 242 | T42: Marcelo Sant'anna | U42: 278 | V42: Guilherme Alves | W42: 303 | X42: Guilherme Alves | Y42: 341 | Z42: - | AA42: - | AB42: -
B43: Ivan Renault | C43: 30 | D43: Marcelo Surerus | E43: 0 | F43: Marcelo Surerus | G43: 0 | H43: Eduardo Henrique | I43: 69 | J43: Raphael Reis | K43: 100 | L43: Eduardo Henrique | M43: 129 | N43: Eduardo Henrique | O43: 163 | P43: Leonardo Bastos | Q43: 159 | R43: Leonardo Bastos | S43: 197 | T43: Leonardo Bastos | U43: 252 | V43: Eduardo Henrique | W43: 311 | X43: Eduardo Henrique | Y43: 337 | Z43: - | AA43: - | AB43: -
B44: Adriano Morato | C44: 0 | D44: Lucas Mourão | E44: 6 | F44: Lucas Mourão | G44: 6 | H44: Luis Almeida | I44: 48 | J44: Leandro Malias | K44: 0 | L44: Luis Almeida | M44: 82 | N44: Luis Almeida | O44: 105 | P44: Junior Torres | Q44: 4 | R44: Junior Torres | S44: 4 | T44: Junior Torres | U44: 4 | V44: Luis Almeida | W44: 143 | X44: Luis Almeida | Y44: 143 | Z44: - | AA44: - | AB44: -
B45: Samuel Silva | C45: 9 | D45: Marcus Silva | E45: 88 | F45: Marcus Silva | G45: 88 | H45: Marcelo Horta | I45: 17 | J45: Oldack Sérgio | K45: 71 | L45: Marcelo Horta | M45: 17 | N45: Marcelo Horta | O45: 17 | P45: XXXXXXX | Q45: 158 | R45: XXXXXXX | S45: 158 | T45: XXXXXXX | U45: 158 | V45: Marcelo Horta | W45: 17 | X45: Marcelo Horta | Y45: 17 | Z45: - | AA45: - | AB45: -
B46: XXX | C46: 0 | D46: XXX | E46: 0 | F46: XXX | G46: 0 | H46: XXX | I46: 0 | J46: XXX | K46: 0 | L46: XXX | M46: 0 | N46: XXX | O46: 0 | P46: XXX | Q46: 0 | R46: XXX | S46: 0 | T46: XXX | U46: 0 | V46: XXX | W46: 0 | X46: XXX | Y46: 0 | Z46: - | AA46: - | AB46: -
A47: 8º | B47: EQUIPE 8 | C47: 68 | D47: EQUIPE 2 | E47: 126 | F47: EQUIPE 2 | G47: 138 | H47: EQUIPE 10 | I47: 150 | J47: EQUIPE 6 | K47: 250 | L47: EQUIPE 8 | M47: 331 | N47: EQUIPE 8 | O47: 399 | P47: EQUIPE 8 | Q47: 477 | R47: EQUIPE 8 | S47: 534 | T47: EQUIPE 8 | U47: 595 | V47: EQUIPE 8 | W47: 648 | X47: EQUIPE 8 | Y47: 696 | Z47: =$Y$5-$Y47 -> 467 | AA47: =$Y41-$Y47 -> 142 | AB47: =$Y$29-Y47 -> 158
B48: Jarbas Reis | C48: 26 | D48: Claudio Junqueira | E48: 58 | F48: Claudio Junqueira | G48: 30 | H48: Alexandre Melillo | I48: 56 | J48: Fernando Medeiros | K48: 150 | L48: Jarbas Reis | M48: 81 | N48: Jarbas Reis | O48: 107 | P48: Jarbas Reis | Q48: 145 | R48: Jarbas Reis | S48: 183 | T48: Jarbas Reis | U48: 221 | V48: Jarbas Reis | W48: 230 | X48: Jarbas Reis | Y48: 278 | Z48: - | AA48: - | AB48: -
B49: Raphael Reis | C49: 22 | D49: Fernando Lobo | E49: 53 | F49: Fernando Lobo | G49: 51 | H49: Marcelo Surerus | I49: 0 | J49: Heimar Mata | K49: 10 | L49: Raphael Reis | M49: 116 | N49: Raphael Reis | O49: 138 | P49: Raphael Reis | Q49: 138 | R49: Raphael Reis | S49: 138 | T49: Raphael Reis | U49: 161 | V49: Raphael Reis | W49: 182 | X49: Raphael Reis | Y49: 182 | Z49: - | AA49: - | AB49: -
B50: Leandro Malias | C50: 0 | D50: Renato Cardoso | E50: 15 | F50: Renato Cardoso | G50: 47 | H50: Lucas Mourão | I50: 6 | J50: Daniel Paranhos | K50: 75 | L50: Leandro Malias | M50: 17 | N50: Leandro Malias | O50: 17 | P50: Leandro Malias | Q50: 17 | R50: Leandro Malias | S50: 17 | T50: Leandro Malias | U50: 17 | V50: Leandro Malias | W50: 17 | X50: Leandro Malias | Y50: 17 | Z50: - | AA50: - | AB50: -
B51: Oldack Sérgio | C51: 20 | D51: Fred Mello | E51: 0 | F51: Fred Mello | G51: 10 | H51: Marcus Silva | I51: 88 | J51: Leonardo Oliveira | K51: 15 | L51: Oldack Sérgio | M51: 117 | N51: Oldack Sérgio | O51: 137 | P51: Oldack Sérgio | Q51: 177 | R51: Oldack Sérgio | S51: 196 | T51: Oldack Sérgio | U51: 196 | V51: Oldack Sérgio | W51: 219 | X51: Oldack Sérgio | Y51: 219 | Z51: - | AA51: - | AB51: -
B52: XXX | C52: 0 | D52: XXX | E52: 0 | F52: XXX | G52: 0 | H52: XXX | I52: 0 | J52: XXX | K52: 0 | L52: XXX | M52: 0 | N52: XXX | O52: 0 | P52: XXX | Q52: 0 | R52: XXX | S52: 0 | T52: XXX | U52: 0 | V52: XXX | W52: 0 | X52: XXX | Y52: 0 | Z52: - | AA52: - | AB52: -
A53: 9º | B53: EQUIPE 2 | C53: 41 | D53: EQUIPE 4 | E53: 104 | F53: EQUIPE 4 | G53: 137 | H53: EQUIPE 6 | I53: 140 | J53: EQUIPE 10 | K53: 212 | L53: EQUIPE 10 | M53: 273 | N53: EQUIPE 10 | O53: 331 | P53: EQUIPE 10 | Q53: 383 | R53: EQUIPE 10 | S53: 437 | T53: EQUIPE 10 | U53: 481 | V53: EQUIPE 10 | W53: 525 | X53: EQUIPE 2 | Y53: 562 | Z53: =$Y$5-$Y53 -> 601 | AA53: =$Y47-$Y53 -> 134 | AB53: =$Y$29-Y53 -> 292
B54: Claudio Junqueira | C54: 28 | D54: Daniel Nahum | E54: 52 | F54: Daniel Nahum | G54: 82 | H54: Fernando Medeiros | I54: 93 | J54: Alexandre Melillo | K54: 84 | L54: Alexandre Melillo | M54: 124 | N54: Alexandre Melillo | O54: 146 | P54: Alexandre Melillo | Q54: 166 | R54: Alexandre Melillo | S54: 196 | T54: Alexandre Melillo | U54: 228 | V54: Alexandre Melillo | W54: 272 | X54: Claudio Junqueira | Y54: 250 | Z54: - | AA54: - | AB54: -
B55: Fernando Lobo | C55: 13 | D55: Ivan Renault | E55: 43 | F55: Ivan Renault | G55: 30 | H55: Heimar Mata | I55: 10 | J55: Marcelo Surerus | K55: 34 | L55: Marcelo Surerus | M55: 55 | N55: Marcelo Surerus | O55: 91 | P55: Marcelo Surerus | Q55: 123 | R55: Marcelo Surerus | S55: 147 | T55: Marcelo Surerus | U55: 159 | V55: Marcelo Surerus | W55: 159 | X55: Fernando Lobo | Y55: 165 | Z55: - | AA55: - | AB55: -
B56: Renato Cardoso | C56: 0 | D56: Adriano Morato | E56: 0 | F56: Adriano Morato | G56: 0 | H56: Daniel Paranhos | I56: 37 | J56: Lucas Mourão | K56: 6 | L56: Lucas Mourão | M56: 6 | N56: Lucas Mourão | O56: 6 | P56: Lucas Mourão | Q56: 6 | R56: Lucas Mourão | S56: 6 | T56: Lucas Mourão | U56: 6 | V56: Lucas Mourão | W56: 6 | X56: Renato Cardoso | Y56: 137 | Z56: - | AA56: - | AB56: -
B57: Fred Mello | C57: 0 | D57: Samuel Silva | E57: 9 | F57: Samuel Silva | G57: 25 | H57: Leonardo Oliveira | I57: 0 | J57: Marcus Silva | K57: 88 | L57: Marcus Silva | M57: 88 | N57: Marcus Silva | O57: 88 | P57: Marcus Silva | Q57: 88 | R57: Marcus Silva | S57: 88 | T57: Marcus Silva | U57: 88 | V57: Marcus Silva | W57: 88 | X57: Fred Mello | Y57: 10 | Z57: - | AA57: - | AB57: -
B58: XXX | C58: 0 | D58: XXX | E58: 0 | F58: XXX | G58: 0 | H58: XXX | I58: 0 | J58: XXX | K58: 0 | L58: XXX | M58: 0 | N58: XXX | O58: 0 | P58: XXX | Q58: 0 | R58: XXX | S58: 0 | T58: XXX | U58: 0 | V58: XXX | W58: 0 | X58: XXX | Y58: 0 | Z58: - | AA58: - | AB58: -
A59: 10º | B59: EQUIPE 6 | C59: 37 | D59: EQUIPE 6 | E59: 101 | F59: EQUIPE 11 | G59: 115 | H59: EQUIPE 2 | I59: 138 | J59: EQUIPE 4 | K59: 179 | L59: EQUIPE 2 | M59: 220 | N59: EQUIPE 2 | O59: 277 | P59: EQUIPE 2 | Q59: 311 | R59: EQUIPE 2 | S59: 390 | T59: EQUIPE 2 | U59: 454 | V59: EQUIPE 2 | W59: 492 | X59: EQUIPE 10 | Y59: 557 | Z59: =$Y$5-$Y59 -> 606 | AA59: =$Y53-$Y59 -> 5 | AB59: =$Y$29-Y59 -> 297
B60: Fernando Medeiros | C60: 23 | D60: Fernando Medeiros | E60: 61 | F60: Guilherme Alves | G60: 0 | H60: Claudio Junqueira | I60: 30 | J60: Daniel Nahum | K60: 124 | L60: Claudio Junqueira | M60: 58 | N60: Claudio Junqueira | O60: 94 | P60: Claudio Junqueira | Q60: 94 | R60: Claudio Junqueira | S60: 130 | T60: Claudio Junqueira | U60: 170 | V60: Claudio Junqueira | W60: 208 | X60: Alexandre Melillo | Y60: 272 | Z60: - | AA60: - | AB60: -
B61: Heimar Mata | C61: 0 | D61: Heimar Mata | E61: 10 | F61: Eduardo Henrique | G61: 51 | H61: Fernando Lobo | I61: 51 | J61: Ivan Renault | K61: 30 | L61: Fernando Lobo | M61: 81 | N61: Fernando Lobo | O61: 81 | P61: Fernando Lobo | Q61: 115 | R61: Fernando Lobo | S61: 141 | T61: Fernando Lobo | U61: 165 | V61: Fernando Lobo | W61: 165 | X61: Marcelo Surerus | Y61: 191 | Z61: - | AA61: - | AB61: -
B62: Daniel Paranhos | C62: 14 | D62: Daniel Paranhos | E62: 30 | F62: Luis Almeida | G62: 47 | H62: Renato Cardoso | I62: 47 | J62: Adriano Morato | K62: 0 | L62: Renato Cardoso | M62: 71 | N62: Renato Cardoso | O62: 92 | P62: Renato Cardoso | Q62: 92 | R62: Renato Cardoso | S62: 109 | T62: Renato Cardoso | U62: 109 | V62: Renato Cardoso | W62: 109 | X62: Lucas Mourão | Y62: 6 | Z62: - | AA62: - | AB62: -
B63: Leonardo Oliveira | C63: 0 | D63: Leonardo Oliveira | E63: 0 | F63: Marcelo Horta | G63: 17 | H63: Fred Mello | I63: 10 | J63: Samuel Silva | K63: 25 | L63: Fred Mello | M63: 10 | N63: Fred Mello | O63: 10 | P63: Fred Mello | Q63: 10 | R63: Fred Mello | S63: 10 | T63: Fred Mello | U63: 10 | V63: Fred Mello | W63: 10 | X63: Marcus Silva | Y63: 88 | Z63: - | AA63: - | AB63: -
B64: XXX | C64: 0 | D64: XXX | E64: 0 | F64: XXX | G64: 0 | H64: XXX | I64: 0 | J64: XXX | K64: 0 | L64: XXX | M64: 0 | N64: XXX | O64: 0 | P64: XXX | Q64: 0 | R64: XXX | S64: 0 | T64: XXX | U64: 0 | V64: XXX | W64: 0 | X64: XXX | Y64: 0 | Z64: - | AA64: - | AB64: -
A65: 11º | B65: EQUIPE 11 | C65: 29 | D65: EQUIPE 11 | E65: 80 | F65: EQUIPE 6 | G65: 113 | H65: EQUIPE 4 | I65: 137 | J65: EQUIPE 2 | K65: 179 | L65: EQUIPE 4 | M65: 215 | N65: EQUIPE 4 | O65: 250 | P65: EQUIPE 4 | Q65: 281 | R65: EQUIPE 4 | S65: 332 | T65: EQUIPE 4 | U65: 363 | V65: EQUIPE 4 | W65: 415 | X65: EQUIPE 4 | Y65: 461 | Z65: =$Y$5-$Y65 -> 702 | AA65: =$Y59-$Y65 -> 96 | AB65: =$Y$29-Y65 -> 393
B66: Guilherme Alves | C66: 0 | D66: Guilherme Alves | E66: 0 | F66: Fernando Medeiros | G66: 64 | H66: Daniel Nahum | I66: 82 | J66: Claudio Junqueira | K66: 58 | L66: Daniel Nahum | M66: 143 | N66: Daniel Nahum | O66: 165 | P66: Daniel Nahum | Q66: 183 | R66: Daniel Nahum | S66: 211 | T66: Daniel Nahum | U66: 231 | V66: Daniel Nahum | W66: 283 | X66: Daniel Nahum | Y66: 329 | Z66: - | AA66: - | AB66: -
B67: Eduardo Henrique | C67: 0 | D67: Eduardo Henrique | E67: 32 | F67: Heimar Mata | G67: 10 | H67: Ivan Renault | I67: 30 | J67: Fernando Lobo | K67: 64 | L67: Ivan Renault | M67: 30 | N67: Ivan Renault | O67: 30 | P67: Ivan Renault | Q67: 43 | R67: Ivan Renault | S67: 43 | T67: Ivan Renault | U67: 43 | V67: Ivan Renault | W67: 43 | X67: Ivan Renault | Y67: 43 | Z67: - | AA67: - | AB67: -
B68: Luis Almeida | C68: 8 | D68: Luis Almeida | E68: 27 | F68: Daniel Paranhos | G68: 39 | H68: Adriano Morato | I68: 0 | J68: Renato Cardoso | K68: 47 | L68: Adriano Morato | M68: 17 | N68: Adriano Morato | O68: 30 | P68: Adriano Morato | Q68: 30 | R68: Adriano Morato | S68: 30 | T68: Adriano Morato | U68: 30 | V68: Adriano Morato | W68: 30 | X68: Adriano Morato | Y68: 30 | Z68: - | AA68: - | AB68: -
B69: Marcelo Horta | C69: 21 | D69: Marcelo Horta | E69: 21 | F69: Leonardo Oliveira | G69: 0 | H69: Samuel Silva | I69: 25 | J69: Fred Mello | K69: 10 | L69: Samuel Silva | M69: 25 | N69: Samuel Silva | O69: 25 | P69: Samuel Silva | Q69: 25 | R69: Samuel Silva | S69: 48 | T69: Samuel Silva | U69: 59 | V69: Samuel Silva | W69: 59 | X69: Samuel Silva | Y69: 59 | Z69: - | AA69: - | AB69: -
B70: XXX | C70: 0 | D70: XXX | E70: 0 | F70: XXX | G70: 0 | H70: XXX | I70: 0 | J70: XXX | K70: 0 | L70: XXX | M70: 0 | N70: XXX | O70: 0 | P70: XXX | Q70: 0 | R70: XXX | S70: 0 | T70: XXX | U70: 0 | V70: XXX | W70: 0 | X70: XXX | Y70: 0 | Z70: - | AA70: - | AB70: -

Sheet TABELA
A1: 2020 | E1: OK | I1: OK | M1: OK | Q1: OK | U1: OK | Y1: OK | AC1: OK | AG1: OK | AK1: OK | AO1: OK | AS1: OK | AW1: OK
D2: 1ª etapa | H2: 2ª etapa | L2: 3ª etapa | P2: 4ª etapa | T2: 5ª etapa | X2: 6ª etapa | AB2: 7ª etapa | AF2: 8ª etapa | AJ2: 9ª etapa | AN2: 10ª etapa | AR2: 11ª etapa | AV2: 12ª etapa
B4: Nome do (a) Piloto (a) | C4: Pontuação Geral | D4: Posição | E4: Pontos | F4: Bônus | G4: Penalidade | H4: Posição | I4: Pontos | J4: Bônus | K4: Penalidade | L4: Posição | M4: Pontos | N4: Bônus | O4: Penalidade | P4: Posição | Q4: Pontos | R4: Bônus | S4: Penalidade | T4: Posição | U4: Pontos | V4: Bônus | W4: Penalidade | X4: Posição | Y4: Pontos | Z4: Bônus | AA4: Penalidade | AB4: Posição | AC4: Pontos | AD4: Bônus | AE4: Penalidade | AF4: Posição | AG4: Pontos | AH4: Bônus | AI4: Penalidade | AJ4: Posição | AK4: Pontos | AL4: Bônus | AM4: Penalidade | AN4: Posição | AO4: Pontos | AP4: Bônus | AQ4: Penalidade | AR4: Posição | AS4: Pontos | AT4: Bônus | AU4: Penalidade | AV4: Posição | AW4: Pontos | AX4: Bônus | AY4: Penalidade | AZ4: 1º LUGAR | BA4: 2º LUGAR | BB4: 3º LUGAR | BC4: 4º LUGAR | BD4: 5º LUGAR | BE4: 6º LUGAR | BF4: 7º LUGAR | BG4: 8º LUGAR | BH4: 9º LUGAR | BI4: 10º LUGAR | BJ4: 11º LUGAR | BK4: 12º LUGAR | BL4: 13º LUGAR | BM4: 14º LUGAR | BN4: 15º LUGAR | BO4: 16º LUGAR | BP4: 17º LUGAR | BQ4: 18º LUGAR | BR4: 19º LUGAR | BS4: 20º LUGAR | BT4: 21º LUGAR | BU4: 22º LUGAR | BV4: 23º LUGAR | BW4: 24º LUGAR | BX4: 25º LUGAR | BY4: 26º LUGAR | BZ4: 27º LUGAR | CA4: 28º LUGAR | CB4: 29º LUGAR | CC4: 30º LUGAR | CD4: 31º LUGAR | CE4: 32º LUGAR | CF4: 33º LUGAR | CG4: 34º LUGAR | CH4: 35º LUGAR | CI4: 36º LUGAR | CJ4: 37º LUGAR | CK4: 38º LUGAR | CL4: 39º LUGAR | CM4: 40º LUGAR | CN4: 41º LUGAR
A5: 1 | B5: Adriano Morato | C5: 37 | D5: 34 | E5: 7 | I5: 0 | M5: 0 | P5: 24 | Q5: 17 | U5: 0 | X5: 28 | Y5: 13 | AC5: 0 | AG5: 0 | AK5: 0 | AO5: 0 | AS5: 0 | AW5: 0 | AZ5: 0 | BA5: 0 | BB5: 0 | BC5: 0 | BD5: 0 | BE5: 0 | BF5: 0 | BG5: 0 | BH5: 0 | BI5: 0 | BJ5: 0 | BK5: 0 | BL5: 0 | BM5: 0 | BN5: 0 | BO5: 0 | BP5: 0 | BQ5: 0 | BR5: 0 | BS5: 0 | BT5: 0 | BU5: 0 | BV5: 0 | BW5: 1 | BX5: 0 | BY5: 0 | BZ5: 0 | CA5: 1 | CB5: 0 | CC5: 0 | CD5: 0 | CE5: 0 | CF5: 0 | CG5: 1 | CH5: 0 | CI5: 0 | CJ5: 0 | CK5: 0 | CL5: 0 | CM5: 0 | CN5: 0
A6: 2 | B6: Alexandre Melillo | C6: 272 | D6: 11 | E6: 36 | H6: 21 | I6: 20 | L6: 9 | M6: 40 | P6: 19 | Q6: 22 | S6: SIM | T6: 15 | U6: 28 | X6: 21 | Y6: 20 | AB6: 13 | AC6: 32 | AG6: 0 | AJ6: 14 | AK6: 30 | AN6: 7 | AO6: 44 | AS6: 0 | AW6: 0 | AZ6: 0 | BA6: 0 | BB6: 0 | BC6: 0 | BD6: 0 | BE6: 0 | BF6: 1 | BG6: 0 | BH6: 1 | BI6: 0 | BJ6: 1 | BK6: 0 | BL6: 1 | BM6: 1 | BN6: 1 | BO6: 0 | BP6: 0 | BQ6: 0 | BR6: 1 | BS6: 0 | BT6: 2 | BU6: 0 | BV6: 0 | BW6: 0 | BX6: 0 | BY6: 0 | BZ6: 0 | CA6: 0 | CB6: 0 | CC6: 0 | CD6: 0 | CE6: 0 | CF6: 0 | CG6: 0 | CH6: 0 | CI6: 0 | CJ6: 0 | CK6: 0 | CL6: 0 | CM6: 0 | CN6: 0
A7: 3 | B7: Antônio Mourão | C7: 55 | D7: 7 | E7: 44 | H7: 30 | I7: 11 | M7: 0 | Q7: 0 | U7: 0 | Y7: 0 | AC7: 0 | AG7: 0 | AK7: 0 | AO7: 0 | AS7: 0 | AW7: 0 | AZ7: 0 | BA7: 0 | BB7: 0 | BC7: 0 | BD7: 0 | BE7: 0 | BF7: 0 | BG7: 0 | BH7: 0 | BI7: 0 | BJ7: 0 | BK7: 0 | BL7: 0 | BM7: 0 | BN7: 0 | BO7: 0 | BP7: 0 | BQ7: 0 | BR7: 0 | BS7: 0 | BT7: 0 | BU7: 0 | BV7: 0 | BW7: 0 | BX7: 0 | BY7: 0 | BZ7: 0 | CA7: 0 | CB7: 0 | CC7: 0 | CD7: 0 | CE7: 0 | CF7: 0 | CG7: 0 | CH7: 0 | CI7: 0 | CJ7: 0 | CK7: 0 | CL7: 0 | CM7: 0 | CN7: 0
A8: 4 | B8: Cláudio Dumont | C8: 269 | D8: 3 | E8: 52 | H8: 29 | I8: 12 | L8: 21 | M8: 20 | O8: SIM | P8: 10 | Q8: 38 | T8: 1 | U8: 60 | Y8: 0 | AC8: 0 | AF8: 2 | AG8: 55 | AK8: 0 | AN8: 13 | AO8: 32 | AS8: 0 | AW8: 0 | AZ8: 0 | BA8: 0 | BB8: 0 | BC8: 0 | BD8: 0 | BE8: 0 | BF8: 0 | BG8: 0 | BH8: 0 | BI8: 0 | BJ8: 0 | BK8: 0 | BL8: 0 | BM8: 0 | BN8: 0 | BO8: 0 | BP8: 0 | BQ8: 0 | BR8: 0 | BS8: 0 | BT8: 0 | BU8: 0 | BV8: 0 | BW8: 0 | BX8: 0 | BY8: 0 | BZ8: 0 | CA8: 0 | CB8: 0 | CC8: 0 | CD8: 0 | CE8: 0 | CF8: 0 | CG8: 0 | CH8: 0 | CI8: 0 | CJ8: 0 | CK8: 0 | CL8: 0 | CM8: 0 | CN8: 0
A9: 5 | B9: Claudio Junqueira | C9: 282 | D9: 15 | E9: 28 | H9: 14 | I9: 30 | L9: 33 | M9: 8 | Q9: 0 | U9: 0 | X9: 17 | Y9: 24 | AB9: 11 | AC9: 36 | AG9: 0 | AJ9: 11 | AK9: 36 | AN9: 9 | AO9: 40 | AR9: 10 | AS9: 38 | AV9: 8 | AW9: 42 | AZ9: 0 | BA9: 0 | BB9: 0 | BC9: 0 | BD9: 0 | BE9: 0 | BF9: 0 | BG9: 0 | BH9: 0 | BI9: 0 | BJ9: 0 | BK9: 0 | BL9: 0 | BM9: 0 | BN9: 0 | BO9: 0 | BP9: 0 | BQ9: 0 | BR9: 0 | BS9: 0 | BT9: 0 | BU9: 0 | BV9: 0 | BW9: 0 | BX9: 0 | BY9: 0 | BZ9: 0 | CA9: 0 | CB9: 0 | CC9: 0 | CD9: 0 | CE9: 0 | CF9: 0 | CG9: 0 | CH9: 0 | CI9: 0 | CJ9: 0 | CK9: 0 | CL9: 0 | CM9: 0 | CN9: 0
A10: 6 | B10: Daniel Nahum | C10: 375 | D10: 12 | E10: 34 | H10: 23 | I10: 18 | L10: 5 | M10: 48 | P10: 22 | Q10: 19 | T10: 8 | U10: 42 | X10: 19 | Y10: 22 | AB10: 21 | AC10: 20 | AF10: 21 | AG10: 20 | AJ10: 15 | AK10: 28 | AN10: 16 | AO10: 26 | AR10: 3 | AS10: 52 | AV10: 6 | AW10: 46 | AZ10: 0 | BA10: 0 | BB10: 0 | BC10: 0 | BD10: 0 | BE10: 0 | BF10: 0 | BG10: 0 | BH10: 0 | BI10: 0 | BJ10: 0 | BK10: 0 | BL10: 0 | BM10: 0 | BN10: 0 | BO10: 0 | BP10: 0 | BQ10: 0 | BR10: 0 | BS10: 0 | BT10: 0 | BU10: 0 | BV10: 0 | BW10: 0 | BX10: 0 | BY10: 0 | BZ10: 0 | CA10: 0 | CB10: 0 | CC10: 0 | CD10: 0 | CE10: 0 | CF10: 0 | CG10: 0 | CH10: 0 | CI10: 0 | CJ10: 0 | CK10: 0 | CL10: 0 | CM10: 0 | CN10: 0
A11: 7 | B11: Daniel Paranhos | C11: 180 | D11: 27 | E11: 14 | H11: 25 | I11: 16 | L11: 18 | M11: 23 | P11: 20 | Q11: 21 | T11: 10 | U11: 38 | X11: 20 | Y11: 21 | AB11: 17 | AC11: 24 | AF11: 18 | AG11: 23 | AK11: 0 | AO11: 0 | AS11: 0 | AW11: 0 | AZ11: 0 | BA11: 0 | BB11: 0 | BC11: 0 | BD11: 0 | BE11: 0 | BF11: 0 | BG11: 0 | BH11: 0 | BI11: 0 | BJ11: 0 | BK11: 0 | BL11: 0 | BM11: 0 | BN11: 0 | BO11: 0 | BP11: 0 | BQ11: 0 | BR11: 0 | BS11: 0 | BT11: 0 | BU11: 0 | BV11: 0 | BW11: 0 | BX11: 0 | BY11: 0 | BZ11: 0 | CA11: 0 | CB11: 0 | CC11: 0 | CD11: 0 | CE11: 0 | CF11: 0 | CG11: 0 | CH11: 0 | CI11: 0 | CJ11: 0 | CK11: 0 | CL11: 0 | CM11: 0 | CN11: 0
A12: 8 | B12: Diego Silva | C12: 362 | D12: 24 | E12: 17 | H12: 20 | I12: 21 | L12: 19 | M12: 22 | P12: 16 | Q12: 26 | T12: 19 | U12: 22 | X12: 10 | Y12: 38 | AB12: 6 | AC12: 46 | AF12: 19 | AG12: 22 | AJ12: 9 | AK12: 40 | AN12: 6 | AO12: 46 | AR12: 16 | AS12: 26 | AV12: 11 | AW12: 36 | AZ12: 0 | BA12: 0 | BB12: 0 | BC12: 0 | BD12: 0 | BE12: 0 | BF12: 0 | BG12: 0 | BH12: 0 | BI12: 0 | BJ12: 0 | BK12: 0 | BL12: 0 | BM12: 0 | BN12: 0 | BO12: 0 | BP12: 0 | BQ12: 0 | BR12: 0 | BS12: 0 | BT12: 0 | BU12: 0 | BV12: 0 | BW12: 0 | BX12: 0 | BY12: 0 | BZ12: 0 | CA12: 0 | CB12: 0 | CC12: 0 | CD12: 0 | CE12: 0 | CF12: 0 | CG12: 0 | CH12: 0 | CI12: 0 | CJ12: 0 | CK12: 0 | CL12: 0 | CM12: 0 | CN12: 0
A13: 9 | B13: Eduardo Henrique | C13: 369 | E13: 0 | H13: 13 | I13: 32 | L13: 22 | M13: 19 | P13: 4 | Q13: 50 | T13: 16 | U13: 26 | X13: 12 | Y13: 34 | AB13: 12 | AC13: 34 | AF13: 12 | AG13: 34 | AJ13: 21 | AK13: 20 | AN13: 3 | AO13: 52 | AR13: 8 | AS13: 42 | AV13: 16 | AW13: 26 | AZ13: 0 | BA13: 0 | BB13: 0 | BC13: 0 | BD13: 0 | BE13: 0 | BF13: 0 | BG13: 0 | BH13: 0 | BI13: 0 | BJ13: 0 | BK13: 0 | BL13: 0 | BM13: 0 | BN13: 0 | BO13: 0 | BP13: 0 | BQ13: 0 | BR13: 0 | BS13: 0 | BT13: 0 | BU13: 0 | BV13: 0 | BW13: 0 | BX13: 0 | BY13: 0 | BZ13: 0 | CA13: 0 | CB13: 0 | CC13: 0 | CD13: 0 | CE13: 0 | CF13: 0 | CG13: 0 | CH13: 0 | CI13: 0 | CJ13: 0 | CK13: 0 | CL13: 0 | CM13: 0 | CN13: 0
A14: 10 | B14: Fernando Lobo | C14: 188 | D14: 28 | E14: 13 | H14: 9 | I14: 40 | L14: 30 | M14: 11 | P14: 12 | Q14: 34 | T14: 24 | U14: 17 | X14: 34 | Y14: 7 | AA14: SIM | AC14: 0 | AF14: 25 | AG14: 16 | AJ14: 16 | AK14: 26 | AN14: 17 | AO14: 24 | AS14: 0 | AW14: 0 | AZ14: 0 | BA14: 0 | BB14: 0 | BC14: 0 | BD14: 0 | BE14: 0 | BF14: 0 | BG14: 0 | BH14: 0 | BI14: 0 | BJ14: 0 | BK14: 0 | BL14: 0 | BM14: 0 | BN14: 0 | BO14: 0 | BP14: 0 | BQ14: 0 | BR14: 0 | BS14: 0 | BT14: 0 | BU14: 0 | BV14: 0 | BW14: 0 | BX14: 0 | BY14: 0 | BZ14: 0 | CA14: 0 | CB14: 0 | CC14: 0 | CD14: 0 | CE14: 0 | CF14: 0 | CG14: 0 | CH14: 0 | CI14: 0 | CJ14: 0 | CK14: 0 | CL14: 0 | CM14: 0 | CN14: 0
A15: 11 | B15: Fernando Medeiros | C15: 532 | D15: 18 | E15: 23 | H15: 10 | I15: 38 | L15: 16 | M15: 26 | P15: 2 | Q15: 55 | T15: 2 | U15: 55 | V15: 2 | X15: 8 | Y15: 42 | AB15: 5 | AC15: 48 | AD15: 2 | AF15: 4 | AG15: 50 | AH15: 2 | AJ15: 3 | AK15: 52 | AN15: 8 | AO15: 42 | AR15: 2 | AS15: 55 | AV15: 9 | AW15: 40 | AZ15: 0 | BA15: 0 | BB15: 0 | BC15: 0 | BD15: 0 | BE15: 0 | BF15: 0 | BG15: 0 | BH15: 0 | BI15: 0 | BJ15: 0 | BK15: 0 | BL15: 0 | BM15: 0 | BN15: 0 | BO15: 0 | BP15: 0 | BQ15: 0 | BR15: 0 | BS15: 0 | BT15: 0 | BU15: 0 | BV15: 0 | BW15: 0 | BX15: 0 | BY15: 0 | BZ15: 0 | CA15: 0 | CB15: 0 | CC15: 0 | CD15: 0 | CE15: 0 | CF15: 0 | CG15: 0 | CH15: 0 | CI15: 0 | CJ15: 0 | CK15: 0 | CL15: 0 | CM15: 0 | CN15: 0
A16: 12 | B16: Fred Mello | C16: 10 | E16: 0 | I16: 0 | L16: 31 | M16: 10 | Q16: 0 | U16: 0 | Y16: 0 | AC16: 0 | AG16: 0 | AK16: 0 | AO16: 0 | AS16: 0 | AW16: 0 | AZ16: 0 | BA16: 0 | BB16: 0 | BC16: 0 | BD16: 0 | BE16: 0 | BF16: 0 | BG16: 0 | BH16: 0 | BI16: 0 | BJ16: 0 | BK16: 0 | BL16: 0 | BM16: 0 | BN16: 0 | BO16: 0 | BP16: 0 | BQ16: 0 | BR16: 0 | BS16: 0 | BT16: 0 | BU16: 0 | BV16: 0 | BW16: 0 | BX16: 0 | BY16: 0 | BZ16: 0 | CA16: 0 | CB16: 0 | CC16: 0 | CD16: 0 | CE16: 0 | CF16: 0 | CG16: 0 | CH16: 0 | CI16: 0 | CJ16: 0 | CK16: 0 | CL16: 0 | CM16: 0 | CN16: 0
A17: 13 | B17: Guilherme Alves | C17: 350 | E17: 0 | I17: 0 | L17: 32 | M17: 9 | P17: 18 | Q17: 23 | T17: 3 | U17: 52 | X17: 5 | Y17: 48 | AB17: 8 | AC17: 42 | AF17: 14 | AG17: 30 | AJ17: 12 | AK17: 34 | AN17: 5 | AO17: 48 | AP17: 2 | AR17: 17 | AS17: 24 | AV17: 10 | AW17: 38 | AZ17: 0 | BA17: 0 | BB17: 0 | BC17: 0 | BD17: 0 | BE17: 0 | BF17: 0 | BG17: 0 | BH17: 0 | BI17: 0 | BJ17: 0 | BK17: 0 | BL17: 0 | BM17: 0 | BN17: 0 | BO17: 0 | BP17: 0 | BQ17: 0 | BR17: 0 | BS17: 0 | BT17: 0 | BU17: 0 | BV17: 0 | BW17: 0 | BX17: 0 | BY17: 0 | BZ17: 0 | CA17: 0 | CB17: 0 | CC17: 0 | CD17: 0 | CE17: 0 | CF17: 0 | CG17: 0 | CH17: 0 | CI17: 0 | CJ17: 0 | CK17: 0 | CL17: 0 | CM17: 0 | CN17: 0
A18: 14 | B18: Heimar Mata | C18: 51 | E18: 0 | H18: 31 | I18: 10 | M18: 0 | Q18: 0 | U18: 0 | X18: 22 | Y18: 19 | AC18: 0 | AG18: 0 | AJ18: 19 | AK18: 22 | AO18: 0 | AS18: 0 | AW18: 0 | AZ18: 0 | BA18: 0 | BB18: 0 | BC18: 0 | BD18: 0 | BE18: 0 | BF18: 0 | BG18: 0 | BH18: 0 | BI18: 0 | BJ18: 0 | BK18: 0 | BL18: 0 | BM18: 0 | BN18: 0 | BO18: 0 | BP18: 0 | BQ18: 0 | BR18: 0 | BS18: 0 | BT18: 0 | BU18: 0 | BV18: 0 | BW18: 0 | BX18: 0 | BY18: 0 | BZ18: 0 | CA18: 0 | CB18: 0 | CC18: 0 | CD18: 0 | CE18: 0 | CF18: 0 | CG18: 0 | CH18: 0 | CI18: 0 | CJ18: 0 | CK18: 0 | CL18: 0 | CM18: 0 | CN18: 0
A19: 15 | B19: Ivan Renault | C19: 43 | D19: 14 | E19: 30 | H19: 28 | I19: 13 | M19: 0 | Q19: 0 | U19: 0 | Y19: 0 | AC19: 0 | AG19: 0 | AK19: 0 | AO19: 0 | AS19: 0 | AW19: 0 | AZ19: 0 | BA19: 0 | BB19: 0 | BC19: 0 | BD19: 0 | BE19: 0 | BF19: 0 | BG19: 0 | BH19: 0 | BI19: 0 | BJ19: 0 | BK19: 0 | BL19: 0 | BM19: 0 | BN19: 0 | BO19: 0 | BP19: 0 | BQ19: 0 | BR19: 0 | BS19: 0 | BT19: 0 | BU19: 0 | BV19: 0 | BW19: 0 | BX19: 0 | BY19: 0 | BZ19: 0 | CA19: 0 | CB19: 0 | CC19: 0 | CD19: 0 | CE19: 0 | CF19: 0 | CG19: 0 | CH19: 0 | CI19: 0 | CJ19: 0 | CK19: 0 | CL19: 0 | CM19: 0 | CN19: 0
A20: 16 | B20: Jarbas Reis | C20: 293 | D20: 16 | E20: 26 | H20: 12 | I20: 34 | L20: 11 | M20: 36 | P20: 30 | Q20: 11 | S20: SIM | T20: 32 | U20: 9 | W20: SIM | X20: 26 | Y20: 15 | AB20: 10 | AC20: 38 | AF20: 10 | AG20: 38 | AJ20: 5 | AK20: 48 | AN20: 10 | AO20: 38 | AS20: 0 | AW20: 0 | AZ20: 0 | BA20: 0 | BB20: 0 | BC20: 0 | BD20: 0 | BE20: 0 | BF20: 0 | BG20: 0 | BH20: 0 | BI20: 0 | BJ20: 0 | BK20: 0 | BL20: 0 | BM20: 0 | BN20: 0 | BO20: 0 | BP20: 0 | BQ20: 0 | BR20: 0 | BS20: 0 | BT20: 0 | BU20: 0 | BV20: 0 | BW20: 0 | BX20: 0 | BY20: 0 | BZ20: 0 | CA20: 0 | CB20: 0 | CC20: 0 | CD20: 0 | CE20: 0 | CF20: 0 | CG20: 0 | CH20: 0 | CI20: 0 | CJ20: 0 | CK20: 0 | CL20: 0 | CM20: 0 | CN20: 0
A21: 17 | B21: Leandro Malias | C21: 53 | D21: 22 | E21: 19 | H21: 24 | I21: 17 | M21: 0 | Q21: 0 | U21: 0 | X21: 24 | Y21: 17 | AC21: 0 | AG21: 0 | AK21: 0 | AO21: 0 | AS21: 0 | AW21: 0 | AZ21: 0 | BA21: 0 | BB21: 0 | BC21: 0 | BD21: 0 | BE21: 0 | BF21: 0 | BG21: 0 | BH21: 0 | BI21: 0 | BJ21: 0 | BK21: 0 | BL21: 0 | BM21: 0 | BN21: 0 | BO21: 0 | BP21: 0 | BQ21: 0 | BR21: 0 | BS21: 0 | BT21: 0 | BU21: 0 | BV21: 0 | BW21: 0 | BX21: 0 | BY21: 0 | BZ21: 0 | CA21: 0 | CB21: 0 | CC21: 0 | CD21: 0 | CE21: 0 | CF21: 0 | CG21: 0 | CH21: 0 | CI21: 0 | CJ21: 0 | CK21: 0 | CL21: 0 | CM21: 0 | CN21: 0
A22: 18 | B22: Leonardo Bastos | C22: 392 | D22: 26 | E22: 15 | H22: 19 | I22: 22 | L22: 26 | M22: 15 | P22: 6 | Q22: 46 | T22: 32 | U22: 9 | W22: SIM | X22: 23 | Y22: 18 | AB22: 3 | AC22: 52 | AF22: 16 | AG22: 26 | AJ22: 10 | AK22: 38 | AN22: 2 | AO22: 55 | AR22: 5 | AS22: 48 | AV22: 5 | AW22: 48 | AZ22: 0 | BA22: 0 | BB22: 0 | BC22: 0 | BD22: 0 | BE22: 0 | BF22: 0 | BG22: 0 | BH22: 0 | BI22: 0 | BJ22: 0 | BK22: 0 | BL22: 0 | BM22: 0 | BN22: 0 | BO22: 0 | BP22: 0 | BQ22: 0 | BR22: 0 | BS22: 0 | BT22: 0 | BU22: 0 | BV22: 0 | BW22: 0 | BX22: 0 | BY22: 0 | BZ22: 0 | CA22: 0 | CB22: 0 | CC22: 0 | CD22: 0 | CE22: 0 | CF22: 0 | CG22: 0 | CH22: 0 | CI22: 0 | CJ22: 0 | CK22: 0 | CL22: 0 | CM22: 0 | CN22: 0
A23: 19 | B23: Lucas Mourão | C23: 6 | D23: 35 | E23: 6 | I23: 0 | M23: 0 | Q23: 0 | U23: 0 | Y23: 0 | AC23: 0 | AG23: 0 | AK23: 0 | AO23: 0 | AS23: 0 | AW23: 0 | AZ23: 0 | BA23: 0 | BB23: 0 | BC23: 0 | BD23: 0 | BE23: 0 | BF23: 0 | BG23: 0 | BH23: 0 | BI23: 0 | BJ23: 0 | BK23: 0 | BL23: 0 | BM23: 0 | BN23: 0 | BO23: 0 | BP23: 0 | BQ23: 0 | BR23: 0 | BS23: 0 | BT23: 0 | BU23: 0 | BV23: 0 | BW23: 0 | BX23: 0 | BY23: 0 | BZ23: 0 | CA23: 0 | CB23: 0 | CC23: 0 | CD23: 0 | CE23: 0 | CF23: 0 | CG23: 0 | CH23: 0 | CI23: 0 | CJ23: 0 | CK23: 0 | CL23: 0 | CM23: 0 | CN23: 0
A24: 20 | B24: Luis Almeida | C24: 170 | D24: 33 | E24: 8 | H24: 22 | I24: 19 | L24: 15 | M24: 28 | P24: 21 | Q24: 20 | T24: 21 | U24: 20 | X24: 27 | Y24: 14 | AB24: 18 | AC24: 23 | AF24: 24 | AG24: 17 | AJ24: 20 | AK24: 21 | AO24: 0 | AS24: 0 | AW24: 0 | AZ24: 0 | BA24: 0 | BB24: 0 | BC24: 0 | BD24: 0 | BE24: 0 | BF24: 0 | BG24: 0 | BH24: 0 | BI24: 0 | BJ24: 0 | BK24: 0 | BL24: 0 | BM24: 0 | BN24: 0 | BO24: 0 | BP24: 0 | BQ24: 0 | BR24: 0 | BS24: 0 | BT24: 0 | BU24: 0 | BV24: 0 | BW24: 0 | BX24: 0 | BY24: 0 | BZ24: 0 | CA24: 0 | CB24: 0 | CC24: 0 | CD24: 0 | CE24: 0 | CF24: 0 | CG24: 0 | CH24: 0 | CI24: 0 | CJ24: 0 | CK24: 0 | CL24: 0 | CM24: 0 | CN24: 0
A25: 21 | B25: Marcelo Campos | C25: 507 | D25: 6 | E25: 46 | H25: 1 | I25: 60 | J25: 2 | L25: 6 | M25: 46 | P25: 8 | Q25: 42 | T25: 27 | U25: 14 | W25: SIM | X25: 14 | Y25: 30 | AB25: 2 | AC25: 55 | AF25: 7 | AG25: 44 | AJ25: 7 | AK25: 44 | AN25: 12 | AO25: 34 | AR25: 9 | AS25: 40 | AV25: 4 | AW25: 50 | AZ25: 0 | BA25: 0 | BB25: 0 | BC25: 0 | BD25: 0 | BE25: 0 | BF25: 0 | BG25: 0 | BH25: 0 | BI25: 0 | BJ25: 0 | BK25: 0 | BL25: 0 | BM25: 0 | BN25: 0 | BO25: 0 | BP25: 0 | BQ25: 0 | BR25: 0 | BS25: 0 | BT25: 0 | BU25: 0 | BV25: 0 | BW25: 0 | BX25: 0 | BY25: 0 | BZ25: 0 | CA25: 0 | CB25: 0 | CC25: 0 | CD25: 0 | CE25: 0 | CF25: 0 | CG25: 0 | CH25: 0 | CI25: 0 | CJ25: 0 | CK25: 0 | CL25: 0 | CM25: 0 | CN25: 0
A26: 22 | B26: Marcelo Horta | C26: 38 | D26: 20 | E26: 21 | I26: 0 | L26: 24 | M26: 17 | Q26: 0 | U26: 0 | Y26: 0 | AC26: 0 | AG26: 0 | AK26: 0 | AO26: 0 | AS26: 0 | AW26: 0 | AZ26: 0 | BA26: 0 | BB26: 0 | BC26: 0 | BD26: 0 | BE26: 0 | BF26: 0 | BG26: 0 | BH26: 0 | BI26: 0 | BJ26: 0 | BK26: 0 | BL26: 0 | BM26: 0 | BN26: 0 | BO26: 0 | BP26: 0 | BQ26: 0 | BR26: 0 | BS26: 0 | BT26: 0 | BU26: 0 | BV26: 0 | BW26: 0 | BX26: 0 | BY26: 0 | BZ26: 0 | CA26: 0 | CB26: 0 | CC26: 0 | CD26: 0 | CE26: 0 | CF26: 0 | CG26: 0 | CH26: 0 | CI26: 0 | CJ26: 0 | CK26: 0 | CL26: 0 | CM26: 0 | CN26: 0
A27: 23 | B27: Marcelo Pereira | C27: 495 | D27: 2 | E27: 55 | F27: 2 | H27: 5 | I27: 48 | L27: 4 | M27: 50 | P27: 5 | Q27: 48 | T27: 5 | U27: 48 | X27: 3 | Y27: 52 | AB27: 4 | AC27: 50 | AF27: 5 | AG27: 48 | AJ27: 13 | AK27: 32 | AM27: SIM | AO27: 0 | AS27: 0 | AV27: 1 | AW27: 60 | AX27: 2 | AZ27: 0 | BA27: 0 | BB27: 0 | BC27: 0 | BD27: 0 | BE27: 0 | BF27: 0 | BG27: 0 | BH27: 0 | BI27: 0 | BJ27: 0 | BK27: 0 | BL27: 0 | BM27: 0 | BN27: 0 | BO27: 0 | BP27: 0 | BQ27: 0 | BR27: 0 | BS27: 0 | BT27: 0 | BU27: 0 | BV27: 0 | BW27: 0 | BX27: 0 | BY27: 0 | BZ27: 0 | CA27: 0 | CB27: 0 | CC27: 0 | CD27: 0 | CE27: 0 | CF27: 0 | CG27: 0 | CH27: 0 | CI27: 0 | CJ27: 0 | CK27: 0 | CL27: 0 | CM27: 0 | CN27: 0
A28: 24 | B28: Marcelo Sant'anna | C28: 388 | D28: 9 | E28: 40 | H28: 32 | I28: 9 | L28: 10 | M28: 38 | P28: 14 | Q28: 30 | T28: 7 | U28: 44 | X28: 18 | Y28: 23 | AB28: 16 | AC28: 26 | AF28: 20 | AG28: 21 | AJ28: 2 | AK28: 55 | AN28: 11 | AO28: 36 | AR28: 11 | AS28: 36 | AV28: 14 | AW28: 30 | AZ28: 0 | BA28: 0 | BB28: 0 | BC28: 0 | BD28: 0 | BE28: 0 | BF28: 0 | BG28: 0 | BH28: 0 | BI28: 0 | BJ28: 0 | BK28: 0 | BL28: 0 | BM28: 0 | BN28: 0 | BO28: 0 | BP28: 0 | BQ28: 0 | BR28: 0 | BS28: 0 | BT28: 0 | BU28: 0 | BV28: 0 | BW28: 0 | BX28: 0 | BY28: 0 | BZ28: 0 | CA28: 0 | CB28: 0 | CC28: 0 | CD28: 0 | CE28: 0 | CF28: 0 | CG28: 0 | CH28: 0 | CI28: 0 | CJ28: 0 | CK28: 0 | CL28: 0 | CM28: 0 | CN28: 0
A29: 25 | B29: Marcelo Surerus | C29: 197 | E29: 0 | I29: 0 | L29: 20 | M29: 21 | P29: 11 | Q29: 36 | T29: 12 | U29: 34 | X29: 13 | Y29: 32 | AB29: 29 | AC29: 12 | AE29: SIM | AF29: 13 | AG29: 32 | AJ29: 17 | AK29: 24 | AO29: 0 | AR29: 35 | AS29: 6 | AU29: SIM | AW29: 0 | AZ29: 0 | BA29: 0 | BB29: 0 | BC29: 0 | BD29: 0 | BE29: 0 | BF29: 0 | BG29: 0 | BH29: 0 | BI29: 0 | BJ29: 0 | BK29: 0 | BL29: 0 | BM29: 0 | BN29: 0 | BO29: 0 | BP29: 0 | BQ29: 0 | BR29: 0 | BS29: 0 | BT29: 0 | BU29: 0 | BV29: 0 | BW29: 0 | BX29: 0 | BY29: 0 | BZ29: 0 | CA29: 0 | CB29: 0 | CC29: 0 | CD29: 0 | CE29: 0 | CF29: 0 | CG29: 0 | CH29: 0 | CI29: 0 | CJ29: 0 | CK29: 0 | CL29: 0 | CM29: 0 | CN29: 0
A30: 26 | B30: Marconi Teixeira | C30: 421 | D30: 1 | E30: 60 | H30: 3 | I30: 52 | L30: 2 | M30: 55 | P30: 1 | Q30: 60 | R30: 2 | U30: 0 | X30: 1 | Y30: 60 | AB30: 7 | AC30: 44 | AF30: 8 | AG30: 42 | AK30: 0 | AO30: 0 | AR30: 6 | AS30: 46 | AW30: 0 | AZ30: 0 | BA30: 0 | BB30: 0 | BC30: 0 | BD30: 0 | BE30: 0 | BF30: 0 | BG30: 0 | BH30: 0 | BI30: 0 | BJ30: 0 | BK30: 0 | BL30: 0 | BM30: 0 | BN30: 0 | BO30: 0 | BP30: 0 | BQ30: 0 | BR30: 0 | BS30: 0 | BT30: 0 | BU30: 0 | BV30: 0 | BW30: 0 | BX30: 0 | BY30: 0 | BZ30: 0 | CA30: 0 | CB30: 0 | CC30: 0 | CD30: 0 | CE30: 0 | CF30: 0 | CG30: 0 | CH30: 0 | CI30: 0 | CJ30: 0 | CK30: 0 | CL30: 0 | CM30: 0 | CN30: 0
A31: 27 | B31: Marcus Silva | C31: 88 | D31: 8 | E31: 42 | H31: 6 | I31: 46 | M31: 0 | Q31: 0 | U31: 0 | Y31: 0 | AC31: 0 | AG31: 0 | AK31: 0 | AO31: 0 | AS31: 0 | AW31: 0 | AZ31: 0 | BA31: 0 | BB31: 0 | BC31: 0 | BD31: 0 | BE31: 0 | BF31: 0 | BG31: 0 | BH31: 0 | BI31: 0 | BJ31: 0 | BK31: 0 | BL31: 0 | BM31: 0 | BN31: 0 | BO31: 0 | BP31: 0 | BQ31: 0 | BR31: 0 | BS31: 0 | BT31: 0 | BU31: 0 | BV31: 0 | BW31: 0 | BX31: 0 | BY31: 0 | BZ31: 0 | CA31: 0 | CB31: 0 | CC31: 0 | CD31: 0 | CE31: 0 | CF31: 0 | CG31: 0 | CH31: 0 | CI31: 0 | CJ31: 0 | CK31: 0 | CL31: 0 | CM31: 0 | CN31: 0
A32: 28 | B32: Oldack Sérgio | C32: 251 | D32: 21 | E32: 20 | H32: 18 | I32: 23 | L32: 14 | M32: 30 | P32: 23 | Q32: 18 | T32: 18 | U32: 23 | X32: 6 | Y32: 46 | AB32: 22 | AC32: 19 | AF32: 9 | AG32: 40 | AK32: 0 | AO32: 0 | AS32: 0 | AV32: 13 | AW32: 32 | AZ32: 0 | BA32: 0 | BB32: 0 | BC32: 0 | BD32: 0 | BE32: 0 | BF32: 0 | BG32: 0 | BH32: 0 | BI32: 0 | BJ32: 0 | BK32: 0 | BL32: 0 | BM32: 0 | BN32: 0 | BO32: 0 | BP32: 0 | BQ32: 0 | BR32: 0 | BS32: 0 | BT32: 0 | BU32: 0 | BV32: 0 | BW32: 0 | BX32: 0 | BY32: 0 | BZ32: 0 | CA32: 0 | CB32: 0 | CC32: 0 | CD32: 0 | CE32: 0 | CF32: 0 | CG32: 0 | CH32: 0 | CI32: 0 | CJ32: 0 | CK32: 0 | CL32: 0 | CM32: 0 | CN32: 0
A33: 29 | B33: Pedro Fialho | C33: 419 | D33: 17 | E33: 24 | H33: 2 | I33: 55 | L33: 27 | M33: 14 | O33: SIM | P33: 7 | Q33: 44 | T33: 6 | U33: 46 | X33: 11 | Y33: 36 | AB33: 14 | AC33: 30 | AF33: 11 | AG33: 36 | AJ33: 23 | AK33: 18 | AN33: 4 | AO33: 50 | AR33: 13 | AS33: 32 | AV33: 12 | AW33: 34 | AZ33: 0 | BA33: 0 | BB33: 0 | BC33: 0 | BD33: 0 | BE33: 0 | BF33: 0 | BG33: 0 | BH33: 0 | BI33: 0 | BJ33: 0 | BK33: 0 | BL33: 0 | BM33: 0 | BN33: 0 | BO33: 0 | BP33: 0 | BQ33: 0 | BR33: 0 | BS33: 0 | BT33: 0 | BU33: 0 | BV33: 0 | BW33: 0 | BX33: 0 | BY33: 0 | BZ33: 0 | CA33: 0 | CB33: 0 | CC33: 0 | CD33: 0 | CE33: 0 | CF33: 0 | CG33: 0 | CH33: 0 | CI33: 0 | CJ33: 0 | CK33: 0 | CL33: 0 | CM33: 0 | CN33: 0
A34: 30 | B34: Leonardo Oliveira | C34: 379 | E34: 0 | I34: 0 | M34: 0 | Q34: 0 | T34: 26 | U34: 15 | W34: SIM | X34: 2 | Y34: 55 | Z34: 2 | AB34: 1 | AC34: 60 | AF34: 1 | AG34: 60 | AJ34: 4 | AK34: 50 | AN34: 19 | AO34: 22 | AR34: 1 | AS34: 60 | AV34: 2 | AW34: 55 | AZ34: 0 | BA34: 0 | BB34: 0 | BC34: 0 | BD34: 0 | BE34: 0 | BF34: 0 | BG34: 0 | BH34: 0 | BI34: 0 | BJ34: 0 | BK34: 0 | BL34: 0 | BM34: 0 | BN34: 0 | BO34: 0 | BP34: 0 | BQ34: 0 | BR34: 0 | BS34: 0 | BT34: 0 | BU34: 0 | BV34: 0 | BW34: 0 | BX34: 0 | BY34: 0 | BZ34: 0 | CA34: 0 | CB34: 0 | CC34: 0 | CD34: 0 | CE34: 0 | CF34: 0 | CG34: 0 | CH34: 0 | CI34: 0 | CJ34: 0 | CK34: 0 | CL34: 0 | CM34: 0 | CN34: 0
A35: 31 | B35: Rafael Alves | C35: 304 | D35: 23 | E35: 18 | H35: 16 | I35: 26 | L35: 29 | M35: 12 | P35: 13 | Q35: 32 | T35: 14 | U35: 30 | X35: 7 | Y35: 44 | AB35: 19 | AC35: 22 | AF35: 15 | AG35: 28 | AJ35: 8 | AK35: 42 | AN35: 21 | AO35: 20 | AR35: 14 | AS35: 30 | AW35: 0 | AZ35: 0 | BA35: 0 | BB35: 0 | BC35: 0 | BD35: 0 | BE35: 0 | BF35: 0 | BG35: 0 | BH35: 0 | BI35: 0 | BJ35: 0 | BK35: 0 | BL35: 0 | BM35: 0 | BN35: 0 | BO35: 0 | BP35: 0 | BQ35: 0 | BR35: 0 | BS35: 0 | BT35: 0 | BU35: 0 | BV35: 0 | BW35: 0 | BX35: 0 | BY35: 0 | BZ35: 0 | CA35: 0 | CB35: 0 | CC35: 0 | CD35: 0 | CE35: 0 | CF35: 0 | CG35: 0 | CH35: 0 | CI35: 0 | CJ35: 0 | CK35: 0 | CL35: 0 | CM35: 0 | CN35: 0
A36: 32 | B36: Raphael Reis | C36: 216 | D36: 19 | E36: 22 | H36: 8 | I36: 42 | L36: 23 | M36: 18 | P36: 9 | Q36: 40 | T36: 20 | U36: 21 | X36: 25 | Y36: 16 | AC36: 0 | AG36: 0 | AK36: 0 | AN36: 18 | AO36: 23 | AR36: 12 | AS36: 34 | AW36: 0 | AZ36: 0 | BA36: 0 | BB36: 0 | BC36: 0 | BD36: 0 | BE36: 0 | BF36: 0 | BG36: 0 | BH36: 0 | BI36: 0 | BJ36: 0 | BK36: 0 | BL36: 0 | BM36: 0 | BN36: 0 | BO36: 0 | BP36: 0 | BQ36: 0 | BR36: 0 | BS36: 0 | BT36: 0 | BU36: 0 | BV36: 0 | BW36: 0 | BX36: 0 | BY36: 0 | BZ36: 0 | CA36: 0 | CB36: 0 | CC36: 0 | CD36: 0 | CE36: 0 | CF36: 0 | CG36: 0 | CH36: 0 | CI36: 0 | CJ36: 0 | CK36: 0 | CL36: 0 | CM36: 0 | CN36: 0
A37: 33 | B37: Renato Cardoso | C37: 155 | E37: 0 | H37: 26 | I37: 15 | L37: 13 | M37: 32 | Q37: 0 | T37: 17 | U37: 24 | Y37: 0 | AB37: 20 | AC37: 21 | AF37: 23 | AG37: 18 | AJ37: 24 | AK37: 17 | AO37: 0 | AS37: 0 | AV37: 15 | AW37: 28 | AZ37: 0 | BA37: 0 | BB37: 0 | BC37: 0 | BD37: 0 | BE37: 0 | BF37: 0 | BG37: 0 | BH37: 0 | BI37: 0 | BJ37: 0 | BK37: 0 | BL37: 0 | BM37: 0 | BN37: 0 | BO37: 0 | BP37: 0 | BQ37: 0 | BR37: 0 | BS37: 0 | BT37: 0 | BU37: 0 | BV37: 0 | BW37: 0 | BX37: 0 | BY37: 0 | BZ37: 0 | CA37: 0 | CB37: 0 | CC37: 0 | CD37: 0 | CE37: 0 | CF37: 0 | CG37: 0 | CH37: 0 | CI37: 0 | CJ37: 0 | CK37: 0 | CL37: 0 | CM37: 0 | CN37: 0
A38: 34 | B38: Roberto Veloso | C38: 58 | E38: 0 | H38: 27 | I38: 14 | L38: 7 | M38: 44 | Q38: 0 | U38: 0 | Y38: 0 | AC38: 0 | AG38: 0 | AK38: 0 | AO38: 0 | AS38: 0 | AW38: 0 | AZ38: 0 | BA38: 0 | BB38: 0 | BC38: 0 | BD38: 0 | BE38: 0 | BF38: 0 | BG38: 0 | BH38: 0 | BI38: 0 | BJ38: 0 | BK38: 0 | BL38: 0 | BM38: 0 | BN38: 0 | BO38: 0 | BP38: 0 | BQ38: 0 | BR38: 0 | BS38: 0 | BT38: 0 | BU38: 0 | BV38: 0 | BW38: 0 | BX38: 0 | BY38: 0 | BZ38: 0 | CA38: 0 | CB38: 0 | CC38: 0 | CD38: 0 | CE38: 0 | CF38: 0 | CG38: 0 | CH38: 0 | CI38: 0 | CJ38: 0 | CK38: 0 | CL38: 0 | CM38: 0 | CN38: 0
A39: 35 | B39: Rodrigo Mercadante | C39: 382 | D39: 13 | E39: 32 | H39: 34 | I39: 7 | L39: 8 | M39: 42 | P39: 15 | Q39: 28 | T39: 9 | U39: 40 | X39: 9 | Y39: 40 | AB39: 15 | AC39: 28 | AF39: 22 | AG39: 19 | AJ39: 6 | AK39: 46 | AN39: 15 | AO39: 28 | AR39: 15 | AS39: 28 | AV39: 7 | AW39: 44 | AZ39: 0 | BA39: 0 | BB39: 0 | BC39: 0 | BD39: 0 | BE39: 0 | BF39: 0 | BG39: 0 | BH39: 0 | BI39: 0 | BJ39: 0 | BK39: 0 | BL39: 0 | BM39: 0 | BN39: 0 | BO39: 0 | BP39: 0 | BQ39: 0 | BR39: 0 | BS39: 0 | BT39: 0 | BU39: 0 | BV39: 0 | BW39: 0 | BX39: 0 | BY39: 0 | BZ39: 0 | CA39: 0 | CB39: 0 | CC39: 0 | CD39: 0 | CE39: 0 | CF39: 0 | CG39: 0 | CH39: 0 | CI39: 0 | CJ39: 0 | CK39: 0 | CL39: 0 | CM39: 0 | CN39: 0
A40: 36 | B40: Samuel Silva | C40: 59 | D40: 32 | E40: 9 | I40: 0 | L40: 25 | M40: 16 | Q40: 0 | U40: 0 | Y40: 0 | AB40: 30 | AC40: 11 | AE40: SIM | AG40: 0 | AJ40: 18 | AK40: 23 | AO40: 0 | AS40: 0 | AW40: 0 | AZ40: 0 | BA40: 0 | BB40: 0 | BC40: 0 | BD40: 0 | BE40: 0 | BF40: 0 | BG40: 0 | BH40: 0 | BI40: 0 | BJ40: 0 | BK40: 0 | BL40: 0 | BM40: 0 | BN40: 0 | BO40: 0 | BP40: 0 | BQ40: 0 | BR40: 0 | BS40: 0 | BT40: 0 | BU40: 0 | BV40: 0 | BW40: 0 | BX40: 0 | BY40: 0 | BZ40: 0 | CA40: 0 | CB40: 0 | CC40: 0 | CD40: 0 | CE40: 0 | CF40: 0 | CG40: 0 | CH40: 0 | CI40: 0 | CJ40: 0 | CK40: 0 | CL40: 0 | CM40: 0 | CN40: 0
A41: 37 | B41: Sylvio Junior | C41: 10 | D41: 31 | E41: 10 | I41: 0 | M41: 0 | Q41: 0 | U41: 0 | Y41: 0 | AC41: 0 | AG41: 0 | AK41: 0 | AO41: 0 | AS41: 0 | AW41: 0 | AZ41: 0 | BA41: 0 | BB41: 0 | BC41: 0 | BD41: 0 | BE41: 0 | BF41: 0 | BG41: 0 | BH41: 0 | BI41: 0 | BJ41: 0 | BK41: 0 | BL41: 0 | BM41: 0 | BN41: 0 | BO41: 0 | BP41: 0 | BQ41: 0 | BR41: 0 | BS41: 0 | BT41: 0 | BU41: 0 | BV41: 0 | BW41: 0 | BX41: 0 | BY41: 0 | BZ41: 0 | CA41: 0 | CB41: 0 | CC41: 0 | CD41: 0 | CE41: 0 | CF41: 0 | CG41: 0 | CH41: 0 | CI41: 0 | CJ41: 0 | CK41: 0 | CL41: 0 | CM41: 0 | CN41: 0
A42: 38 | B42: Thiara Silveira | C42: 66 | D42: 10 | E42: 38 | H42: 15 | I42: 28 | M42: 0 | Q42: 0 | U42: 0 | Y42: 0 | AC42: 0 | AG42: 0 | AK42: 0 | AO42: 0 | AS42: 0 | AW42: 0 | AZ42: 0 | BA42: 0 | BB42: 0 | BC42: 0 | BD42: 0 | BE42: 0 | BF42: 0 | BG42: 0 | BH42: 0 | BI42: 0 | BJ42: 0 | BK42: 0 | BL42: 0 | BM42: 0 | BN42: 0 | BO42: 0 | BP42: 0 | BQ42: 0 | BR42: 0 | BS42: 0 | BT42: 0 | BU42: 0 | BV42: 0 | BW42: 0 | BX42: 0 | BY42: 0 | BZ42: 0 | CA42: 0 | CB42: 0 | CC42: 0 | CD42: 0 | CE42: 0 | CF42: 0 | CG42: 0 | CH42: 0 | CI42: 0 | CJ42: 0 | CK42: 0 | CL42: 0 | CM42: 0 | CN42: 0
A43: 39 | B43: Wesley Bambirra | C43: 532 | D43: 4 | E43: 50 | H43: 7 | I43: 44 | L43: 12 | M43: 34 | P43: 3 | Q43: 52 | T43: 4 | U43: 50 | X43: 16 | Y43: 26 | AB43: 9 | AC43: 40 | AF43: 3 | AG43: 52 | AJ43: 1 | AK43: 60 | AL43: 2 | AN43: 23 | AO43: 18 | AQ43: SIM | AR43: 4 | AS43: 50 | AT43: 2 | AV43: 3 | AW43: 52 | AZ43: 0 | BA43: 0 | BB43: 0 | BC43: 0 | BD43: 0 | BE43: 0 | BF43: 0 | BG43: 0 | BH43: 0 | BI43: 0 | BJ43: 0 | BK43: 0 | BL43: 0 | BM43: 0 | BN43: 0 | BO43: 0 | BP43: 0 | BQ43: 0 | BR43: 0 | BS43: 0 | BT43: 0 | BU43: 0 | BV43: 0 | BW43: 0 | BX43: 0 | BY43: 0 | BZ43: 0 | CA43: 0 | CB43: 0 | CC43: 0 | CD43: 0 | CE43: 0 | CF43: 0 | CG43: 0 | CH43: 0 | CI43: 0 | CJ43: 0 | CK43: 0 | CL43: 0 | CM43: 0 | CN43: 0
A44: 40 | B44: Wesley Camargos | C44: 71 | E44: 0 | I44: 0 | L44: 28 | M44: 13 | Q44: 0 | T44: 23 | U44: 18 | Y44: 0 | AC44: 0 | AG44: 0 | AJ44: 22 | AK44: 19 | AN44: 20 | AO44: 21 | AS44: 0 | AW44: 0 | AZ44: 0 | BA44: 0 | BB44: 0 | BC44: 0 | BD44: 0 | BE44: 0 | BF44: 0 | BG44: 0 | BH44: 0 | BI44: 0 | BJ44: 0 | BK44: 0 | BL44: 0 | BM44: 0 | BN44: 0 | BO44: 0 | BP44: 0 | BQ44: 0 | BR44: 0 | BS44: 0 | BT44: 0 | BU44: 0 | BV44: 0 | BW44: 0 | BX44: 0 | BY44: 0 | BZ44: 0 | CA44: 0 | CB44: 0 | CC44: 0 | CD44: 0 | CE44: 0 | CF44: 0 | CG44: 0 | CH44: 0 | CI44: 0 | CJ44: 0 | CK44: 0 | CL44: 0 | CM44: 0 | CN44: 0
A45: 41 | B45: Wesley Canuto | C45: 237 | D45: 25 | E45: 16 | H45: 11 | I45: 36 | L45: 17 | M45: 24 | P45: 17 | Q45: 24 | T45: 13 | U45: 32 | X45: 15 | Y45: 28 | AC45: 0 | AF45: 17 | AG45: 24 | AK45: 0 | AN45: 14 | AO45: 30 | AS45: 0 | AV45: 18 | AW45: 23 | AZ45: 0 | BA45: 0 | BB45: 0 | BC45: 0 | BD45: 0 | BE45: 0 | BF45: 0 | BG45: 0 | BH45: 0 | BI45: 0 | BJ45: 0 | BK45: 0 | BL45: 0 | BM45: 0 | BN45: 0 | BO45: 0 | BP45: 0 | BQ45: 0 | BR45: 0 | BS45: 0 | BT45: 0 | BU45: 0 | BV45: 0 | BW45: 0 | BX45: 0 | BY45: 0 | BZ45: 0 | CA45: 0 | CB45: 0 | CC45: 0 | CD45: 0 | CE45: 0 | CF45: 0 | CG45: 0 | CH45: 0 | CI45: 0 | CJ45: 0 | CK45: 0 | CL45: 0 | CM45: 0 | CN45: 0
A46: 42 | B46: Will Conrad | C46: 20 | D46: 29 | E46: 12 | H46: 33 | I46: 8 | M46: 0 | Q46: 0 | U46: 0 | Y46: 0 | AC46: 0 | AG46: 0 | AK46: 0 | AO46: 0 | AS46: 0 | AW46: 0 | AZ46: 0 | BA46: 0 | BB46: 0 | BC46: 0 | BD46: 0 | BE46: 0 | BF46: 0 | BG46: 0 | BH46: 0 | BI46: 0 | BJ46: 0 | BK46: 0 | BL46: 0 | BM46: 0 | BN46: 0 | BO46: 0 | BP46: 0 | BQ46: 0 | BR46: 0 | BS46: 0 | BT46: 0 | BU46: 0 | BV46: 0 | BW46: 0 | BX46: 0 | BY46: 0 | BZ46: 0 | CA46: 0 | CB46: 0 | CC46: 0 | CD46: 0 | CE46: 0 | CF46: 0 | CG46: 0 | CH46: 0 | CI46: 0 | CJ46: 0 | CK46: 0 | CL46: 0 | CM46: 0 | CN46: 0
A47: 43 | B47: Junior Torres | C47: 15 | D47: 30 | E47: 11 | I47: 0 | M47: 0 | Q47: 0 | T47: 37 | U47: 4 | W47: SIM | Y47: 0 | AC47: 0 | AG47: 0 | AK47: 0 | AO47: 0 | AS47: 0 | AW47: 0 | AZ47: 0 | BA47: 0 | BB47: 0 | BC47: 0 | BD47: 0 | BE47: 0 | BF47: 0 | BG47: 0 | BH47: 0 | BI47: 0 | BJ47: 0 | BK47: 0 | BL47: 0 | BM47: 0 | BN47: 0 | BO47: 0 | BP47: 0 | BQ47: 0 | BR47: 0 | BS47: 0 | BT47: 0 | BU47: 0 | BV47: 0 | BW47: 0 | BX47: 0 | BY47: 0 | BZ47: 0 | CA47: 0 | CB47: 0 | CC47: 0 | CD47: 0 | CE47: 0 | CF47: 0 | CG47: 0 | CH47: 0 | CI47: 0 | CJ47: 0 | CK47: 0 | CL47: 0 | CM47: 0 | CN47: 0
A48: 44 | B48: Roberto Torres | C48: 368 | E48: 0 | H48: 17 | I48: 24 | L48: 3 | M48: 52 | P48: 25 | Q48: 16 | T48: 11 | U48: 36 | X48: 4 | Y48: 50 | AC48: 0 | AF48: 6 | AG48: 46 | AJ48: 25 | AK48: 16 | AN48: 1 | AO48: 60 | AR48: 7 | AS48: 44 | AV48: 17 | AW48: 24 | AZ48: 1 | BA48: 0 | BB48: 1 | BC48: 1 | BD48: 0 | BE48: 1 | BF48: 1 | BG48: 0 | BH48: 0 | BI48: 0 | BJ48: 1 | BK48: 0 | BL48: 0 | BM48: 0 | BN48: 0 | BO48: 0 | BP48: 2 | BQ48: 0 | BR48: 0 | BS48: 0 | BT48: 0 | BU48: 0 | BV48: 0 | BW48: 0 | BX48: 2 | BY48: 0 | BZ48: 0 | CA48: 0 | CB48: 0 | CC48: 0 | CD48: 0 | CE48: 0 | CF48: 0 | CG48: 0 | CH48: 0 | CI48: 0 | CJ48: 0 | CK48: 0 | CL48: 0 | CM48: 0 | CN48: 0
A49: 45 | B49: XXXXXXX | C49: 0 | E49: 0 | I49: 0 | M49: 0 | Q49: 0 | U49: 0 | Y49: 0 | AC49: 0 | AG49: 0 | AK49: 0 | AO49: 0 | AS49: 0 | AW49: 0 | AZ49: 0 | BA49: 0 | BB49: 0 | BC49: 0 | BD49: 0 | BE49: 0 | BF49: 0 | BG49: 0 | BH49: 0 | BI49: 0 | BJ49: 0 | BK49: 0 | BL49: 0 | BM49: 0 | BN49: 0 | BO49: 0 | BP49: 0 | BQ49: 0 | BR49: 0 | BS49: 0 | BT49: 0 | BU49: 0 | BV49: 0 | BW49: 0 | BX49: 0 | BY49: 0 | BZ49: 0 | CA49: 0 | CB49: 0 | CC49: 0 | CD49: 0 | CE49: 0 | CF49: 0 | CG49: 0 | CH49: 0 | CI49: 0 | CJ49: 0 | CK49: 0 | CL49: 0 | CM49: 0 | CN49: 0

Sheet Classificação Geral
A1: 2020 | E1: OK | I1: OK | M1: OK | Q1: OK | U1: OK | Y1: OK | AC1: OK | AG1: OK | AK1: OK | AO1: OK | AS1: OK | AW1: OK
D2: 1ª etapa | H2: 2ª etapa | L2: 3ª etapa | P2: 4ª etapa | T2: 5ª etapa | X2: 6ª etapa | AB2: 7ª etapa | AF2: 8ª etapa | AJ2: 9ª etapa | AN2: 10ª etapa | AR2: 11ª etapa | AV2: 12ª etapa
B4: Nome do (a) Piloto (a) | C4: Pontuação Geral | D4: Posição | E4: Pontos | F4: Bônus | G4: Penalidade | H4: Posição | I4: Pontos | J4: Bônus | K4: Penalidade | L4: Posição | M4: Pontos | N4: Bônus | O4: Penalidade | P4: Posição | Q4: Pontos | R4: Bônus | S4: Penalidade | T4: Posição | U4: Pontos | V4: Bônus | W4: Penalidade | X4: Posição | Y4: Pontos | Z4: Bônus | AA4: Penalidade | AB4: Posição | AC4: Pontos | AD4: Bônus | AE4: Penalidade | AF4: Posição | AG4: Pontos | AH4: Bônus | AI4: Penalidade | AJ4: Posição | AK4: Pontos | AL4: Bônus | AM4: Penalidade | AN4: Posição | AO4: Pontos | AP4: Bônus | AQ4: Penalidade | AR4: Posição | AS4: Pontos | AT4: Bônus | AU4: Penalidade | AV4: Posição | AW4: Pontos | AX4: Bônus | AY4: Penalidade | AZ4: 1º LUGAR | BA4: 2º LUGAR | BB4: 3º LUGAR | BC4: 4º LUGAR | BD4: 5º LUGAR | BE4: 6º LUGAR | BF4: 7º LUGAR | BG4: 8º LUGAR | BH4: 9º LUGAR | BI4: 10º LUGAR | BJ4: 11º LUGAR | BK4: 12º LUGAR | BL4: 13º LUGAR | BM4: 14º LUGAR | BN4: 15º LUGAR | BO4: 16º LUGAR | BP4: 17º LUGAR | BQ4: 18º LUGAR | BR4: 19º LUGAR | BS4: 20º LUGAR | BT4: 21º LUGAR | BU4: 22º LUGAR | BV4: 23º LUGAR | BW4: 24º LUGAR | BX4: 25º LUGAR | BY4: 26º LUGAR | BZ4: 27º LUGAR | CA4: 28º LUGAR | CB4: 29º LUGAR | CC4: 30º LUGAR | CD4: 31º LUGAR | CE4: 32º LUGAR | CF4: 33º LUGAR | CG4: 34º LUGAR | CH4: 35º LUGAR | CI4: 36º LUGAR | CJ4: 37º LUGAR | CK4: 38º LUGAR | CL4: 39º LUGAR | CM4: 40º LUGAR | CN4: 41º LUGAR
A5: 1 | B5: Fernando Medeiros | C5: 532 | D5: 18 | E5: 23 | H5: 10 | I5: 38 | L5: 16 | M5: 26 | P5: 2 | Q5: 55 | T5: 2 | U5: 55 | V5: 2 | X5: 8 | Y5: 42 | AB5: 5 | AC5: 48 | AD5: 2 | AF5: 4 | AG5: 50 | AH5: 2 | AJ5: 3 | AK5: 52 | AN5: 8 | AO5: 42 | AR5: 2 | AS5: 55 | AV5: 9 | AW5: 40 | AZ5: 0 | BA5: 0 | BB5: 0 | BC5: 0 | BD5: 0 | BE5: 0 | BF5: 0 | BG5: 0 | BH5: 0 | BI5: 0 | BJ5: 0 | BK5: 0 | BL5: 0 | BM5: 0 | BN5: 0 | BO5: 0 | BP5: 0 | BQ5: 0 | BR5: 0 | BS5: 0 | BT5: 0 | BU5: 0 | BV5: 0 | BW5: 0 | BX5: 0 | BY5: 0 | BZ5: 0 | CA5: 0 | CB5: 0 | CC5: 0 | CD5: 0 | CE5: 0 | CF5: 0 | CG5: 0 | CH5: 0 | CI5: 0 | CJ5: 0 | CK5: 0 | CL5: 0 | CM5: 0 | CN5: 0
A6: 2 | B6: Wesley Bambirra | C6: 532 | D6: 4 | E6: 50 | H6: 7 | I6: 44 | L6: 12 | M6: 34 | P6: 3 | Q6: 52 | T6: 4 | U6: 50 | X6: 16 | Y6: 26 | AB6: 9 | AC6: 40 | AF6: 3 | AG6: 52 | AJ6: 1 | AK6: 60 | AL6: 2 | AN6: 23 | AO6: 18 | AQ6: SIM | AR6: 4 | AS6: 50 | AT6: 2 | AV6: 3 | AW6: 52 | AZ6: 0 | BA6: 0 | BB6: 0 | BC6: 0 | BD6: 0 | BE6: 0 | BF6: 0 | BG6: 0 | BH6: 0 | BI6: 0 | BJ6: 0 | BK6: 0 | BL6: 0 | BM6: 0 | BN6: 0 | BO6: 0 | BP6: 0 | BQ6: 0 | BR6: 0 | BS6: 0 | BT6: 0 | BU6: 0 | BV6: 0 | BW6: 0 | BX6: 0 | BY6: 0 | BZ6: 0 | CA6: 0 | CB6: 0 | CC6: 0 | CD6: 0 | CE6: 0 | CF6: 0 | CG6: 0 | CH6: 0 | CI6: 0 | CJ6: 0 | CK6: 0 | CL6: 0 | CM6: 0 | CN6: 0
A7: 3 | B7: Marcelo Campos | C7: 507 | D7: 6 | E7: 46 | H7: 1 | I7: 60 | J7: 2 | L7: 6 | M7: 46 | P7: 8 | Q7: 42 | T7: 27 | U7: 14 | W7: SIM | X7: 14 | Y7: 30 | AB7: 2 | AC7: 55 | AF7: 7 | AG7: 44 | AJ7: 7 | AK7: 44 | AN7: 12 | AO7: 34 | AR7: 9 | AS7: 40 | AV7: 4 | AW7: 50 | AZ7: 0 | BA7: 0 | BB7: 0 | BC7: 0 | BD7: 0 | BE7: 0 | BF7: 0 | BG7: 0 | BH7: 0 | BI7: 0 | BJ7: 0 | BK7: 0 | BL7: 0 | BM7: 0 | BN7: 0 | BO7: 0 | BP7: 0 | BQ7: 0 | BR7: 0 | BS7: 0 | BT7: 0 | BU7: 0 | BV7: 0 | BW7: 0 | BX7: 0 | BY7: 0 | BZ7: 0 | CA7: 0 | CB7: 0 | CC7: 0 | CD7: 0 | CE7: 0 | CF7: 0 | CG7: 0 | CH7: 0 | CI7: 0 | CJ7: 0 | CK7: 0 | CL7: 0 | CM7: 0 | CN7: 0
A8: 4 | B8: Marcelo Pereira | C8: 495 | D8: 2 | E8: 55 | F8: 2 | H8: 5 | I8: 48 | L8: 4 | M8: 50 | P8: 5 | Q8: 48 | T8: 5 | U8: 48 | X8: 3 | Y8: 52 | AB8: 4 | AC8: 50 | AF8: 5 | AG8: 48 | AJ8: 13 | AK8: 32 | AM8: SIM | AO8: 0 | AS8: 0 | AV8: 1 | AW8: 60 | AX8: 2 | AZ8: 0 | BA8: 0 | BB8: 0 | BC8: 0 | BD8: 0 | BE8: 0 | BF8: 0 | BG8: 0 | BH8: 0 | BI8: 0 | BJ8: 0 | BK8: 0 | BL8: 0 | BM8: 0 | BN8: 0 | BO8: 0 | BP8: 0 | BQ8: 0 | BR8: 0 | BS8: 0 | BT8: 0 | BU8: 0 | BV8: 0 | BW8: 0 | BX8: 0 | BY8: 0 | BZ8: 0 | CA8: 0 | CB8: 0 | CC8: 0 | CD8: 0 | CE8: 0 | CF8: 0 | CG8: 0 | CH8: 0 | CI8: 0 | CJ8: 0 | CK8: 0 | CL8: 0 | CM8: 0 | CN8: 0
A9: 5 | B9: Marconi Teixeira | C9: 421 | D9: 1 | E9: 60 | H9: 3 | I9: 52 | L9: 2 | M9: 55 | P9: 1 | Q9: 60 | R9: 2 | U9: 0 | X9: 1 | Y9: 60 | AB9: 7 | AC9: 44 | AF9: 8 | AG9: 42 | AK9: 0 | AO9: 0 | AR9: 6 | AS9: 46 | AW9: 0 | AZ9: 0 | BA9: 0 | BB9: 0 | BC9: 0 | BD9: 0 | BE9: 0 | BF9: 0 | BG9: 0 | BH9: 0 | BI9: 0 | BJ9: 0 | BK9: 0 | BL9: 0 | BM9: 0 | BN9: 0 | BO9: 0 | BP9: 0 | BQ9: 0 | BR9: 0 | BS9: 0 | BT9: 0 | BU9: 0 | BV9: 0 | BW9: 0 | BX9: 0 | BY9: 0 | BZ9: 0 | CA9: 0 | CB9: 0 | CC9: 0 | CD9: 0 | CE9: 0 | CF9: 0 | CG9: 0 | CH9: 0 | CI9: 0 | CJ9: 0 | CK9: 0 | CL9: 0 | CM9: 0 | CN9: 0
A10: 6 | B10: Pedro Fialho | C10: 419 | D10: 17 | E10: 24 | H10: 2 | I10: 55 | L10: 27 | M10: 14 | O10: SIM | P10: 7 | Q10: 44 | T10: 6 | U10: 46 | X10: 11 | Y10: 36 | AB10: 14 | AC10: 30 | AF10: 11 | AG10: 36 | AJ10: 23 | AK10: 18 | AN10: 4 | AO10: 50 | AR10: 13 | AS10: 32 | AV10: 12 | AW10: 34 | AZ10: 0 | BA10: 0 | BB10: 0 | BC10: 0 | BD10: 0 | BE10: 0 | BF10: 0 | BG10: 0 | BH10: 0 | BI10: 0 | BJ10: 0 | BK10: 0 | BL10: 0 | BM10: 0 | BN10: 0 | BO10: 0 | BP10: 0 | BQ10: 0 | BR10: 0 | BS10: 0 | BT10: 0 | BU10: 0 | BV10: 0 | BW10: 0 | BX10: 0 | BY10: 0 | BZ10: 0 | CA10: 0 | CB10: 0 | CC10: 0 | CD10: 0 | CE10: 0 | CF10: 0 | CG10: 0 | CH10: 0 | CI10: 0 | CJ10: 0 | CK10: 0 | CL10: 0 | CM10: 0 | CN10: 0
A11: 7 | B11: Leonardo Bastos | C11: 392 | D11: 26 | E11: 15 | H11: 19 | I11: 22 | L11: 26 | M11: 15 | P11: 6 | Q11: 46 | T11: 32 | U11: 9 | W11: SIM | X11: 23 | Y11: 18 | AB11: 3 | AC11: 52 | AF11: 16 | AG11: 26 | AJ11: 10 | AK11: 38 | AN11: 2 | AO11: 55 | AR11: 5 | AS11: 48 | AV11: 5 | AW11: 48 | AZ11: 0 | BA11: 0 | BB11: 0 | BC11: 0 | BD11: 0 | BE11: 0 | BF11: 0 | BG11: 0 | BH11: 0 | BI11: 0 | BJ11: 0 | BK11: 0 | BL11: 0 | BM11: 0 | BN11: 0 | BO11: 0 | BP11: 0 | BQ11: 0 | BR11: 0 | BS11: 0 | BT11: 0 | BU11: 0 | BV11: 0 | BW11: 0 | BX11: 0 | BY11: 0 | BZ11: 0 | CA11: 0 | CB11: 0 | CC11: 0 | CD11: 0 | CE11: 0 | CF11: 0 | CG11: 0 | CH11: 0 | CI11: 0 | CJ11: 0 | CK11: 0 | CL11: 0 | CM11: 0 | CN11: 0
A12: 8 | B12: Marcelo Sant'anna | C12: 388 | D12: 9 | E12: 40 | H12: 32 | I12: 9 | L12: 10 | M12: 38 | P12: 14 | Q12: 30 | T12: 7 | U12: 44 | X12: 18 | Y12: 23 | AB12: 16 | AC12: 26 | AF12: 20 | AG12: 21 | AJ12: 2 | AK12: 55 | AN12: 11 | AO12: 36 | AR12: 11 | AS12: 36 | AV12: 14 | AW12: 30 | AZ12: 0 | BA12: 0 | BB12: 0 | BC12: 0 | BD12: 0 | BE12: 0 | BF12: 0 | BG12: 0 | BH12: 0 | BI12: 0 | BJ12: 0 | BK12: 0 | BL12: 0 | BM12: 0 | BN12: 0 | BO12: 0 | BP12: 0 | BQ12: 0 | BR12: 0 | BS12: 0 | BT12: 0 | BU12: 0 | BV12: 0 | BW12: 0 | BX12: 0 | BY12: 0 | BZ12: 0 | CA12: 0 | CB12: 0 | CC12: 0 | CD12: 0 | CE12: 0 | CF12: 0 | CG12: 0 | CH12: 0 | CI12: 0 | CJ12: 0 | CK12: 0 | CL12: 0 | CM12: 0 | CN12: 0
A13: 9 | B13: Rodrigo Mercadante | C13: 382 | D13: 13 | E13: 32 | H13: 34 | I13: 7 | L13: 8 | M13: 42 | P13: 15 | Q13: 28 | T13: 9 | U13: 40 | X13: 9 | Y13: 40 | AB13: 15 | AC13: 28 | AF13: 22 | AG13: 19 | AJ13: 6 | AK13: 46 | AN13: 15 | AO13: 28 | AR13: 15 | AS13: 28 | AV13: 7 | AW13: 44 | AZ13: 0 | BA13: 0 | BB13: 0 | BC13: 0 | BD13: 0 | BE13: 0 | BF13: 0 | BG13: 0 | BH13: 0 | BI13: 0 | BJ13: 0 | BK13: 0 | BL13: 0 | BM13: 0 | BN13: 0 | BO13: 0 | BP13: 0 | BQ13: 0 | BR13: 0 | BS13: 0 | BT13: 0 | BU13: 0 | BV13: 0 | BW13: 0 | BX13: 0 | BY13: 0 | BZ13: 0 | CA13: 0 | CB13: 0 | CC13: 0 | CD13: 0 | CE13: 0 | CF13: 0 | CG13: 0 | CH13: 0 | CI13: 0 | CJ13: 0 | CK13: 0 | CL13: 0 | CM13: 0 | CN13: 0
A14: 10 | B14: Leonardo Oliveira | C14: 379 | E14: 0 | I14: 0 | M14: 0 | Q14: 0 | T14: 26 | U14: 15 | W14: SIM | X14: 2 | Y14: 55 | Z14: 2 | AB14: 1 | AC14: 60 | AF14: 1 | AG14: 60 | AJ14: 4 | AK14: 50 | AN14: 19 | AO14: 22 | AR14: 1 | AS14: 60 | AV14: 2 | AW14: 55 | AZ14: 0 | BA14: 0 | BB14: 0 | BC14: 0 | BD14: 0 | BE14: 0 | BF14: 0 | BG14: 0 | BH14: 0 | BI14: 0 | BJ14: 0 | BK14: 0 | BL14: 0 | BM14: 0 | BN14: 0 | BO14: 0 | BP14: 0 | BQ14: 0 | BR14: 0 | BS14: 0 | BT14: 0 | BU14: 0 | BV14: 0 | BW14: 0 | BX14: 0 | BY14: 0 | BZ14: 0 | CA14: 0 | CB14: 0 | CC14: 0 | CD14: 0 | CE14: 0 | CF14: 0 | CG14: 0 | CH14: 0 | CI14: 0 | CJ14: 0 | CK14: 0 | CL14: 0 | CM14: 0 | CN14: 0
A15: 11 | B15: Daniel Nahum | C15: 375 | D15: 12 | E15: 34 | H15: 23 | I15: 18 | L15: 5 | M15: 48 | P15: 22 | Q15: 19 | T15: 8 | U15: 42 | X15: 19 | Y15: 22 | AB15: 21 | AC15: 20 | AF15: 21 | AG15: 20 | AJ15: 15 | AK15: 28 | AN15: 16 | AO15: 26 | AR15: 3 | AS15: 52 | AV15: 6 | AW15: 46 | AZ15: 0 | BA15: 0 | BB15: 0 | BC15: 0 | BD15: 0 | BE15: 0 | BF15: 0 | BG15: 0 | BH15: 0 | BI15: 0 | BJ15: 0 | BK15: 0 | BL15: 0 | BM15: 0 | BN15: 0 | BO15: 0 | BP15: 0 | BQ15: 0 | BR15: 0 | BS15: 0 | BT15: 0 | BU15: 0 | BV15: 0 | BW15: 0 | BX15: 0 | BY15: 0 | BZ15: 0 | CA15: 0 | CB15: 0 | CC15: 0 | CD15: 0 | CE15: 0 | CF15: 0 | CG15: 0 | CH15: 0 | CI15: 0 | CJ15: 0 | CK15: 0 | CL15: 0 | CM15: 0 | CN15: 0
A16: 12 | B16: Eduardo Henrique | C16: 369 | E16: 0 | H16: 13 | I16: 32 | L16: 22 | M16: 19 | P16: 4 | Q16: 50 | T16: 16 | U16: 26 | X16: 12 | Y16: 34 | AB16: 12 | AC16: 34 | AF16: 12 | AG16: 34 | AJ16: 21 | AK16: 20 | AN16: 3 | AO16: 52 | AR16: 8 | AS16: 42 | AV16: 16 | AW16: 26 | AZ16: 0 | BA16: 0 | BB16: 0 | BC16: 0 | BD16: 0 | BE16: 0 | BF16: 0 | BG16: 0 | BH16: 0 | BI16: 0 | BJ16: 0 | BK16: 0 | BL16: 0 | BM16: 0 | BN16: 0 | BO16: 0 | BP16: 0 | BQ16: 0 | BR16: 0 | BS16: 0 | BT16: 0 | BU16: 0 | BV16: 0 | BW16: 0 | BX16: 0 | BY16: 0 | BZ16: 0 | CA16: 0 | CB16: 0 | CC16: 0 | CD16: 0 | CE16: 0 | CF16: 0 | CG16: 0 | CH16: 0 | CI16: 0 | CJ16: 0 | CK16: 0 | CL16: 0 | CM16: 0 | CN16: 0
A17: 13 | B17: Roberto Torres | C17: 368 | E17: 0 | H17: 17 | I17: 24 | L17: 3 | M17: 52 | P17: 25 | Q17: 16 | T17: 11 | U17: 36 | X17: 4 | Y17: 50 | AC17: 0 | AF17: 6 | AG17: 46 | AJ17: 25 | AK17: 16 | AN17: 1 | AO17: 60 | AR17: 7 | AS17: 44 | AV17: 17 | AW17: 24 | AZ17: 1 | BA17: 0 | BB17: 1 | BC17: 1 | BD17: 0 | BE17: 1 | BF17: 1 | BG17: 0 | BH17: 0 | BI17: 0 | BJ17: 1 | BK17: 0 | BL17: 0 | BM17: 0 | BN17: 0 | BO17: 0 | BP17: 2 | BQ17: 0 | BR17: 0 | BS17: 0 | BT17: 0 | BU17: 0 | BV17: 0 | BW17: 0 | BX17: 2 | BY17: 0 | BZ17: 0 | CA17: 0 | CB17: 0 | CC17: 0 | CD17: 0 | CE17: 0 | CF17: 0 | CG17: 0 | CH17: 0 | CI17: 0 | CJ17: 0 | CK17: 0 | CL17: 0 | CM17: 0 | CN17: 0
A18: 14 | B18: Diego Silva | C18: 362 | D18: 24 | E18: 17 | H18: 20 | I18: 21 | L18: 19 | M18: 22 | P18: 16 | Q18: 26 | T18: 19 | U18: 22 | X18: 10 | Y18: 38 | AB18: 6 | AC18: 46 | AF18: 19 | AG18: 22 | AJ18: 9 | AK18: 40 | AN18: 6 | AO18: 46 | AR18: 16 | AS18: 26 | AV18: 11 | AW18: 36 | AZ18: 0 | BA18: 0 | BB18: 0 | BC18: 0 | BD18: 0 | BE18: 0 | BF18: 0 | BG18: 0 | BH18: 0 | BI18: 0 | BJ18: 0 | BK18: 0 | BL18: 0 | BM18: 0 | BN18: 0 | BO18: 0 | BP18: 0 | BQ18: 0 | BR18: 0 | BS18: 0 | BT18: 0 | BU18: 0 | BV18: 0 | BW18: 0 | BX18: 0 | BY18: 0 | BZ18: 0 | CA18: 0 | CB18: 0 | CC18: 0 | CD18: 0 | CE18: 0 | CF18: 0 | CG18: 0 | CH18: 0 | CI18: 0 | CJ18: 0 | CK18: 0 | CL18: 0 | CM18: 0 | CN18: 0
A19: 15 | B19: Guilherme Alves | C19: 350 | E19: 0 | I19: 0 | L19: 32 | M19: 9 | P19: 18 | Q19: 23 | T19: 3 | U19: 52 | X19: 5 | Y19: 48 | AB19: 8 | AC19: 42 | AF19: 14 | AG19: 30 | AJ19: 12 | AK19: 34 | AN19: 5 | AO19: 48 | AP19: 2 | AR19: 17 | AS19: 24 | AV19: 10 | AW19: 38 | AZ19: 0 | BA19: 0 | BB19: 0 | BC19: 0 | BD19: 0 | BE19: 0 | BF19: 0 | BG19: 0 | BH19: 0 | BI19: 0 | BJ19: 0 | BK19: 0 | BL19: 0 | BM19: 0 | BN19: 0 | BO19: 0 | BP19: 0 | BQ19: 0 | BR19: 0 | BS19: 0 | BT19: 0 | BU19: 0 | BV19: 0 | BW19: 0 | BX19: 0 | BY19: 0 | BZ19: 0 | CA19: 0 | CB19: 0 | CC19: 0 | CD19: 0 | CE19: 0 | CF19: 0 | CG19: 0 | CH19: 0 | CI19: 0 | CJ19: 0 | CK19: 0 | CL19: 0 | CM19: 0 | CN19: 0
A20: 16 | B20: Rafael Alves | C20: 304 | D20: 23 | E20: 18 | H20: 16 | I20: 26 | L20: 29 | M20: 12 | P20: 13 | Q20: 32 | T20: 14 | U20: 30 | X20: 7 | Y20: 44 | AB20: 19 | AC20: 22 | AF20: 15 | AG20: 28 | AJ20: 8 | AK20: 42 | AN20: 21 | AO20: 20 | AR20: 14 | AS20: 30 | AW20: 0 | AZ20: 0 | BA20: 0 | BB20: 0 | BC20: 0 | BD20: 0 | BE20: 0 | BF20: 0 | BG20: 0 | BH20: 0 | BI20: 0 | BJ20: 0 | BK20: 0 | BL20: 0 | BM20: 0 | BN20: 0 | BO20: 0 | BP20: 0 | BQ20: 0 | BR20: 0 | BS20: 0 | BT20: 0 | BU20: 0 | BV20: 0 | BW20: 0 | BX20: 0 | BY20: 0 | BZ20: 0 | CA20: 0 | CB20: 0 | CC20: 0 | CD20: 0 | CE20: 0 | CF20: 0 | CG20: 0 | CH20: 0 | CI20: 0 | CJ20: 0 | CK20: 0 | CL20: 0 | CM20: 0 | CN20: 0
A21: 17 | B21: Jarbas Reis | C21: 293 | D21: 16 | E21: 26 | H21: 12 | I21: 34 | L21: 11 | M21: 36 | P21: 30 | Q21: 11 | S21: SIM | T21: 32 | U21: 9 | W21: SIM | X21: 26 | Y21: 15 | AB21: 10 | AC21: 38 | AF21: 10 | AG21: 38 | AJ21: 5 | AK21: 48 | AN21: 10 | AO21: 38 | AS21: 0 | AW21: 0 | AZ21: 0 | BA21: 0 | BB21: 0 | BC21: 0 | BD21: 0 | BE21: 0 | BF21: 0 | BG21: 0 | BH21: 0 | BI21: 0 | BJ21: 0 | BK21: 0 | BL21: 0 | BM21: 0 | BN21: 0 | BO21: 0 | BP21: 0 | BQ21: 0 | BR21: 0 | BS21: 0 | BT21: 0 | BU21: 0 | BV21: 0 | BW21: 0 | BX21: 0 | BY21: 0 | BZ21: 0 | CA21: 0 | CB21: 0 | CC21: 0 | CD21: 0 | CE21: 0 | CF21: 0 | CG21: 0 | CH21: 0 | CI21: 0 | CJ21: 0 | CK21: 0 | CL21: 0 | CM21: 0 | CN21: 0
A22: 18 | B22: Claudio Junqueira | C22: 282 | D22: 15 | E22: 28 | H22: 14 | I22: 30 | L22: 33 | M22: 8 | Q22: 0 | U22: 0 | X22: 17 | Y22: 24 | AB22: 11 | AC22: 36 | AG22: 0 | AJ22: 11 | AK22: 36 | AN22: 9 | AO22: 40 | AR22: 10 | AS22: 38 | AV22: 8 | AW22: 42 | AZ22: 0 | BA22: 0 | BB22: 0 | BC22: 0 | BD22: 0 | BE22: 0 | BF22: 0 | BG22: 0 | BH22: 0 | BI22: 0 | BJ22: 0 | BK22: 0 | BL22: 0 | BM22: 0 | BN22: 0 | BO22: 0 | BP22: 0 | BQ22: 0 | BR22: 0 | BS22: 0 | BT22: 0 | BU22: 0 | BV22: 0 | BW22: 0 | BX22: 0 | BY22: 0 | BZ22: 0 | CA22: 0 | CB22: 0 | CC22: 0 | CD22: 0 | CE22: 0 | CF22: 0 | CG22: 0 | CH22: 0 | CI22: 0 | CJ22: 0 | CK22: 0 | CL22: 0 | CM22: 0 | CN22: 0
A23: 19 | B23: Alexandre Melillo | C23: 272 | D23: 11 | E23: 36 | H23: 21 | I23: 20 | L23: 9 | M23: 40 | P23: 19 | Q23: 22 | S23: SIM | T23: 15 | U23: 28 | X23: 21 | Y23: 20 | AB23: 13 | AC23: 32 | AG23: 0 | AJ23: 14 | AK23: 30 | AN23: 7 | AO23: 44 | AS23: 0 | AW23: 0 | AZ23: 0 | BA23: 0 | BB23: 0 | BC23: 0 | BD23: 0 | BE23: 0 | BF23: 1 | BG23: 0 | BH23: 1 | BI23: 0 | BJ23: 1 | BK23: 0 | BL23: 1 | BM23: 1 | BN23: 1 | BO23: 0 | BP23: 0 | BQ23: 0 | BR23: 1 | BS23: 0 | BT23: 2 | BU23: 0 | BV23: 0 | BW23: 0 | BX23: 0 | BY23: 0 | BZ23: 0 | CA23: 0 | CB23: 0 | CC23: 0 | CD23: 0 | CE23: 0 | CF23: 0 | CG23: 0 | CH23: 0 | CI23: 0 | CJ23: 0 | CK23: 0 | CL23: 0 | CM23: 0 | CN23: 0
A24: 20 | B24: Cláudio Dumont | C24: 269 | D24: 3 | E24: 52 | H24: 29 | I24: 12 | L24: 21 | M24: 20 | O24: SIM | P24: 10 | Q24: 38 | T24: 1 | U24: 60 | Y24: 0 | AC24: 0 | AF24: 2 | AG24: 55 | AK24: 0 | AN24: 13 | AO24: 32 | AS24: 0 | AW24: 0 | AZ24: 0 | BA24: 0 | BB24: 0 | BC24: 0 | BD24: 0 | BE24: 0 | BF24: 0 | BG24: 0 | BH24: 0 | BI24: 0 | BJ24: 0 | BK24: 0 | BL24: 0 | BM24: 0 | BN24: 0 | BO24: 0 | BP24: 0 | BQ24: 0 | BR24: 0 | BS24: 0 | BT24: 0 | BU24: 0 | BV24: 0 | BW24: 0 | BX24: 0 | BY24: 0 | BZ24: 0 | CA24: 0 | CB24: 0 | CC24: 0 | CD24: 0 | CE24: 0 | CF24: 0 | CG24: 0 | CH24: 0 | CI24: 0 | CJ24: 0 | CK24: 0 | CL24: 0 | CM24: 0 | CN24: 0
A25: 21 | B25: Oldack Sérgio | C25: 251 | D25: 21 | E25: 20 | H25: 18 | I25: 23 | L25: 14 | M25: 30 | P25: 23 | Q25: 18 | T25: 18 | U25: 23 | X25: 6 | Y25: 46 | AB25: 22 | AC25: 19 | AF25: 9 | AG25: 40 | AK25: 0 | AO25: 0 | AS25: 0 | AV25: 13 | AW25: 32 | AZ25: 0 | BA25: 0 | BB25: 0 | BC25: 0 | BD25: 0 | BE25: 0 | BF25: 0 | BG25: 0 | BH25: 0 | BI25: 0 | BJ25: 0 | BK25: 0 | BL25: 0 | BM25: 0 | BN25: 0 | BO25: 0 | BP25: 0 | BQ25: 0 | BR25: 0 | BS25: 0 | BT25: 0 | BU25: 0 | BV25: 0 | BW25: 0 | BX25: 0 | BY25: 0 | BZ25: 0 | CA25: 0 | CB25: 0 | CC25: 0 | CD25: 0 | CE25: 0 | CF25: 0 | CG25: 0 | CH25: 0 | CI25: 0 | CJ25: 0 | CK25: 0 | CL25: 0 | CM25: 0 | CN25: 0
A26: 22 | B26: Wesley Canuto | C26: 237 | D26: 25 | E26: 16 | H26: 11 | I26: 36 | L26: 17 | M26: 24 | P26: 17 | Q26: 24 | T26: 13 | U26: 32 | X26: 15 | Y26: 28 | AC26: 0 | AF26: 17 | AG26: 24 | AK26: 0 | AN26: 14 | AO26: 30 | AS26: 0 | AV26: 18 | AW26: 23 | AZ26: 0 | BA26: 0 | BB26: 0 | BC26: 0 | BD26: 0 | BE26: 0 | BF26: 0 | BG26: 0 | BH26: 0 | BI26: 0 | BJ26: 0 | BK26: 0 | BL26: 0 | BM26: 0 | BN26: 0 | BO26: 0 | BP26: 0 | BQ26: 0 | BR26: 0 | BS26: 0 | BT26: 0 | BU26: 0 | BV26: 0 | BW26: 0 | BX26: 0 | BY26: 0 | BZ26: 0 | CA26: 0 | CB26: 0 | CC26: 0 | CD26: 0 | CE26: 0 | CF26: 0 | CG26: 0 | CH26: 0 | CI26: 0 | CJ26: 0 | CK26: 0 | CL26: 0 | CM26: 0 | CN26: 0
A27: 23 | B27: Raphael Reis | C27: 216 | D27: 19 | E27: 22 | H27: 8 | I27: 42 | L27: 23 | M27: 18 | P27: 9 | Q27: 40 | T27: 20 | U27: 21 | X27: 25 | Y27: 16 | AC27: 0 | AG27: 0 | AK27: 0 | AN27: 18 | AO27: 23 | AR27: 12 | AS27: 34 | AW27: 0 | AZ27: 0 | BA27: 0 | BB27: 0 | BC27: 0 | BD27: 0 | BE27: 0 | BF27: 0 | BG27: 0 | BH27: 0 | BI27: 0 | BJ27: 0 | BK27: 0 | BL27: 0 | BM27: 0 | BN27: 0 | BO27: 0 | BP27: 0 | BQ27: 0 | BR27: 0 | BS27: 0 | BT27: 0 | BU27: 0 | BV27: 0 | BW27: 0 | BX27: 0 | BY27: 0 | BZ27: 0 | CA27: 0 | CB27: 0 | CC27: 0 | CD27: 0 | CE27: 0 | CF27: 0 | CG27: 0 | CH27: 0 | CI27: 0 | CJ27: 0 | CK27: 0 | CL27: 0 | CM27: 0 | CN27: 0
A28: 24 | B28: Marcelo Surerus | C28: 197 | E28: 0 | I28: 0 | L28: 20 | M28: 21 | P28: 11 | Q28: 36 | T28: 12 | U28: 34 | X28: 13 | Y28: 32 | AB28: 29 | AC28: 12 | AE28: SIM | AF28: 13 | AG28: 32 | AJ28: 17 | AK28: 24 | AO28: 0 | AR28: 35 | AS28: 6 | AU28: SIM | AW28: 0 | AZ28: 0 | BA28: 0 | BB28: 0 | BC28: 0 | BD28: 0 | BE28: 0 | BF28: 0 | BG28: 0 | BH28: 0 | BI28: 0 | BJ28: 0 | BK28: 0 | BL28: 0 | BM28: 0 | BN28: 0 | BO28: 0 | BP28: 0 | BQ28: 0 | BR28: 0 | BS28: 0 | BT28: 0 | BU28: 0 | BV28: 0 | BW28: 0 | BX28: 0 | BY28: 0 | BZ28: 0 | CA28: 0 | CB28: 0 | CC28: 0 | CD28: 0 | CE28: 0 | CF28: 0 | CG28: 0 | CH28: 0 | CI28: 0 | CJ28: 0 | CK28: 0 | CL28: 0 | CM28: 0 | CN28: 0
A29: 25 | B29: Fernando Lobo | C29: 188 | D29: 28 | E29: 13 | H29: 9 | I29: 40 | L29: 30 | M29: 11 | P29: 12 | Q29: 34 | T29: 24 | U29: 17 | X29: 34 | Y29: 7 | AA29: SIM | AC29: 0 | AF29: 25 | AG29: 16 | AJ29: 16 | AK29: 26 | AN29: 17 | AO29: 24 | AS29: 0 | AW29: 0 | AZ29: 0 | BA29: 0 | BB29: 0 | BC29: 0 | BD29: 0 | BE29: 0 | BF29: 0 | BG29: 0 | BH29: 0 | BI29: 0 | BJ29: 0 | BK29: 0 | BL29: 0 | BM29: 0 | BN29: 0 | BO29: 0 | BP29: 0 | BQ29: 0 | BR29: 0 | BS29: 0 | BT29: 0 | BU29: 0 | BV29: 0 | BW29: 0 | BX29: 0 | BY29: 0 | BZ29: 0 | CA29: 0 | CB29: 0 | CC29: 0 | CD29: 0 | CE29: 0 | CF29: 0 | CG29: 0 | CH29: 0 | CI29: 0 | CJ29: 0 | CK29: 0 | CL29: 0 | CM29: 0 | CN29: 0
A30: 26 | B30: Daniel Paranhos | C30: 180 | D30: 27 | E30: 14 | H30: 25 | I30: 16 | L30: 18 | M30: 23 | P30: 20 | Q30: 21 | T30: 10 | U30: 38 | X30: 20 | Y30: 21 | AB30: 17 | AC30: 24 | AF30: 18 | AG30: 23 | AK30: 0 | AO30: 0 | AS30: 0 | AW30: 0 | AZ30: 0 | BA30: 0 | BB30: 0 | BC30: 0 | BD30: 0 | BE30: 0 | BF30: 0 | BG30: 0 | BH30: 0 | BI30: 0 | BJ30: 0 | BK30: 0 | BL30: 0 | BM30: 0 | BN30: 0 | BO30: 0 | BP30: 0 | BQ30: 0 | BR30: 0 | BS30: 0 | BT30: 0 | BU30: 0 | BV30: 0 | BW30: 0 | BX30: 0 | BY30: 0 | BZ30: 0 | CA30: 0 | CB30: 0 | CC30: 0 | CD30: 0 | CE30: 0 | CF30: 0 | CG30: 0 | CH30: 0 | CI30: 0 | CJ30: 0 | CK30: 0 | CL30: 0 | CM30: 0 | CN30: 0
A31: 27 | B31: Luis Almeida | C31: 170 | D31: 33 | E31: 8 | H31: 22 | I31: 19 | L31: 15 | M31: 28 | P31: 21 | Q31: 20 | T31: 21 | U31: 20 | X31: 27 | Y31: 14 | AB31: 18 | AC31: 23 | AF31: 24 | AG31: 17 | AJ31: 20 | AK31: 21 | AO31: 0 | AS31: 0 | AW31: 0 | AZ31: 0 | BA31: 0 | BB31: 0 | BC31: 0 | BD31: 0 | BE31: 0 | BF31: 0 | BG31: 0 | BH31: 0 | BI31: 0 | BJ31: 0 | BK31: 0 | BL31: 0 | BM31: 0 | BN31: 0 | BO31: 0 | BP31: 0 | BQ31: 0 | BR31: 0 | BS31: 0 | BT31: 0 | BU31: 0 | BV31: 0 | BW31: 0 | BX31: 0 | BY31: 0 | BZ31: 0 | CA31: 0 | CB31: 0 | CC31: 0 | CD31: 0 | CE31: 0 | CF31: 0 | CG31: 0 | CH31: 0 | CI31: 0 | CJ31: 0 | CK31: 0 | CL31: 0 | CM31: 0 | CN31: 0
A32: 28 | B32: Renato Cardoso | C32: 155 | E32: 0 | H32: 26 | I32: 15 | L32: 13 | M32: 32 | Q32: 0 | T32: 17 | U32: 24 | Y32: 0 | AB32: 20 | AC32: 21 | AF32: 23 | AG32: 18 | AJ32: 24 | AK32: 17 | AO32: 0 | AS32: 0 | AV32: 15 | AW32: 28 | AZ32: 0 | BA32: 0 | BB32: 0 | BC32: 0 | BD32: 0 | BE32: 0 | BF32: 0 | BG32: 0 | BH32: 0 | BI32: 0 | BJ32: 0 | BK32: 0 | BL32: 0 | BM32: 0 | BN32: 0 | BO32: 0 | BP32: 0 | BQ32: 0 | BR32: 0 | BS32: 0 | BT32: 0 | BU32: 0 | BV32: 0 | BW32: 0 | BX32: 0 | BY32: 0 | BZ32: 0 | CA32: 0 | CB32: 0 | CC32: 0 | CD32: 0 | CE32: 0 | CF32: 0 | CG32: 0 | CH32: 0 | CI32: 0 | CJ32: 0 | CK32: 0 | CL32: 0 | CM32: 0 | CN32: 0
A33: 29 | B33: Marcus Silva | C33: 88 | D33: 8 | E33: 42 | H33: 6 | I33: 46 | M33: 0 | Q33: 0 | U33: 0 | Y33: 0 | AC33: 0 | AG33: 0 | AK33: 0 | AO33: 0 | AS33: 0 | AW33: 0 | AZ33: 0 | BA33: 0 | BB33: 0 | BC33: 0 | BD33: 0 | BE33: 0 | BF33: 0 | BG33: 0 | BH33: 0 | BI33: 0 | BJ33: 0 | BK33: 0 | BL33: 0 | BM33: 0 | BN33: 0 | BO33: 0 | BP33: 0 | BQ33: 0 | BR33: 0 | BS33: 0 | BT33: 0 | BU33: 0 | BV33: 0 | BW33: 0 | BX33: 0 | BY33: 0 | BZ33: 0 | CA33: 0 | CB33: 0 | CC33: 0 | CD33: 0 | CE33: 0 | CF33: 0 | CG33: 0 | CH33: 0 | CI33: 0 | CJ33: 0 | CK33: 0 | CL33: 0 | CM33: 0 | CN33: 0
A34: 30 | B34: Wesley Camargos | C34: 71 | E34: 0 | I34: 0 | L34: 28 | M34: 13 | Q34: 0 | T34: 23 | U34: 18 | Y34: 0 | AC34: 0 | AG34: 0 | AJ34: 22 | AK34: 19 | AN34: 20 | AO34: 21 | AS34: 0 | AW34: 0 | AZ34: 0 | BA34: 0 | BB34: 0 | BC34: 0 | BD34: 0 | BE34: 0 | BF34: 0 | BG34: 0 | BH34: 0 | BI34: 0 | BJ34: 0 | BK34: 0 | BL34: 0 | BM34: 0 | BN34: 0 | BO34: 0 | BP34: 0 | BQ34: 0 | BR34: 0 | BS34: 0 | BT34: 0 | BU34: 0 | BV34: 0 | BW34: 0 | BX34: 0 | BY34: 0 | BZ34: 0 | CA34: 0 | CB34: 0 | CC34: 0 | CD34: 0 | CE34: 0 | CF34: 0 | CG34: 0 | CH34: 0 | CI34: 0 | CJ34: 0 | CK34: 0 | CL34: 0 | CM34: 0 | CN34: 0
A35: 31 | B35: Thiara Silveira | C35: 66 | D35: 10 | E35: 38 | H35: 15 | I35: 28 | M35: 0 | Q35: 0 | U35: 0 | Y35: 0 | AC35: 0 | AG35: 0 | AK35: 0 | AO35: 0 | AS35: 0 | AW35: 0 | AZ35: 0 | BA35: 0 | BB35: 0 | BC35: 0 | BD35: 0 | BE35: 0 | BF35: 0 | BG35: 0 | BH35: 0 | BI35: 0 | BJ35: 0 | BK35: 0 | BL35: 0 | BM35: 0 | BN35: 0 | BO35: 0 | BP35: 0 | BQ35: 0 | BR35: 0 | BS35: 0 | BT35: 0 | BU35: 0 | BV35: 0 | BW35: 0 | BX35: 0 | BY35: 0 | BZ35: 0 | CA35: 0 | CB35: 0 | CC35: 0 | CD35: 0 | CE35: 0 | CF35: 0 | CG35: 0 | CH35: 0 | CI35: 0 | CJ35: 0 | CK35: 0 | CL35: 0 | CM35: 0 | CN35: 0
A36: 32 | B36: Samuel Silva | C36: 59 | D36: 32 | E36: 9 | I36: 0 | L36: 25 | M36: 16 | Q36: 0 | U36: 0 | Y36: 0 | AB36: 30 | AC36: 11 | AE36: SIM | AG36: 0 | AJ36: 18 | AK36: 23 | AO36: 0 | AS36: 0 | AW36: 0 | AZ36: 0 | BA36: 0 | BB36: 0 | BC36: 0 | BD36: 0 | BE36: 0 | BF36: 0 | BG36: 0 | BH36: 0 | BI36: 0 | BJ36: 0 | BK36: 0 | BL36: 0 | BM36: 0 | BN36: 0 | BO36: 0 | BP36: 0 | BQ36: 0 | BR36: 0 | BS36: 0 | BT36: 0 | BU36: 0 | BV36: 0 | BW36: 0 | BX36: 0 | BY36: 0 | BZ36: 0 | CA36: 0 | CB36: 0 | CC36: 0 | CD36: 0 | CE36: 0 | CF36: 0 | CG36: 0 | CH36: 0 | CI36: 0 | CJ36: 0 | CK36: 0 | CL36: 0 | CM36: 0 | CN36: 0
A37: 33 | B37: Roberto Veloso | C37: 58 | E37: 0 | H37: 27 | I37: 14 | L37: 7 | M37: 44 | Q37: 0 | U37: 0 | Y37: 0 | AC37: 0 | AG37: 0 | AK37: 0 | AO37: 0 | AS37: 0 | AW37: 0 | AZ37: 0 | BA37: 0 | BB37: 0 | BC37: 0 | BD37: 0 | BE37: 0 | BF37: 0 | BG37: 0 | BH37: 0 | BI37: 0 | BJ37: 0 | BK37: 0 | BL37: 0 | BM37: 0 | BN37: 0 | BO37: 0 | BP37: 0 | BQ37: 0 | BR37: 0 | BS37: 0 | BT37: 0 | BU37: 0 | BV37: 0 | BW37: 0 | BX37: 0 | BY37: 0 | BZ37: 0 | CA37: 0 | CB37: 0 | CC37: 0 | CD37: 0 | CE37: 0 | CF37: 0 | CG37: 0 | CH37: 0 | CI37: 0 | CJ37: 0 | CK37: 0 | CL37: 0 | CM37: 0 | CN37: 0
A38: 34 | B38: Antônio Mourão | C38: 55 | D38: 7 | E38: 44 | H38: 30 | I38: 11 | M38: 0 | Q38: 0 | U38: 0 | Y38: 0 | AC38: 0 | AG38: 0 | AK38: 0 | AO38: 0 | AS38: 0 | AW38: 0 | AZ38: 0 | BA38: 0 | BB38: 0 | BC38: 0 | BD38: 0 | BE38: 0 | BF38: 0 | BG38: 0 | BH38: 0 | BI38: 0 | BJ38: 0 | BK38: 0 | BL38: 0 | BM38: 0 | BN38: 0 | BO38: 0 | BP38: 0 | BQ38: 0 | BR38: 0 | BS38: 0 | BT38: 0 | BU38: 0 | BV38: 0 | BW38: 0 | BX38: 0 | BY38: 0 | BZ38: 0 | CA38: 0 | CB38: 0 | CC38: 0 | CD38: 0 | CE38: 0 | CF38: 0 | CG38: 0 | CH38: 0 | CI38: 0 | CJ38: 0 | CK38: 0 | CL38: 0 | CM38: 0 | CN38: 0
A39: 35 | B39: Leandro Malias | C39: 53 | D39: 22 | E39: 19 | H39: 24 | I39: 17 | M39: 0 | Q39: 0 | U39: 0 | X39: 24 | Y39: 17 | AC39: 0 | AG39: 0 | AK39: 0 | AO39: 0 | AS39: 0 | AW39: 0 | AZ39: 0 | BA39: 0 | BB39: 0 | BC39: 0 | BD39: 0 | BE39: 0 | BF39: 0 | BG39: 0 | BH39: 0 | BI39: 0 | BJ39: 0 | BK39: 0 | BL39: 0 | BM39: 0 | BN39: 0 | BO39: 0 | BP39: 0 | BQ39: 0 | BR39: 0 | BS39: 0 | BT39: 0 | BU39: 0 | BV39: 0 | BW39: 0 | BX39: 0 | BY39: 0 | BZ39: 0 | CA39: 0 | CB39: 0 | CC39: 0 | CD39: 0 | CE39: 0 | CF39: 0 | CG39: 0 | CH39: 0 | CI39: 0 | CJ39: 0 | CK39: 0 | CL39: 0 | CM39: 0 | CN39: 0
A40: 36 | B40: Heimar Mata | C40: 51 | E40: 0 | H40: 31 | I40: 10 | M40: 0 | Q40: 0 | U40: 0 | X40: 22 | Y40: 19 | AC40: 0 | AG40: 0 | AJ40: 19 | AK40: 22 | AO40: 0 | AS40: 0 | AW40: 0 | AZ40: 0 | BA40: 0 | BB40: 0 | BC40: 0 | BD40: 0 | BE40: 0 | BF40: 0 | BG40: 0 | BH40: 0 | BI40: 0 | BJ40: 0 | BK40: 0 | BL40: 0 | BM40: 0 | BN40: 0 | BO40: 0 | BP40: 0 | BQ40: 0 | BR40: 0 | BS40: 0 | BT40: 0 | BU40: 0 | BV40: 0 | BW40: 0 | BX40: 0 | BY40: 0 | BZ40: 0 | CA40: 0 | CB40: 0 | CC40: 0 | CD40: 0 | CE40: 0 | CF40: 0 | CG40: 0 | CH40: 0 | CI40: 0 | CJ40: 0 | CK40: 0 | CL40: 0 | CM40: 0 | CN40: 0
A41: 37 | B41: Ivan Renault | C41: 43 | D41: 14 | E41: 30 | H41: 28 | I41: 13 | M41: 0 | Q41: 0 | U41: 0 | Y41: 0 | AC41: 0 | AG41: 0 | AK41: 0 | AO41: 0 | AS41: 0 | AW41: 0 | AZ41: 0 | BA41: 0 | BB41: 0 | BC41: 0 | BD41: 0 | BE41: 0 | BF41: 0 | BG41: 0 | BH41: 0 | BI41: 0 | BJ41: 0 | BK41: 0 | BL41: 0 | BM41: 0 | BN41: 0 | BO41: 0 | BP41: 0 | BQ41: 0 | BR41: 0 | BS41: 0 | BT41: 0 | BU41: 0 | BV41: 0 | BW41: 0 | BX41: 0 | BY41: 0 | BZ41: 0 | CA41: 0 | CB41: 0 | CC41: 0 | CD41: 0 | CE41: 0 | CF41: 0 | CG41: 0 | CH41: 0 | CI41: 0 | CJ41: 0 | CK41: 0 | CL41: 0 | CM41: 0 | CN41: 0
A42: 38 | B42: Marcelo Horta | C42: 38 | D42: 20 | E42: 21 | I42: 0 | L42: 24 | M42: 17 | Q42: 0 | U42: 0 | Y42: 0 | AC42: 0 | AG42: 0 | AK42: 0 | AO42: 0 | AS42: 0 | AW42: 0 | AZ42: 0 | BA42: 0 | BB42: 0 | BC42: 0 | BD42: 0 | BE42: 0 | BF42: 0 | BG42: 0 | BH42: 0 | BI42: 0 | BJ42: 0 | BK42: 0 | BL42: 0 | BM42: 0 | BN42: 0 | BO42: 0 | BP42: 0 | BQ42: 0 | BR42: 0 | BS42: 0 | BT42: 0 | BU42: 0 | BV42: 0 | BW42: 0 | BX42: 0 | BY42: 0 | BZ42: 0 | CA42: 0 | CB42: 0 | CC42: 0 | CD42: 0 | CE42: 0 | CF42: 0 | CG42: 0 | CH42: 0 | CI42: 0 | CJ42: 0 | CK42: 0 | CL42: 0 | CM42: 0 | CN42: 0
A43: 39 | B43: Adriano Morato | C43: 37 | D43: 34 | E43: 7 | I43: 0 | M43: 0 | P43: 24 | Q43: 17 | U43: 0 | X43: 28 | Y43: 13 | AC43: 0 | AG43: 0 | AK43: 0 | AO43: 0 | AS43: 0 | AW43: 0 | AZ43: 0 | BA43: 0 | BB43: 0 | BC43: 0 | BD43: 0 | BE43: 0 | BF43: 0 | BG43: 0 | BH43: 0 | BI43: 0 | BJ43: 0 | BK43: 0 | BL43: 0 | BM43: 0 | BN43: 0 | BO43: 0 | BP43: 0 | BQ43: 0 | BR43: 0 | BS43: 0 | BT43: 0 | BU43: 0 | BV43: 0 | BW43: 1 | BX43: 0 | BY43: 0 | BZ43: 0 | CA43: 1 | CB43: 0 | CC43: 0 | CD43: 0 | CE43: 0 | CF43: 0 | CG43: 1 | CH43: 0 | CI43: 0 | CJ43: 0 | CK43: 0 | CL43: 0 | CM43: 0 | CN43: 0
A44: 40 | B44: Will Conrad | C44: 20 | D44: 29 | E44: 12 | H44: 33 | I44: 8 | M44: 0 | Q44: 0 | U44: 0 | Y44: 0 | AC44: 0 | AG44: 0 | AK44: 0 | AO44: 0 | AS44: 0 | AW44: 0 | AZ44: 0 | BA44: 0 | BB44: 0 | BC44: 0 | BD44: 0 | BE44: 0 | BF44: 0 | BG44: 0 | BH44: 0 | BI44: 0 | BJ44: 0 | BK44: 0 | BL44: 0 | BM44: 0 | BN44: 0 | BO44: 0 | BP44: 0 | BQ44: 0 | BR44: 0 | BS44: 0 | BT44: 0 | BU44: 0 | BV44: 0 | BW44: 0 | BX44: 0 | BY44: 0 | BZ44: 0 | CA44: 0 | CB44: 0 | CC44: 0 | CD44: 0 | CE44: 0 | CF44: 0 | CG44: 0 | CH44: 0 | CI44: 0 | CJ44: 0 | CK44: 0 | CL44: 0 | CM44: 0 | CN44: 0
A45: 41 | B45: Junior Torres | C45: 15 | D45: 30 | E45: 11 | I45: 0 | M45: 0 | Q45: 0 | T45: 37 | U45: 4 | W45: SIM | Y45: 0 | AC45: 0 | AG45: 0 | AK45: 0 | AO45: 0 | AS45: 0 | AW45: 0 | AZ45: 0 | BA45: 0 | BB45: 0 | BC45: 0 | BD45: 0 | BE45: 0 | BF45: 0 | BG45: 0 | BH45: 0 | BI45: 0 | BJ45: 0 | BK45: 0 | BL45: 0 | BM45: 0 | BN45: 0 | BO45: 0 | BP45: 0 | BQ45: 0 | BR45: 0 | BS45: 0 | BT45: 0 | BU45: 0 | BV45: 0 | BW45: 0 | BX45: 0 | BY45: 0 | BZ45: 0 | CA45: 0 | CB45: 0 | CC45: 0 | CD45: 0 | CE45: 0 | CF45: 0 | CG45: 0 | CH45: 0 | CI45: 0 | CJ45: 0 | CK45: 0 | CL45: 0 | CM45: 0 | CN45: 0
A46: 42 | B46: Fred Mello | C46: 10 | E46: 0 | I46: 0 | L46: 31 | M46: 10 | Q46: 0 | U46: 0 | Y46: 0 | AC46: 0 | AG46: 0 | AK46: 0 | AO46: 0 | AS46: 0 | AW46: 0 | AZ46: 0 | BA46: 0 | BB46: 0 | BC46: 0 | BD46: 0 | BE46: 0 | BF46: 0 | BG46: 0 | BH46: 0 | BI46: 0 | BJ46: 0 | BK46: 0 | BL46: 0 | BM46: 0 | BN46: 0 | BO46: 0 | BP46: 0 | BQ46: 0 | BR46: 0 | BS46: 0 | BT46: 0 | BU46: 0 | BV46: 0 | BW46: 0 | BX46: 0 | BY46: 0 | BZ46: 0 | CA46: 0 | CB46: 0 | CC46: 0 | CD46: 0 | CE46: 0 | CF46: 0 | CG46: 0 | CH46: 0 | CI46: 0 | CJ46: 0 | CK46: 0 | CL46: 0 | CM46: 0 | CN46: 0
A47: 43 | B47: Sylvio Junior | C47: 10 | D47: 31 | E47: 10 | I47: 0 | M47: 0 | Q47: 0 | U47: 0 | Y47: 0 | AC47: 0 | AG47: 0 | AK47: 0 | AO47: 0 | AS47: 0 | AW47: 0 | AZ47: 0 | BA47: 0 | BB47: 0 | BC47: 0 | BD47: 0 | BE47: 0 | BF47: 0 | BG47: 0 | BH47: 0 | BI47: 0 | BJ47: 0 | BK47: 0 | BL47: 0 | BM47: 0 | BN47: 0 | BO47: 0 | BP47: 0 | BQ47: 0 | BR47: 0 | BS47: 0 | BT47: 0 | BU47: 0 | BV47: 0 | BW47: 0 | BX47: 0 | BY47: 0 | BZ47: 0 | CA47: 0 | CB47: 0 | CC47: 0 | CD47: 0 | CE47: 0 | CF47: 0 | CG47: 0 | CH47: 0 | CI47: 0 | CJ47: 0 | CK47: 0 | CL47: 0 | CM47: 0 | CN47: 0
A48: 44 | B48: Lucas Mourão | C48: 6 | D48: 35 | E48: 6 | I48: 0 | M48: 0 | Q48: 0 | U48: 0 | Y48: 0 | AC48: 0 | AG48: 0 | AK48: 0 | AO48: 0 | AS48: 0 | AW48: 0 | AZ48: 0 | BA48: 0 | BB48: 0 | BC48: 0 | BD48: 0 | BE48: 0 | BF48: 0 | BG48: 0 | BH48: 0 | BI48: 0 | BJ48: 0 | BK48: 0 | BL48: 0 | BM48: 0 | BN48: 0 | BO48: 0 | BP48: 0 | BQ48: 0 | BR48: 0 | BS48: 0 | BT48: 0 | BU48: 0 | BV48: 0 | BW48: 0 | BX48: 0 | BY48: 0 | BZ48: 0 | CA48: 0 | CB48: 0 | CC48: 0 | CD48: 0 | CE48: 0 | CF48: 0 | CG48: 0 | CH48: 0 | CI48: 0 | CJ48: 0 | CK48: 0 | CL48: 0 | CM48: 0 | CN48: 0
A49: 45 | B49: XXXXXXX | C49: 0 | E49: 0 | I49: 0 | M49: 0 | Q49: 0 | U49: 0 | Y49: 0 | AC49: 0 | AG49: 0 | AK49: 0 | AO49: 0 | AS49: 0 | AW49: 0 | AZ49: 0 | BA49: 0 | BB49: 0 | BC49: 0 | BD49: 0 | BE49: 0 | BF49: 0 | BG49: 0 | BH49: 0 | BI49: 0 | BJ49: 0 | BK49: 0 | BL49: 0 | BM49: 0 | BN49: 0 | BO49: 0 | BP49: 0 | BQ49: 0 | BR49: 0 | BS49: 0 | BT49: 0 | BU49: 0 | BV49: 0 | BW49: 0 | BX49: 0 | BY49: 0 | BZ49: 0 | CA49: 0 | CB49: 0 | CC49: 0 | CD49: 0 | CE49: 0 | CF49: 0 | CG49: 0 | CH49: 0 | CI49: 0 | CJ49: 0 | CK49: 0 | CL49: 0 | CM49: 0 | CN49: 0

Sheet Class. elimin. 2 piores res
A1: 2020 | E1: OK | I1: OK | M1: OK | Q1: OK | U1: OK | Y1: OK | AC1: OK | AG1: OK | AK1: OK | AO1: OK | AS1: OK | AW1: OK
D2: 1ª etapa | H2: 2ª etapa | L2: 3ª etapa | P2: 4ª etapa | T2: 5ª etapa | X2: 6ª etapa | AB2: 7ª etapa | AF2: 8ª etapa | AJ2: 9ª etapa | AN2: 10ª etapa | AR2: 11ª etapa | AV2: 12ª etapa
B4: Nome do (a) Piloto (a) | C4: Pontuação Geral | D4: Posição | E4: Pontos | F4: Bônus | G4: Penalidade | H4: Posição | I4: Pontos | J4: Bônus | K4: Penalidade | L4: Posição | M4: Pontos | N4: Bônus | O4: Penalidade | P4: Posição | Q4: Pontos | R4: Bônus | S4: Penalidade | T4: Posição | U4: Pontos | V4: Bônus | W4: Penalidade | X4: Posição | Y4: Pontos | Z4: Bônus | AA4: Penalidade | AB4: Posição | AC4: Pontos | AD4: Bônus | AE4: Penalidade | AF4: Posição | AG4: Pontos | AH4: Bônus | AI4: Penalidade | AJ4: Posição | AK4: Pontos | AL4: Bônus | AM4: Penalidade | AN4: Posição | AO4: Pontos | AP4: Bônus | AQ4: Penalidade | AR4: Posição | AS4: Pontos | AT4: Bônus | AU4: Penalidade | AV4: Posição | AW4: Pontos | AX4: Bônus | AY4: Penalidade | AZ4: 1º LUGAR | BA4: 2º LUGAR | BB4: 3º LUGAR | BC4: 4º LUGAR | BD4: 5º LUGAR | BE4: 6º LUGAR | BF4: 7º LUGAR | BG4: 8º LUGAR | BH4: 9º LUGAR | BI4: 10º LUGAR | BJ4: 11º LUGAR | BK4: 12º LUGAR | BL4: 13º LUGAR | BM4: 14º LUGAR | BN4: 15º LUGAR | BO4: 16º LUGAR | BP4: 17º LUGAR | BQ4: 18º LUGAR | BR4: 19º LUGAR | BS4: 20º LUGAR | BT4: 21º LUGAR | BU4: 22º LUGAR | BV4: 23º LUGAR | BW4: 24º LUGAR | BX4: 25º LUGAR | BY4: 26º LUGAR | BZ4: 27º LUGAR | CA4: 28º LUGAR | CB4: 29º LUGAR | CC4: 30º LUGAR | CD4: 31º LUGAR | CE4: 32º LUGAR | CF4: 33º LUGAR | CG4: 34º LUGAR | CH4: 35º LUGAR | CI4: 36º LUGAR | CJ4: 37º LUGAR | CK4: 38º LUGAR | CL4: 39º LUGAR | CM4: 40º LUGAR | CN4: 41º LUGAR
A5: 1 | B5: Marcelo Pereira | C5: 495 | D5: 2 | E5: 55 | F5: 2 | H5: 5 | I5: 48 | L5: 4 | M5: 50 | P5: 5 | Q5: 48 | T5: 5 | U5: 48 | X5: 3 | Y5: 52 | AB5: 4 | AC5: 50 | AF5: 5 | AG5: 48 | AJ5: 13 | AK5: 32 | AM5: SIM | AO5: 0* | AS5: 0* | AV5: 1 | AW5: 60 | AX5: 2 | AZ5: 0 | BA5: 0 | BB5: 0 | BC5: 0 | BD5: 0 | BE5: 0 | BF5: 0 | BG5: 0 | BH5: 0 | BI5: 0 | BJ5: 0 | BK5: 0 | BL5: 0 | BM5: 0 | BN5: 0 | BO5: 0 | BP5: 0 | BQ5: 0 | BR5: 0 | BS5: 0 | BT5: 0 | BU5: 0 | BV5: 0 | BW5: 0 | BX5: 0 | BY5: 0 | BZ5: 0 | CA5: 0 | CB5: 0 | CC5: 0 | CD5: 0 | CE5: 0 | CF5: 0 | CG5: 0 | CH5: 0 | CI5: 0 | CJ5: 0 | CK5: 0 | CL5: 0 | CM5: 0 | CN5: 0
A6: 2 | B6: Fernando Medeiros | C6: 483 | D6: 18 | E6: 23* | H6: 10 | I6: 38 | L6: 16 | M6: 26* | P6: 2 | Q6: 55 | T6: 2 | U6: 55 | V6: 2 | X6: 8 | Y6: 42 | AB6: 5 | AC6: 48 | AD6: 2 | AF6: 4 | AG6: 50 | AH6: 2 | AJ6: 3 | AK6: 52 | AN6: 8 | AO6: 42 | AR6: 2 | AS6: 55 | AV6: 9 | AW6: 40 | AZ6: 0 | BA6: 0 | BB6: 0 | BC6: 0 | BD6: 0 | BE6: 0 | BF6: 0 | BG6: 0 | BH6: 0 | BI6: 0 | BJ6: 0 | BK6: 0 | BL6: 0 | BM6: 0 | BN6: 0 | BO6: 0 | BP6: 0 | BQ6: 0 | BR6: 0 | BS6: 0 | BT6: 0 | BU6: 0 | BV6: 0 | BW6: 0 | BX6: 0 | BY6: 0 | BZ6: 0 | CA6: 0 | CB6: 0 | CC6: 0 | CD6: 0 | CE6: 0 | CF6: 0 | CG6: 0 | CH6: 0 | CI6: 0 | CJ6: 0 | CK6: 0 | CL6: 0 | CM6: 0 | CN6: 0
A7: 3 | B7: Wesley Bambirra | C7: 472 | D7: 4 | E7: 50 | H7: 7 | I7: 44 | L7: 12 | M7: 34* | P7: 3 | Q7: 52 | T7: 4 | U7: 50 | X7: 16 | Y7: 26* | AB7: 9 | AC7: 40 | AF7: 3 | AG7: 52 | AJ7: 1 | AK7: 60 | AL7: 2 | AN7: 23 | AO7: 18 | AQ7: SIM | AR7: 4 | AS7: 50 | AT7: 2 | AV7: 3 | AW7: 52 | AZ7: 0 | BA7: 0 | BB7: 0 | BC7: 0 | BD7: 0 | BE7: 0 | BF7: 0 | BG7: 0 | BH7: 0 | BI7: 0 | BJ7: 0 | BK7: 0 | BL7: 0 | BM7: 0 | BN7: 0 | BO7: 0 | BP7: 0 | BQ7: 0 | BR7: 0 | BS7: 0 | BT7: 0 | BU7: 0 | BV7: 0 | BW7: 0 | BX7: 0 | BY7: 0 | BZ7: 0 | CA7: 0 | CB7: 0 | CC7: 0 | CD7: 0 | CE7: 0 | CF7: 0 | CG7: 0 | CH7: 0 | CI7: 0 | CJ7: 0 | CK7: 0 | CL7: 0 | CM7: 0 | CN7: 0
A8: 4 | B8: Marcelo Campos | C8: 443 | D8: 6 | E8: 46 | H8: 1 | I8: 60 | J8: 2 | L8: 6 | M8: 46 | P8: 8 | Q8: 42 | T8: 27 | U8: 14 | W8: SIM | X8: 14 | Y8: 30* | AB8: 2 | AC8: 55 | AF8: 7 | AG8: 44 | AJ8: 7 | AK8: 44 | AN8: 12 | AO8: 34* | AR8: 9 | AS8: 40 | AV8: 4 | AW8: 50 | AZ8: 0 | BA8: 0 | BB8: 0 | BC8: 0 | BD8: 0 | BE8: 0 | BF8: 0 | BG8: 0 | BH8: 0 | BI8: 0 | BJ8: 0 | BK8: 0 | BL8: 0 | BM8: 0 | BN8: 0 | BO8: 0 | BP8: 0 | BQ8: 0 | BR8: 0 | BS8: 0 | BT8: 0 | BU8: 0 | BV8: 0 | BW8: 0 | BX8: 0 | BY8: 0 | BZ8: 0 | CA8: 0 | CB8: 0 | CC8: 0 | CD8: 0 | CE8: 0 | CF8: 0 | CG8: 0 | CH8: 0 | CI8: 0 | CJ8: 0 | CK8: 0 | CL8: 0 | CM8: 0 | CN8: 0
A9: 5 | B9: Marconi Teixeira | C9: 421 | D9: 1 | E9: 60 | H9: 3 | I9: 52 | L9: 2 | M9: 55 | P9: 1 | Q9: 60 | R9: 2 | U9: 0* | X9: 1 | Y9: 60 | AB9: 7 | AC9: 44 | AF9: 8 | AG9: 42 | AK9: 0* | AO9: 0 | AR9: 6 | AS9: 46 | AW9: 0 | AZ9: 0 | BA9: 0 | BB9: 0 | BC9: 0 | BD9: 0 | BE9: 0 | BF9: 0 | BG9: 0 | BH9: 0 | BI9: 0 | BJ9: 0 | BK9: 0 | BL9: 0 | BM9: 0 | BN9: 0 | BO9: 0 | BP9: 0 | BQ9: 0 | BR9: 0 | BS9: 0 | BT9: 0 | BU9: 0 | BV9: 0 | BW9: 0 | BX9: 0 | BY9: 0 | BZ9: 0 | CA9: 0 | CB9: 0 | CC9: 0 | CD9: 0 | CE9: 0 | CF9: 0 | CG9: 0 | CH9: 0 | CI9: 0 | CJ9: 0 | CK9: 0 | CL9: 0 | CM9: 0 | CN9: 0
A10: 6 | B10: Leonardo Oliveira | C10: 379 | E10: 0* | I10: 0* | M10: 0 | Q10: 0 | T10: 26 | U10: 15 | W10: SIM | X10: 2 | Y10: 55 | Z10: 2 | AB10: 1 | AC10: 60 | AF10: 1 | AG10: 60 | AJ10: 4 | AK10: 50 | AN10: 19 | AO10: 22 | AR10: 1 | AS10: 60 | AV10: 2 | AW10: 55 | AZ10: 0 | BA10: 0 | BB10: 0 | BC10: 0 | BD10: 0 | BE10: 0 | BF10: 0 | BG10: 0 | BH10: 0 | BI10: 0 | BJ10: 0 | BK10: 0 | BL10: 0 | BM10: 0 | BN10: 0 | BO10: 0 | BP10: 0 | BQ10: 0 | BR10: 0 | BS10: 0 | BT10: 0 | BU10: 0 | BV10: 0 | BW10: 0 | BX10: 0 | BY10: 0 | BZ10: 0 | CA10: 0 | CB10: 0 | CC10: 0 | CD10: 0 | CE10: 0 | CF10: 0 | CG10: 0 | CH10: 0 | CI10: 0 | CJ10: 0 | CK10: 0 | CL10: 0 | CM10: 0 | CN10: 0
A11: 7 | B11: Pedro Fialho | C11: 377 | D11: 17 | E11: 24* | H11: 2 | I11: 55 | L11: 27 | M11: 14 | O11: SIM | P11: 7 | Q11: 44 | T11: 6 | U11: 46 | X11: 11 | Y11: 36 | AB11: 14 | AC11: 30 | AF11: 11 | AG11: 36 | AJ11: 23 | AK11: 18* | AN11: 4 | AO11: 50 | AR11: 13 | AS11: 32 | AV11: 12 | AW11: 34 | AZ11: 0 | BA11: 0 | BB11: 0 | BC11: 0 | BD11: 0 | BE11: 0 | BF11: 0 | BG11: 0 | BH11: 0 | BI11: 0 | BJ11: 0 | BK11: 0 | BL11: 0 | BM11: 0 | BN11: 0 | BO11: 0 | BP11: 0 | BQ11: 0 | BR11: 0 | BS11: 0 | BT11: 0 | BU11: 0 | BV11: 0 | BW11: 0 | BX11: 0 | BY11: 0 | BZ11: 0 | CA11: 0 | CB11: 0 | CC11: 0 | CD11: 0 | CE11: 0 | CF11: 0 | CG11: 0 | CH11: 0 | CI11: 0 | CJ11: 0 | CK11: 0 | CL11: 0 | CM11: 0 | CN11: 0
A12: 8 | B12: Roberto Torres | C12: 368 | E12: 0* | H12: 17 | I12: 24 | L12: 3 | M12: 52 | P12: 25 | Q12: 16 | T12: 11 | U12: 36 | X12: 4 | Y12: 50 | AC12: 0* | AF12: 6 | AG12: 46 | AJ12: 25 | AK12: 16 | AN12: 1 | AO12: 60 | AR12: 7 | AS12: 44 | AV12: 17 | AW12: 24 | AZ12: 1 | BA12: 0 | BB12: 1 | BC12: 1 | BD12: 0 | BE12: 1 | BF12: 1 | BG12: 0 | BH12: 0 | BI12: 0 | BJ12: 1 | BK12: 0 | BL12: 0 | BM12: 0 | BN12: 0 | BO12: 0 | BP12: 2 | BQ12: 0 | BR12: 0 | BS12: 0 | BT12: 0 | BU12: 0 | BV12: 0 | BW12: 0 | BX12: 2 | BY12: 0 | BZ12: 0 | CA12: 0 | CB12: 0 | CC12: 0 | CD12: 0 | CE12: 0 | CF12: 0 | CG12: 0 | CH12: 0 | CI12: 0 | CJ12: 0 | CK12: 0 | CL12: 0 | CM12: 0 | CN12: 0
A13: 9 | B13: Leonardo Bastos | C13: 362 | D13: 26 | E13: 15* | H13: 19 | I13: 22 | L13: 26 | M13: 15* | P13: 6 | Q13: 46 | T13: 32 | U13: 9 | W13: SIM | X13: 23 | Y13: 18 | AB13: 3 | AC13: 52 | AF13: 16 | AG13: 26 | AJ13: 10 | AK13: 38 | AN13: 2 | AO13: 55 | AR13: 5 | AS13: 48 | AV13: 5 | AW13: 48 | AZ13: 0 | BA13: 0 | BB13: 0 | BC13: 0 | BD13: 0 | BE13: 0 | BF13: 0 | BG13: 0 | BH13: 0 | BI13: 0 | BJ13: 0 | BK13: 0 | BL13: 0 | BM13: 0 | BN13: 0 | BO13: 0 | BP13: 0 | BQ13: 0 | BR13: 0 | BS13: 0 | BT13: 0 | BU13: 0 | BV13: 0 | BW13: 0 | BX13: 0 | BY13: 0 | BZ13: 0 | CA13: 0 | CB13: 0 | CC13: 0 | CD13: 0 | CE13: 0 | CF13: 0 | CG13: 0 | CH13: 0 | CI13: 0 | CJ13: 0 | CK13: 0 | CL13: 0 | CM13: 0 | CN13: 0
A14: 10 | B14: Marcelo Sant'anna | C14: 358 | D14: 9 | E14: 40 | H14: 32 | I14: 9* | L14: 10 | M14: 38 | P14: 14 | Q14: 30 | T14: 7 | U14: 44 | X14: 18 | Y14: 23 | AB14: 16 | AC14: 26 | AF14: 20 | AG14: 21* | AJ14: 2 | AK14: 55 | AN14: 11 | AO14: 36 | AR14: 11 | AS14: 36 | AV14: 14 | AW14: 30 | AZ14: 0 | BA14: 0 | BB14: 0 | BC14: 0 | BD14: 0 | BE14: 0 | BF14: 0 | BG14: 0 | BH14: 0 | BI14: 0 | BJ14: 0 | BK14: 0 | BL14: 0 | BM14: 0 | BN14: 0 | BO14: 0 | BP14: 0 | BQ14: 0 | BR14: 0 | BS14: 0 | BT14: 0 | BU14: 0 | BV14: 0 | BW14: 0 | BX14: 0 | BY14: 0 | BZ14: 0 | CA14: 0 | CB14: 0 | CC14: 0 | CD14: 0 | CE14: 0 | CF14: 0 | CG14: 0 | CH14: 0 | CI14: 0 | CJ14: 0 | CK14: 0 | CL14: 0 | CM14: 0 | CN14: 0
A15: 11 | B15: Rodrigo Mercadante | C15: 356 | D15: 13 | E15: 32 | H15: 34 | I15: 7* | L15: 8 | M15: 42 | P15: 15 | Q15: 28 | T15: 9 | U15: 40 | X15: 9 | Y15: 40 | AB15: 15 | AC15: 28 | AF15: 22 | AG15: 19* | AJ15: 6 | AK15: 46 | AN15: 15 | AO15: 28 | AR15: 15 | AS15: 28 | AV15: 7 | AW15: 44 | AZ15: 0 | BA15: 0 | BB15: 0 | BC15: 0 | BD15: 0 | BE15: 0 | BF15: 0 | BG15: 0 | BH15: 0 | BI15: 0 | BJ15: 0 | BK15: 0 | BL15: 0 | BM15: 0 | BN15: 0 | BO15: 0 | BP15: 0 | BQ15: 0 | BR15: 0 | BS15: 0 | BT15: 0 | BU15: 0 | BV15: 0 | BW15: 0 | BX15: 0 | BY15: 0 | BZ15: 0 | CA15: 0 | CB15: 0 | CC15: 0 | CD15: 0 | CE15: 0 | CF15: 0 | CG15: 0 | CH15: 0 | CI15: 0 | CJ15: 0 | CK15: 0 | CL15: 0 | CM15: 0 | CN15: 0
A16: 12 | B16: Eduardo Henrique | C16: 350 | E16: 0* | H16: 13 | I16: 32 | L16: 22 | M16: 19* | P16: 4 | Q16: 50 | T16: 16 | U16: 26 | X16: 12 | Y16: 34 | AB16: 12 | AC16: 34 | AF16: 12 | AG16: 34 | AJ16: 21 | AK16: 20 | AN16: 3 | AO16: 52 | AR16: 8 | AS16: 42 | AV16: 16 | AW16: 26 | AZ16: 0 | BA16: 0 | BB16: 0 | BC16: 0 | BD16: 0 | BE16: 0 | BF16: 0 | BG16: 0 | BH16: 0 | BI16: 0 | BJ16: 0 | BK16: 0 | BL16: 0 | BM16: 0 | BN16: 0 | BO16: 0 | BP16: 0 | BQ16: 0 | BR16: 0 | BS16: 0 | BT16: 0 | BU16: 0 | BV16: 0 | BW16: 0 | BX16: 0 | BY16: 0 | BZ16: 0 | CA16: 0 | CB16: 0 | CC16: 0 | CD16: 0 | CE16: 0 | CF16: 0 | CG16: 0 | CH16: 0 | CI16: 0 | CJ16: 0 | CK16: 0 | CL16: 0 | CM16: 0 | CN16: 0
A17: 13 | B17: Guilherme Alves | C17: 350 | E17: 0* | I17: 0* | L17: 32 | M17: 9 | P17: 18 | Q17: 23 | T17: 3 | U17: 52 | X17: 5 | Y17: 48 | AB17: 8 | AC17: 42 | AF17: 14 | AG17: 30 | AJ17: 12 | AK17: 34 | AN17: 5 | AO17: 48 | AP17: 2 | AR17: 17 | AS17: 24 | AV17: 10 | AW17: 38 | AZ17: 0 | BA17: 0 | BB17: 0 | BC17: 0 | BD17: 0 | BE17: 0 | BF17: 0 | BG17: 0 | BH17: 0 | BI17: 0 | BJ17: 0 | BK17: 0 | BL17: 0 | BM17: 0 | BN17: 0 | BO17: 0 | BP17: 0 | BQ17: 0 | BR17: 0 | BS17: 0 | BT17: 0 | BU17: 0 | BV17: 0 | BW17: 0 | BX17: 0 | BY17: 0 | BZ17: 0 | CA17: 0 | CB17: 0 | CC17: 0 | CD17: 0 | CE17: 0 | CF17: 0 | CG17: 0 | CH17: 0 | CI17: 0 | CJ17: 0 | CK17: 0 | CL17: 0 | CM17: 0 | CN17: 0
A18: 14 | B18: Daniel Nahum | C18: 338 | D18: 12 | E18: 34 | H18: 23 | I18: 18* | L18: 5 | M18: 48 | P18: 22 | Q18: 19* | T18: 8 | U18: 42 | X18: 19 | Y18: 22 | AB18: 21 | AC18: 20 | AF18: 21 | AG18: 20 | AJ18: 15 | AK18: 28 | AN18: 16 | AO18: 26 | AR18: 3 | AS18: 52 | AV18: 6 | AW18: 46 | AZ18: 0 | BA18: 0 | BB18: 0 | BC18: 0 | BD18: 0 | BE18: 0 | BF18: 0 | BG18: 0 | BH18: 0 | BI18: 0 | BJ18: 0 | BK18: 0 | BL18: 0 | BM18: 0 | BN18: 0 | BO18: 0 | BP18: 0 | BQ18: 0 | BR18: 0 | BS18: 0 | BT18: 0 | BU18: 0 | BV18: 0 | BW18: 0 | BX18: 0 | BY18: 0 | BZ18: 0 | CA18: 0 | CB18: 0 | CC18: 0 | CD18: 0 | CE18: 0 | CF18: 0 | CG18: 0 | CH18: 0 | CI18: 0 | CJ18: 0 | CK18: 0 | CL18: 0 | CM18: 0 | CN18: 0
A19: 15 | B19: Diego Silva | C19: 324 | D19: 24 | E19: 17* | H19: 20 | I19: 21* | L19: 19 | M19: 22 | P19: 16 | Q19: 26 | T19: 19 | U19: 22 | X19: 10 | Y19: 38 | AB19: 6 | AC19: 46 | AF19: 19 | AG19: 22 | AJ19: 9 | AK19: 40 | AN19: 6 | AO19: 46 | AR19: 16 | AS19: 26 | AV19: 11 | AW19: 36 | AZ19: 0 | BA19: 0 | BB19: 0 | BC19: 0 | BD19: 0 | BE19: 0 | BF19: 0 | BG19: 0 | BH19: 0 | BI19: 0 | BJ19: 0 | BK19: 0 | BL19: 0 | BM19: 0 | BN19: 0 | BO19: 0 | BP19: 0 | BQ19: 0 | BR19: 0 | BS19: 0 | BT19: 0 | BU19: 0 | BV19: 0 | BW19: 0 | BX19: 0 | BY19: 0 | BZ19: 0 | CA19: 0 | CB19: 0 | CC19: 0 | CD19: 0 | CE19: 0 | CF19: 0 | CG19: 0 | CH19: 0 | CI19: 0 | CJ19: 0 | CK19: 0 | CL19: 0 | CM19: 0 | CN19: 0
A20: 16 | B20: Jarbas Reis | C20: 293 | D20: 16 | E20: 26 | H20: 12 | I20: 34 | L20: 11 | M20: 36 | P20: 30 | Q20: 11 | S20: SIM | T20: 32 | U20: 9 | W20: SIM | X20: 26 | Y20: 15 | AB20: 10 | AC20: 38 | AF20: 10 | AG20: 38 | AJ20: 5 | AK20: 48 | AN20: 10 | AO20: 38 | AS20: 0* | AW20: 0* | AZ20: 0 | BA20: 0 | BB20: 0 | BC20: 0 | BD20: 0 | BE20: 0 | BF20: 0 | BG20: 0 | BH20: 0 | BI20: 0 | BJ20: 0 | BK20: 0 | BL20: 0 | BM20: 0 | BN20: 0 | BO20: 0 | BP20: 0 | BQ20: 0 | BR20: 0 | BS20: 0 | BT20: 0 | BU20: 0 | BV20: 0 | BW20: 0 | BX20: 0 | BY20: 0 | BZ20: 0 | CA20: 0 | CB20: 0 | CC20: 0 | CD20: 0 | CE20: 0 | CF20: 0 | CG20: 0 | CH20: 0 | CI20: 0 | CJ20: 0 | CK20: 0 | CL20: 0 | CM20: 0 | CN20: 0
A21: 17 | B21: Rafael Alves | C21: 292 | D21: 23 | E21: 18 | H21: 16 | I21: 26 | L21: 29 | M21: 12* | P21: 13 | Q21: 32 | T21: 14 | U21: 30 | X21: 7 | Y21: 44 | AB21: 19 | AC21: 22 | AF21: 15 | AG21: 28 | AJ21: 8 | AK21: 42 | AN21: 21 | AO21: 20 | AR21: 14 | AS21: 30 | AW21: 0* | AZ21: 0 | BA21: 0 | BB21: 0 | BC21: 0 | BD21: 0 | BE21: 0 | BF21: 0 | BG21: 0 | BH21: 0 | BI21: 0 | BJ21: 0 | BK21: 0 | BL21: 0 | BM21: 0 | BN21: 0 | BO21: 0 | BP21: 0 | BQ21: 0 | BR21: 0 | BS21: 0 | BT21: 0 | BU21: 0 | BV21: 0 | BW21: 0 | BX21: 0 | BY21: 0 | BZ21: 0 | CA21: 0 | CB21: 0 | CC21: 0 | CD21: 0 | CE21: 0 | CF21: 0 | CG21: 0 | CH21: 0 | CI21: 0 | CJ21: 0 | CK21: 0 | CL21: 0 | CM21: 0 | CN21: 0
A22: 18 | B22: Claudio Junqueira | C22: 282 | D22: 15 | E22: 28 | H22: 14 | I22: 30 | L22: 33 | M22: 8 | Q22: 0* | U22: 0* | X22: 17 | Y22: 24 | AB22: 11 | AC22: 36 | AG22: 0 | AJ22: 11 | AK22: 36 | AN22: 9 | AO22: 40 | AR22: 10 | AS22: 38 | AV22: 8 | AW22: 42 | AZ22: 0 | BA22: 0 | BB22: 0 | BC22: 0 | BD22: 0 | BE22: 0 | BF22: 0 | BG22: 0 | BH22: 0 | BI22: 0 | BJ22: 0 | BK22: 0 | BL22: 0 | BM22: 0 | BN22: 0 | BO22: 0 | BP22: 0 | BQ22: 0 | BR22: 0 | BS22: 0 | BT22: 0 | BU22: 0 | BV22: 0 | BW22: 0 | BX22: 0 | BY22: 0 | BZ22: 0 | CA22: 0 | CB22: 0 | CC22: 0 | CD22: 0 | CE22: 0 | CF22: 0 | CG22: 0 | CH22: 0 | CI22: 0 | CJ22: 0 | CK22: 0 | CL22: 0 | CM22: 0 | CN22: 0
A23: 19 | B23: Alexandre Melillo | C23: 272 | D23: 11 | E23: 36 | H23: 21 | I23: 20 | L23: 9 | M23: 40 | P23: 19 | Q23: 22 | S23: SIM | T23: 15 | U23: 28 | X23: 21 | Y23: 20 | AB23: 13 | AC23: 32 | AG23: 0* | AJ23: 14 | AK23: 30 | AN23: 7 | AO23: 44 | AS23: 0* | AW23: 0 | AZ23: 0 | BA23: 0 | BB23: 0 | BC23: 0 | BD23: 0 | BE23: 0 | BF23: 1 | BG23: 0 | BH23: 1 | BI23: 0 | BJ23: 1 | BK23: 0 | BL23: 1 | BM23: 1 | BN23: 1 | BO23: 0 | BP23: 0 | BQ23: 0 | BR23: 1 | BS23: 0 | BT23: 2 | BU23: 0 | BV23: 0 | BW23: 0 | BX23: 0 | BY23: 0 | BZ23: 0 | CA23: 0 | CB23: 0 | CC23: 0 | CD23: 0 | CE23: 0 | CF23: 0 | CG23: 0 | CH23: 0 | CI23: 0 | CJ23: 0 | CK23: 0 | CL23: 0 | CM23: 0 | CN23: 0
A24: 20 | B24: Cláudio Dumont | C24: 269 | D24: 3 | E24: 52 | H24: 29 | I24: 12 | L24: 21 | M24: 20 | O24: SIM | P24: 10 | Q24: 38 | T24: 1 | U24: 60 | Y24: 0* | AC24: 0* | AF24: 2 | AG24: 55 | AK24: 0 | AN24: 13 | AO24: 32 | AS24: 0 | AW24: 0 | AZ24: 0 | BA24: 0 | BB24: 0 | BC24: 0 | BD24: 0 | BE24: 0 | BF24: 0 | BG24: 0 | BH24: 0 | BI24: 0 | BJ24: 0 | BK24: 0 | BL24: 0 | BM24: 0 | BN24: 0 | BO24: 0 | BP24: 0 | BQ24: 0 | BR24: 0 | BS24: 0 | BT24: 0 | BU24: 0 | BV24: 0 | BW24: 0 | BX24: 0 | BY24: 0 | BZ24: 0 | CA24: 0 | CB24: 0 | CC24: 0 | CD24: 0 | CE24: 0 | CF24: 0 | CG24: 0 | CH24: 0 | CI24: 0 | CJ24: 0 | CK24: 0 | CL24: 0 | CM24: 0 | CN24: 0
A25: 21 | B25: Oldack Sérgio | C25: 251 | D25: 21 | E25: 20 | H25: 18 | I25: 23 | L25: 14 | M25: 30 | P25: 23 | Q25: 18 | T25: 18 | U25: 23 | X25: 6 | Y25: 46 | AB25: 22 | AC25: 19 | AF25: 9 | AG25: 40 | AK25: 0* | AO25: 0* | AS25: 0 | AV25: 13 | AW25: 32 | AZ25: 0 | BA25: 0 | BB25: 0 | BC25: 0 | BD25: 0 | BE25: 0 | BF25: 0 | BG25: 0 | BH25: 0 | BI25: 0 | BJ25: 0 | BK25: 0 | BL25: 0 | BM25: 0 | BN25: 0 | BO25: 0 | BP25: 0 | BQ25: 0 | BR25: 0 | BS25: 0 | BT25: 0 | BU25: 0 | BV25: 0 | BW25: 0 | BX25: 0 | BY25: 0 | BZ25: 0 | CA25: 0 | CB25: 0 | CC25: 0 | CD25: 0 | CE25: 0 | CF25: 0 | CG25: 0 | CH25: 0 | CI25: 0 | CJ25: 0 | CK25: 0 | CL25: 0 | CM25: 0 | CN25: 0
A26: 22 | B26: Wesley Canuto | C26: 237 | D26: 25 | E26: 16 | H26: 11 | I26: 36 | L26: 17 | M26: 24 | P26: 17 | Q26: 24 | T26: 13 | U26: 32 | X26: 15 | Y26: 28 | AC26: 0* | AF26: 17 | AG26: 24 | AK26: 0* | AN26: 14 | AO26: 30 | AS26: 0 | AV26: 18 | AW26: 23 | AZ26: 0 | BA26: 0 | BB26: 0 | BC26: 0 | BD26: 0 | BE26: 0 | BF26: 0 | BG26: 0 | BH26: 0 | BI26: 0 | BJ26: 0 | BK26: 0 | BL26: 0 | BM26: 0 | BN26: 0 | BO26: 0 | BP26: 0 | BQ26: 0 | BR26: 0 | BS26: 0 | BT26: 0 | BU26: 0 | BV26: 0 | BW26: 0 | BX26: 0 | BY26: 0 | BZ26: 0 | CA26: 0 | CB26: 0 | CC26: 0 | CD26: 0 | CE26: 0 | CF26: 0 | CG26: 0 | CH26: 0 | CI26: 0 | CJ26: 0 | CK26: 0 | CL26: 0 | CM26: 0 | CN26: 0
A27: 23 | B27: Raphael Reis | C27: 216 | D27: 19 | E27: 22 | H27: 8 | I27: 42 | L27: 23 | M27: 18 | P27: 9 | Q27: 40 | T27: 20 | U27: 21 | X27: 25 | Y27: 16 | AC27: 0* | AG27: 0* | AK27: 0 | AN27: 18 | AO27: 23 | AR27: 12 | AS27: 34 | AW27: 0 | AZ27: 0 | BA27: 0 | BB27: 0 | BC27: 0 | BD27: 0 | BE27: 0 | BF27: 0 | BG27: 0 | BH27: 0 | BI27: 0 | BJ27: 0 | BK27: 0 | BL27: 0 | BM27: 0 | BN27: 0 | BO27: 0 | BP27: 0 | BQ27: 0 | BR27: 0 | BS27: 0 | BT27: 0 | BU27: 0 | BV27: 0 | BW27: 0 | BX27: 0 | BY27: 0 | BZ27: 0 | CA27: 0 | CB27: 0 | CC27: 0 | CD27: 0 | CE27: 0 | CF27: 0 | CG27: 0 | CH27: 0 | CI27: 0 | CJ27: 0 | CK27: 0 | CL27: 0 | CM27: 0 | CN27: 0
A28: 24 | B28: Marcelo Surerus | C28: 197 | E28: 0* | I28: 0* | L28: 20 | M28: 21 | P28: 11 | Q28: 36 | T28: 12 | U28: 34 | X28: 13 | Y28: 32 | AB28: 29 | AC28: 12 | AE28: SIM | AF28: 13 | AG28: 32 | AJ28: 17 | AK28: 24 | AO28: 0 | AR28: 35 | AS28: 6 | AU28: SIM | AW28: 0 | AZ28: 0 | BA28: 0 | BB28: 0 | BC28: 0 | BD28: 0 | BE28: 0 | BF28: 0 | BG28: 0 | BH28: 0 | BI28: 0 | BJ28: 0 | BK28: 0 | BL28: 0 | BM28: 0 | BN28: 0 | BO28: 0 | BP28: 0 | BQ28: 0 | BR28: 0 | BS28: 0 | BT28: 0 | BU28: 0 | BV28: 0 | BW28: 0 | BX28: 0 | BY28: 0 | BZ28: 0 | CA28: 0 | CB28: 0 | CC28: 0 | CD28: 0 | CE28: 0 | CF28: 0 | CG28: 0 | CH28: 0 | CI28: 0 | CJ28: 0 | CK28: 0 | CL28: 0 | CM28: 0 | CN28: 0
A29: 25 | B29: Fernando Lobo | C29: 188 | D29: 28 | E29: 13 | H29: 9 | I29: 40 | L29: 30 | M29: 11 | P29: 12 | Q29: 34 | T29: 24 | U29: 17 | X29: 34 | Y29: 7 | AA29: SIM | AC29: 0* | AF29: 25 | AG29: 16 | AJ29: 16 | AK29: 26 | AN29: 17 | AO29: 24 | AS29: 0* | AW29: 0 | AZ29: 0 | BA29: 0 | BB29: 0 | BC29: 0 | BD29: 0 | BE29: 0 | BF29: 0 | BG29: 0 | BH29: 0 | BI29: 0 | BJ29: 0 | BK29: 0 | BL29: 0 | BM29: 0 | BN29: 0 | BO29: 0 | BP29: 0 | BQ29: 0 | BR29: 0 | BS29: 0 | BT29: 0 | BU29: 0 | BV29: 0 | BW29: 0 | BX29: 0 | BY29: 0 | BZ29: 0 | CA29: 0 | CB29: 0 | CC29: 0 | CD29: 0 | CE29: 0 | CF29: 0 | CG29: 0 | CH29: 0 | CI29: 0 | CJ29: 0 | CK29: 0 | CL29: 0 | CM29: 0 | CN29: 0
A30: 26 | B30: Daniel Paranhos | C30: 180 | D30: 27 | E30: 14 | H30: 25 | I30: 16 | L30: 18 | M30: 23 | P30: 20 | Q30: 21 | T30: 10 | U30: 38 | X30: 20 | Y30: 21 | AB30: 17 | AC30: 24 | AF30: 18 | AG30: 23 | AK30: 0* | AO30: 0* | AS30: 0 | AW30: 0 | AZ30: 0 | BA30: 0 | BB30: 0 | BC30: 0 | BD30: 0 | BE30: 0 | BF30: 0 | BG30: 0 | BH30: 0 | BI30: 0 | BJ30: 0 | BK30: 0 | BL30: 0 | BM30: 0 | BN30: 0 | BO30: 0 | BP30: 0 | BQ30: 0 | BR30: 0 | BS30: 0 | BT30: 0 | BU30: 0 | BV30: 0 | BW30: 0 | BX30: 0 | BY30: 0 | BZ30: 0 | CA30: 0 | CB30: 0 | CC30: 0 | CD30: 0 | CE30: 0 | CF30: 0 | CG30: 0 | CH30: 0 | CI30: 0 | CJ30: 0 | CK30: 0 | CL30: 0 | CM30: 0 | CN30: 0
A31: 27 | B31: Luis Almeida | C31: 170 | D31: 33 | E31: 8 | H31: 22 | I31: 19 | L31: 15 | M31: 28 | P31: 21 | Q31: 20 | T31: 21 | U31: 20 | X31: 27 | Y31: 14 | AB31: 18 | AC31: 23 | AF31: 24 | AG31: 17 | AJ31: 20 | AK31: 21 | AO31: 0* | AS31: 0* | AW31: 0 | AZ31: 0 | BA31: 0 | BB31: 0 | BC31: 0 | BD31: 0 | BE31: 0 | BF31: 0 | BG31: 0 | BH31: 0 | BI31: 0 | BJ31: 0 | BK31: 0 | BL31: 0 | BM31: 0 | BN31: 0 | BO31: 0 | BP31: 0 | BQ31: 0 | BR31: 0 | BS31: 0 | BT31: 0 | BU31: 0 | BV31: 0 | BW31: 0 | BX31: 0 | BY31: 0 | BZ31: 0 | CA31: 0 | CB31: 0 | CC31: 0 | CD31: 0 | CE31: 0 | CF31: 0 | CG31: 0 | CH31: 0 | CI31: 0 | CJ31: 0 | CK31: 0 | CL31: 0 | CM31: 0 | CN31: 0
A32: 28 | B32: Renato Cardoso | C32: 155 | E32: 0* | H32: 26 | I32: 15 | L32: 13 | M32: 32 | Q32: 0* | T32: 17 | U32: 24 | Y32: 0 | AB32: 20 | AC32: 21 | AF32: 23 | AG32: 18 | AJ32: 24 | AK32: 17 | AO32: 0 | AS32: 0 | AV32: 15 | AW32: 28 | AZ32: 0 | BA32: 0 | BB32: 0 | BC32: 0 | BD32: 0 | BE32: 0 | BF32: 0 | BG32: 0 | BH32: 0 | BI32: 0 | BJ32: 0 | BK32: 0 | BL32: 0 | BM32: 0 | BN32: 0 | BO32: 0 | BP32: 0 | BQ32: 0 | BR32: 0 | BS32: 0 | BT32: 0 | BU32: 0 | BV32: 0 | BW32: 0 | BX32: 0 | BY32: 0 | BZ32: 0 | CA32: 0 | CB32: 0 | CC32: 0 | CD32: 0 | CE32: 0 | CF32: 0 | CG32: 0 | CH32: 0 | CI32: 0 | CJ32: 0 | CK32: 0 | CL32: 0 | CM32: 0 | CN32: 0
A33: 29 | B33: Marcus Silva | C33: 88 | D33: 8 | E33: 42 | H33: 6 | I33: 46 | M33: 0* | Q33: 0* | U33: 0 | Y33: 0 | AC33: 0 | AG33: 0 | AK33: 0 | AO33: 0 | AS33: 0 | AW33: 0 | AZ33: 0 | BA33: 0 | BB33: 0 | BC33: 0 | BD33: 0 | BE33: 0 | BF33: 0 | BG33: 0 | BH33: 0 | BI33: 0 | BJ33: 0 | BK33: 0 | BL33: 0 | BM33: 0 | BN33: 0 | BO33: 0 | BP33: 0 | BQ33: 0 | BR33: 0 | BS33: 0 | BT33: 0 | BU33: 0 | BV33: 0 | BW33: 0 | BX33: 0 | BY33: 0 | BZ33: 0 | CA33: 0 | CB33: 0 | CC33: 0 | CD33: 0 | CE33: 0 | CF33: 0 | CG33: 0 | CH33: 0 | CI33: 0 | CJ33: 0 | CK33: 0 | CL33: 0 | CM33: 0 | CN33: 0
A34: 30 | B34: Wesley Camargos | C34: 71 | E34: 0* | I34: 0* | L34: 28 | M34: 13 | Q34: 0 | T34: 23 | U34: 18 | Y34: 0 | AC34: 0 | AG34: 0 | AJ34: 22 | AK34: 19 | AN34: 20 | AO34: 21 | AS34: 0 | AW34: 0 | AZ34: 0 | BA34: 0 | BB34: 0 | BC34: 0 | BD34: 0 | BE34: 0 | BF34: 0 | BG34: 0 | BH34: 0 | BI34: 0 | BJ34: 0 | BK34: 0 | BL34: 0 | BM34: 0 | BN34: 0 | BO34: 0 | BP34: 0 | BQ34: 0 | BR34: 0 | BS34: 0 | BT34: 0 | BU34: 0 | BV34: 0 | BW34: 0 | BX34: 0 | BY34: 0 | BZ34: 0 | CA34: 0 | CB34: 0 | CC34: 0 | CD34: 0 | CE34: 0 | CF34: 0 | CG34: 0 | CH34: 0 | CI34: 0 | CJ34: 0 | CK34: 0 | CL34: 0 | CM34: 0 | CN34: 0
A35: 31 | B35: Thiara Silveira | C35: 66 | D35: 10 | E35: 38 | H35: 15 | I35: 28 | M35: 0* | Q35: 0* | U35: 0 | Y35: 0 | AC35: 0 | AG35: 0 | AK35: 0 | AO35: 0 | AS35: 0 | AW35: 0 | AZ35: 0 | BA35: 0 | BB35: 0 | BC35: 0 | BD35: 0 | BE35: 0 | BF35: 0 | BG35: 0 | BH35: 0 | BI35: 0 | BJ35: 0 | BK35: 0 | BL35: 0 | BM35: 0 | BN35: 0 | BO35: 0 | BP35: 0 | BQ35: 0 | BR35: 0 | BS35: 0 | BT35: 0 | BU35: 0 | BV35: 0 | BW35: 0 | BX35: 0 | BY35: 0 | BZ35: 0 | CA35: 0 | CB35: 0 | CC35: 0 | CD35: 0 | CE35: 0 | CF35: 0 | CG35: 0 | CH35: 0 | CI35: 0 | CJ35: 0 | CK35: 0 | CL35: 0 | CM35: 0 | CN35: 0
A36: 32 | B36: Samuel Silva | C36: 59 | D36: 32 | E36: 9 | I36: 0* | L36: 25 | M36: 16 | Q36: 0* | U36: 0 | Y36: 0 | AB36: 30 | AC36: 11 | AE36: SIM | AG36: 0 | AJ36: 18 | AK36: 23 | AO36: 0 | AS36: 0 | AW36: 0 | AZ36: 0 | BA36: 0 | BB36: 0 | BC36: 0 | BD36: 0 | BE36: 0 | BF36: 0 | BG36: 0 | BH36: 0 | BI36: 0 | BJ36: 0 | BK36: 0 | BL36: 0 | BM36: 0 | BN36: 0 | BO36: 0 | BP36: 0 | BQ36: 0 | BR36: 0 | BS36: 0 | BT36: 0 | BU36: 0 | BV36: 0 | BW36: 0 | BX36: 0 | BY36: 0 | BZ36: 0 | CA36: 0 | CB36: 0 | CC36: 0 | CD36: 0 | CE36: 0 | CF36: 0 | CG36: 0 | CH36: 0 | CI36: 0 | CJ36: 0 | CK36: 0 | CL36: 0 | CM36: 0 | CN36: 0
A37: 33 | B37: Roberto Veloso | C37: 58 | E37: 0* | H37: 27 | I37: 14 | L37: 7 | M37: 44 | Q37: 0* | U37: 0 | Y37: 0 | AC37: 0 | AG37: 0 | AK37: 0 | AO37: 0 | AS37: 0 | AW37: 0 | AZ37: 0 | BA37: 0 | BB37: 0 | BC37: 0 | BD37: 0 | BE37: 0 | BF37: 0 | BG37: 0 | BH37: 0 | BI37: 0 | BJ37: 0 | BK37: 0 | BL37: 0 | BM37: 0 | BN37: 0 | BO37: 0 | BP37: 0 | BQ37: 0 | BR37: 0 | BS37: 0 | BT37: 0 | BU37: 0 | BV37: 0 | BW37: 0 | BX37: 0 | BY37: 0 | BZ37: 0 | CA37: 0 | CB37: 0 | CC37: 0 | CD37: 0 | CE37: 0 | CF37: 0 | CG37: 0 | CH37: 0 | CI37: 0 | CJ37: 0 | CK37: 0 | CL37: 0 | CM37: 0 | CN37: 0
A38: 34 | B38: Antônio Mourão | C38: 55 | D38: 7 | E38: 44 | H38: 30 | I38: 11 | M38: 0* | Q38: 0* | U38: 0 | Y38: 0 | AC38: 0 | AG38: 0 | AK38: 0 | AO38: 0 | AS38: 0 | AW38: 0 | AZ38: 0 | BA38: 0 | BB38: 0 | BC38: 0 | BD38: 0 | BE38: 0 | BF38: 0 | BG38: 0 | BH38: 0 | BI38: 0 | BJ38: 0 | BK38: 0 | BL38: 0 | BM38: 0 | BN38: 0 | BO38: 0 | BP38: 0 | BQ38: 0 | BR38: 0 | BS38: 0 | BT38: 0 | BU38: 0 | BV38: 0 | BW38: 0 | BX38: 0 | BY38: 0 | BZ38: 0 | CA38: 0 | CB38: 0 | CC38: 0 | CD38: 0 | CE38: 0 | CF38: 0 | CG38: 0 | CH38: 0 | CI38: 0 | CJ38: 0 | CK38: 0 | CL38: 0 | CM38: 0 | CN38: 0
A39: 35 | B39: Leandro Malias | C39: 53 | D39: 22 | E39: 19 | H39: 24 | I39: 17 | M39: 0* | Q39: 0* | U39: 0 | X39: 24 | Y39: 17 | AC39: 0 | AG39: 0 | AK39: 0 | AO39: 0 | AS39: 0 | AW39: 0 | AZ39: 0 | BA39: 0 | BB39: 0 | BC39: 0 | BD39: 0 | BE39: 0 | BF39: 0 | BG39: 0 | BH39: 0 | BI39: 0 | BJ39: 0 | BK39: 0 | BL39: 0 | BM39: 0 | BN39: 0 | BO39: 0 | BP39: 0 | BQ39: 0 | BR39: 0 | BS39: 0 | BT39: 0 | BU39: 0 | BV39: 0 | BW39: 0 | BX39: 0 | BY39: 0 | BZ39: 0 | CA39: 0 | CB39: 0 | CC39: 0 | CD39: 0 | CE39: 0 | CF39: 0 | CG39: 0 | CH39: 0 | CI39: 0 | CJ39: 0 | CK39: 0 | CL39: 0 | CM39: 0 | CN39: 0
A40: 36 | B40: Heimar Mata | C40: 51 | E40: 0* | H40: 31 | I40: 10 | M40: 0* | Q40: 0 | U40: 0 | X40: 22 | Y40: 19 | AC40: 0 | AG40: 0 | AJ40: 19 | AK40: 22 | AO40: 0 | AS40: 0 | AW40: 0 | AZ40: 0 | BA40: 0 | BB40: 0 | BC40: 0 | BD40: 0 | BE40: 0 | BF40: 0 | BG40: 0 | BH40: 0 | BI40: 0 | BJ40: 0 | BK40: 0 | BL40: 0 | BM40: 0 | BN40: 0 | BO40: 0 | BP40: 0 | BQ40: 0 | BR40: 0 | BS40: 0 | BT40: 0 | BU40: 0 | BV40: 0 | BW40: 0 | BX40: 0 | BY40: 0 | BZ40: 0 | CA40: 0 | CB40: 0 | CC40: 0 | CD40: 0 | CE40: 0 | CF40: 0 | CG40: 0 | CH40: 0 | CI40: 0 | CJ40: 0 | CK40: 0 | CL40: 0 | CM40: 0 | CN40: 0
A41: 37 | B41: Ivan Renault | C41: 43 | D41: 14 | E41: 30 | H41: 28 | I41: 13 | M41: 0* | Q41: 0* | U41: 0 | Y41: 0 | AC41: 0 | AG41: 0 | AK41: 0 | AO41: 0 | AS41: 0 | AW41: 0 | AZ41: 0 | BA41: 0 | BB41: 0 | BC41: 0 | BD41: 0 | BE41: 0 | BF41: 0 | BG41: 0 | BH41: 0 | BI41: 0 | BJ41: 0 | BK41: 0 | BL41: 0 | BM41: 0 | BN41: 0 | BO41: 0 | BP41: 0 | BQ41: 0 | BR41: 0 | BS41: 0 | BT41: 0 | BU41: 0 | BV41: 0 | BW41: 0 | BX41: 0 | BY41: 0 | BZ41: 0 | CA41: 0 | CB41: 0 | CC41: 0 | CD41: 0 | CE41: 0 | CF41: 0 | CG41: 0 | CH41: 0 | CI41: 0 | CJ41: 0 | CK41: 0 | CL41: 0 | CM41: 0 | CN41: 0
A42: 38 | B42: Marcelo Horta | C42: 38 | D42: 20 | E42: 21 | I42: 0* | L42: 24 | M42: 17 | Q42: 0* | U42: 0 | Y42: 0 | AC42: 0 | AG42: 0 | AK42: 0 | AO42: 0 | AS42: 0 | AW42: 0 | AZ42: 0 | BA42: 0 | BB42: 0 | BC42: 0 | BD42: 0 | BE42: 0 | BF42: 0 | BG42: 0 | BH42: 0 | BI42: 0 | BJ42: 0 | BK42: 0 | BL42: 0 | BM42: 0 | BN42: 0 | BO42: 0 | BP42: 0 | BQ42: 0 | BR42: 0 | BS42: 0 | BT42: 0 | BU42: 0 | BV42: 0 | BW42: 0 | BX42: 0 | BY42: 0 | BZ42: 0 | CA42: 0 | CB42: 0 | CC42: 0 | CD42: 0 | CE42: 0 | CF42: 0 | CG42: 0 | CH42: 0 | CI42: 0 | CJ42: 0 | CK42: 0 | CL42: 0 | CM42: 0 | CN42: 0
A43: 39 | B43: Adriano Morato | C43: 37 | D43: 34 | E43: 7 | I43: 0* | M43: 0* | P43: 24 | Q43: 17 | U43: 0 | X43: 28 | Y43: 13 | AC43: 0 | AG43: 0 | AK43: 0 | AO43: 0 | AS43: 0 | AW43: 0 | AZ43: 0 | BA43: 0 | BB43: 0 | BC43: 0 | BD43: 0 | BE43: 0 | BF43: 0 | BG43: 0 | BH43: 0 | BI43: 0 | BJ43: 0 | BK43: 0 | BL43: 0 | BM43: 0 | BN43: 0 | BO43: 0 | BP43: 0 | BQ43: 0 | BR43: 0 | BS43: 0 | BT43: 0 | BU43: 0 | BV43: 0 | BW43: 1 | BX43: 0 | BY43: 0 | BZ43: 0 | CA43: 1 | CB43: 0 | CC43: 0 | CD43: 0 | CE43: 0 | CF43: 0 | CG43: 1 | CH43: 0 | CI43: 0 | CJ43: 0 | CK43: 0 | CL43: 0 | CM43: 0 | CN43: 0
A44: 40 | B44: Will Conrad | C44: 20 | D44: 29 | E44: 12 | H44: 33 | I44: 8 | M44: 0* | Q44: 0* | U44: 0 | Y44: 0 | AC44: 0 | AG44: 0 | AK44: 0 | AO44: 0 | AS44: 0 | AW44: 0 | AZ44: 0 | BA44: 0 | BB44: 0 | BC44: 0 | BD44: 0 | BE44: 0 | BF44: 0 | BG44: 0 | BH44: 0 | BI44: 0 | BJ44: 0 | BK44: 0 | BL44: 0 | BM44: 0 | BN44: 0 | BO44: 0 | BP44: 0 | BQ44: 0 | BR44: 0 | BS44: 0 | BT44: 0 | BU44: 0 | BV44: 0 | BW44: 0 | BX44: 0 | BY44: 0 | BZ44: 0 | CA44: 0 | CB44: 0 | CC44: 0 | CD44: 0 | CE44: 0 | CF44: 0 | CG44: 0 | CH44: 0 | CI44: 0 | CJ44: 0 | CK44: 0 | CL44: 0 | CM44: 0 | CN44: 0
A45: 41 | B45: Junior Torres | C45: 15 | D45: 30 | E45: 11 | I45: 0* | M45: 0* | Q45: 0 | T45: 37 | U45: 4 | W45: SIM | Y45: 0 | AC45: 0 | AG45: 0 | AK45: 0 | AO45: 0 | AS45: 0 | AW45: 0 | AZ45: 0 | BA45: 0 | BB45: 0 | BC45: 0 | BD45: 0 | BE45: 0 | BF45: 0 | BG45: 0 | BH45: 0 | BI45: 0 | BJ45: 0 | BK45: 0 | BL45: 0 | BM45: 0 | BN45: 0 | BO45: 0 | BP45: 0 | BQ45: 0 | BR45: 0 | BS45: 0 | BT45: 0 | BU45: 0 | BV45: 0 | BW45: 0 | BX45: 0 | BY45: 0 | BZ45: 0 | CA45: 0 | CB45: 0 | CC45: 0 | CD45: 0 | CE45: 0 | CF45: 0 | CG45: 0 | CH45: 0 | CI45: 0 | CJ45: 0 | CK45: 0 | CL45: 0 | CM45: 0 | CN45: 0
A46: 42 | B46: Fred Mello | C46: 10 | E46: 0* | I46: 0* | L46: 31 | M46: 10 | Q46: 0 | U46: 0 | Y46: 0 | AC46: 0 | AG46: 0 | AK46: 0 | AO46: 0 | AS46: 0 | AW46: 0 | AZ46: 0 | BA46: 0 | BB46: 0 | BC46: 0 | BD46: 0 | BE46: 0 | BF46: 0 | BG46: 0 | BH46: 0 | BI46: 0 | BJ46: 0 | BK46: 0 | BL46: 0 | BM46: 0 | BN46: 0 | BO46: 0 | BP46: 0 | BQ46: 0 | BR46: 0 | BS46: 0 | BT46: 0 | BU46: 0 | BV46: 0 | BW46: 0 | BX46: 0 | BY46: 0 | BZ46: 0 | CA46: 0 | CB46: 0 | CC46: 0 | CD46: 0 | CE46: 0 | CF46: 0 | CG46: 0 | CH46: 0 | CI46: 0 | CJ46: 0 | CK46: 0 | CL46: 0 | CM46: 0 | CN46: 0
A47: 43 | B47: Sylvio Junior | C47: 10 | D47: 31 | E47: 10 | I47: 0* | M47: 0* | Q47: 0 | U47: 0 | Y47: 0 | AC47: 0 | AG47: 0 | AK47: 0 | AO47: 0 | AS47: 0 | AW47: 0 | AZ47: 0 | BA47: 0 | BB47: 0 | BC47: 0 | BD47: 0 | BE47: 0 | BF47: 0 | BG47: 0 | BH47: 0 | BI47: 0 | BJ47: 0 | BK47: 0 | BL47: 0 | BM47: 0 | BN47: 0 | BO47: 0 | BP47: 0 | BQ47: 0 | BR47: 0 | BS47: 0 | BT47: 0 | BU47: 0 | BV47: 0 | BW47: 0 | BX47: 0 | BY47: 0 | BZ47: 0 | CA47: 0 | CB47: 0 | CC47: 0 | CD47: 0 | CE47: 0 | CF47: 0 | CG47: 0 | CH47: 0 | CI47: 0 | CJ47: 0 | CK47: 0 | CL47: 0 | CM47: 0 | CN47: 0
A48: 44 | B48: Lucas Mourão | C48: 6 | D48: 35 | E48: 6 | I48: 0* | M48: 0* | Q48: 0 | U48: 0 | Y48: 0 | AC48: 0 | AG48: 0 | AK48: 0 | AO48: 0 | AS48: 0 | AW48: 0 | AZ48: 0 | BA48: 0 | BB48: 0 | BC48: 0 | BD48: 0 | BE48: 0 | BF48: 0 | BG48: 0 | BH48: 0 | BI48: 0 | BJ48: 0 | BK48: 0 | BL48: 0 | BM48: 0 | BN48: 0 | BO48: 0 | BP48: 0 | BQ48: 0 | BR48: 0 | BS48: 0 | BT48: 0 | BU48: 0 | BV48: 0 | BW48: 0 | BX48: 0 | BY48: 0 | BZ48: 0 | CA48: 0 | CB48: 0 | CC48: 0 | CD48: 0 | CE48: 0 | CF48: 0 | CG48: 0 | CH48: 0 | CI48: 0 | CJ48: 0 | CK48: 0 | CL48: 0 | CM48: 0 | CN48: 0
A49: 45 | B49: XXXXXXX | C49: 0 | E49: 0* | I49: 0* | M49: 0 | Q49: 0 | U49: 0 | Y49: 0 | AC49: 0 | AG49: 0 | AK49: 0 | AO49: 0 | AS49: 0 | AW49: 0 | AZ49: 0 | BA49: 0 | BB49: 0 | BC49: 0 | BD49: 0 | BE49: 0 | BF49: 0 | BG49: 0 | BH49: 0 | BI49: 0 | BJ49: 0 | BK49: 0 | BL49: 0 | BM49: 0 | BN49: 0 | BO49: 0 | BP49: 0 | BQ49: 0 | BR49: 0 | BS49: 0 | BT49: 0 | BU49: 0 | BV49: 0 | BW49: 0 | BX49: 0 | BY49: 0 | BZ49: 0 | CA49: 0 | CB49: 0 | CC49: 0 | CD49: 0 | CE49: 0 | CF49: 0 | CG49: 0 | CH49: 0 | CI49: 0 | CJ49: 0 | CK49: 0 | CL49: 0 | CM49: 0 | CN49: 0

Sheet Tabela Equipes
A1: 2020 | D1: OK | H1: OK | L1: OK | P1: OK | T1: OK | X1: OK | AB1: OK | AF1: OK | AJ1: OK | AN1: OK | AR1: OK | AV1: OK
C2: 1ª etapa | G2: 2ª etapa | K2: 3ª etapa | O2: 4ª etapa | S2: 5ª etapa | W2: 6ª etapa | AA2: 7ª etapa | AE2: 8ª etapa | AI2: 9ª etapa | AM2: 10ª etapa | AQ2: 11ª etapa | AU2: 12ª etapa
C3: 00:00:00 | G3: 00:00:00 | K3: 00:00:00 | O3: 00:00:00 | S3: 00:00:00 | W3: 00:00:00 | AA3: 00:00:00 | AE3: 00:00:00 | AI3: 00:00:00 | AM3: 00:00:00 | AQ3: 00:00:00 | AU3: 00:00:00
A4: EQUIPES | B4: Pontuação Geral | C4: Posição | D4: Pontos | E4: Bônus | F4: Penalidade | G4: Posição | H4: Pontos | I4: Bônus | J4: Penalidade | K4: Posição | L4: Pontos | M4: Bônus | N4: Penalidade | O4: Posição | P4: Pontos | Q4: Bônus | R4: Penalidade | S4: Posição | T4: Pontos | U4: Bônus | V4: Penalidade | W4: Posição | X4: Pontos | Y4: Bônus | Z4: Penalidade | AA4: Posição | AB4: Pontos | AC4: Bônus | AD4: Penalidade | AE4: Posição | AF4: Pontos | AG4: Bônus | AH4: Penalidade | AI4: Posição | AJ4: Pontos | AK4: Bônus | AL4: Penalidade | AM4: Posição | AN4: Pontos | AO4: Bônus | AP4: Penalidade | AQ4: Posição | AR4: Pontos | AS4: Bônus | AT4: Penalidade | AU4: Posição | AV4: Pontos | AW4: Bônus | AX4: Penalidade
A5: EQUIPE 1 | B5: 1083 | D5: 111 | E5: 2 | H5: 108 | I5: 2 | L5: 109 | M5: 0 | P5: 90 | Q5: 0 | T5: 80 | U5: 0 | X5: 82 | Y5: 0 | AB5: 105 | AC5: 0 | AF5: 92 | AG5: 0 | AJ5: 95 | AK5: 0 | AN5: 55 | AO5: 0 | AR5: 40 | AS5: 0 | AV5: 110 | AW5: 2
A6: Marcelo Pereira | B6: 495 | C6: 2 | D6: 55 | E6: 2 | G6: 5 | H6: 48 | I6: 0 | K6: 4 | L6: 50 | M6: 0 | O6: 5 | P6: 48 | Q6: 0 | S6: 5 | T6: 48 | U6: 0 | W6: 3 | X6: 52 | Y6: 0 | AA6: 4 | AB6: 50 | AC6: 0 | AE6: 5 | AF6: 48 | AG6: 0 | AI6: 13 | AJ6: 32 | AK6: 0 | AM6: 0 | AN6: 0 | AO6: 0 | AQ6: 0 | AR6: 0 | AS6: 0 | AU6: 1 | AV6: 60 | AW6: 2
A7: Sylvio Junior | B7: 10 | C7: 31 | D7: 10 | E7: 0 | G7: 0 | H7: 0 | I7: 0 | K7: 0 | L7: 0 | M7: 0 | O7: 0 | P7: 0 | Q7: 0 | S7: 0 | T7: 0 | U7: 0 | W7: 0 | X7: 0 | Y7: 0 | AA7: 0 | AB7: 0 | AC7: 0 | AE7: 0 | AF7: 0 | AG7: 0 | AI7: 0 | AJ7: 0 | AK7: 0 | AM7: 0 | AN7: 0 | AO7: 0 | AQ7: 0 | AR7: 0 | AS7: 0 | AU7: 0 | AV7: 0 | AW7: 0
A8: Wesley Camargos | B8: 71 | C8: 0 | D8: 0 | E8: 0 | G8: 0 | H8: 0 | I8: 0 | K8: 28 | L8: 13 | M8: 0 | O8: 0 | P8: 0 | Q8: 0 | S8: 23 | T8: 18 | U8: 0 | W8: 0 | X8: 0 | Y8: 0 | AA8: 0 | AB8: 0 | AC8: 0 | AE8: 0 | AF8: 0 | AG8: 0 | AI8: 22 | AJ8: 19 | AK8: 0 | AM8: 20 | AN8: 21 | AO8: 0 | AQ8: 0 | AR8: 0 | AS8: 0 | AU8: 0 | AV8: 0 | AW8: 0
A9: Marcelo Campos | B9: 507 | C9: 6 | D9: 46 | E9: 0 | G9: 1 | H9: 60 | I9: 2 | K9: 6 | L9: 46 | M9: 0 | O9: 8 | P9: 42 | Q9: 0 | S9: 27 | T9: 14 | U9: 0 | W9: 14 | X9: 30 | Y9: 0 | AA9: 2 | AB9: 55 | AC9: 0 | AE9: 7 | AF9: 44 | AG9: 0 | AI9: 7 | AJ9: 44 | AK9: 0 | AM9: 12 | AN9: 34 | AO9: 0 | AQ9: 9 | AR9: 40 | AS9: 0 | AU9: 4 | AV9: 50 | AW9: 0
A10: XXX | B10: 0
A11: EQUIPE 2 | B11: 635 | D11: 41 | E11: 0 | H11: 85 | I11: 0 | L11: 61 | M11: 0 | P11: 34 | Q11: 0 | T11: 41 | U11: 0 | X11: 31 | Y11: 0 | AB11: 57 | AC11: 0 | AF11: 34 | AG11: 0 | AJ11: 79 | AK11: 0 | AN11: 64 | AO11: 0 | AR11: 38 | AS11: 0 | AV11: 70 | AW11: 0
A12: Claudio Junqueira | B12: 282 | C12: 15 | D12: 28 | E12: 0 | G12: 14 | H12: 30 | I12: 0 | K12: 33 | L12: 8 | M12: 0 | O12: 0 | P12: 0 | Q12: 0 | S12: 0 | T12: 0 | U12: 0 | W12: 17 | X12: 24 | Y12: 0 | AA12: 11 | AB12: 36 | AC12: 0 | AE12: 0 | AF12: 0 | AG12: 0 | AI12: 11 | AJ12: 36 | AK12: 0 | AM12: 9 | AN12: 40 | AO12: 0 | AQ12: 10 | AR12: 38 | AS12: 0 | AU12: 8 | AV12: 42 | AW12: 0
A13: Fernando Lobo | B13: 188 | C13: 28 | D13: 13 | E13: 0 | G13: 9 | H13: 40 | I13: 0 | K13: 30 | L13: 11 | M13: 0 | O13: 12 | P13: 34 | Q13: 0 | S13: 24 | T13: 17 | U13: 0 | W13: 34 | X13: 7 | Y13: 0 | AA13: 0 | AB13: 0 | AC13: 0 | AE13: 25 | AF13: 16 | AG13: 0 | AI13: 16 | AJ13: 26 | AK13: 0 | AM13: 17 | AN13: 24 | AO13: 0 | AQ13: 0 | AR13: 0 | AS13: 0 | AU13: 0 | AV13: 0 | AW13: 0
A14: Renato Cardoso | B14: 155 | C14: 0 | D14: 0 | E14: 0 | G14: 26 | H14: 15 | I14: 0 | K14: 13 | L14: 32 | M14: 0 | O14: 0 | P14: 0 | Q14: 0 | S14: 17 | T14: 24 | U14: 0 | W14: 0 | X14: 0 | Y14: 0 | AA14: 20 | AB14: 21 | AC14: 0 | AE14: 23 | AF14: 18 | AG14: 0 | AI14: 24 | AJ14: 17 | AK14: 0 | AM14: 0 | AN14: 0 | AO14: 0 | AQ14: 0 | AR14: 0 | AS14: 0 | AU14: 15 | AV14: 28 | AW14: 0
A15: Fred Mello | B15: 10 | C15: 0 | D15: 0 | E15: 0 | G15: 0 | H15: 0 | I15: 0 | K15: 31 | L15: 10 | M15: 0 | O15: 0 | P15: 0 | Q15: 0 | S15: 0 | T15: 0 | U15: 0 | W15: 0 | X15: 0 | Y15: 0 | AA15: 0 | AB15: 0 | AC15: 0 | AE15: 0 | AF15: 0 | AG15: 0 | AI15: 0 | AJ15: 0 | AK15: 0 | AM15: 0 | AN15: 0 | AO15: 0 | AQ15: 0 | AR15: 0 | AS15: 0 | AU15: 0 | AV15: 0 | AW15: 0
A16: XXX | B16: 0
A17: EQUIPE 3 | B17: 1105 | D17: 134 | E17: 0 | H17: 79 | I17: 0 | L17: 114 | M17: 0 | P17: 82 | Q17: 0 | T17: 136 | U17: 0 | X17: 90 | Y17: 0 | AB17: 28 | AC17: 0 | AF17: 120 | AG17: 0 | AJ17: 62 | AK17: 0 | AN17: 120 | AO17: 0 | AR17: 72 | AS17: 0 | AV17: 68 | AW17: 0
A18: Cláudio Dumont | B18: 269 | C18: 3 | D18: 52 | E18: 0 | G18: 29 | H18: 12 | I18: 0 | K18: 21 | L18: 20 | M18: 0 | O18: 10 | P18: 38 | Q18: 0 | S18: 1 | T18: 60 | U18: 0 | W18: 0 | X18: 0 | Y18: 0 | AA18: 0 | AB18: 0 | AC18: 0 | AE18: 2 | AF18: 55 | AG18: 0 | AI18: 0 | AJ18: 0 | AK18: 0 | AM18: 13 | AN18: 32 | AO18: 0 | AQ18: 0 | AR18: 0 | AS18: 0 | AU18: 0 | AV18: 0 | AW18: 0
A19: Rodrigo Mercadante | B19: 382 | C19: 13 | D19: 32 | E19: 0 | G19: 34 | H19: 7 | I19: 0 | K19: 8 | L19: 42 | M19: 0 | O19: 15 | P19: 28 | Q19: 0 | S19: 9 | T19: 40 | U19: 0 | W19: 9 | X19: 40 | Y19: 0 | AA19: 15 | AB19: 28 | AC19: 0 | AE19: 22 | AF19: 19 | AG19: 0 | AI19: 6 | AJ19: 46 | AK19: 0 | AM19: 15 | AN19: 28 | AO19: 0 | AQ19: 15 | AR19: 28 | AS19: 0 | AU19: 7 | AV19: 44 | AW19: 0
A20: Will Conrad | B20: 20 | C20: 29 | D20: 12 | E20: 0 | G20: 33 | H20: 8 | I20: 0 | K20: 0 | L20: 0 | M20: 0 | O20: 0 | P20: 0 | Q20: 0 | S20: 0 | T20: 0 | U20: 0 | W20: 0 | X20: 0 | Y20: 0 | AA20: 0 | AB20: 0 | AC20: 0 | AE20: 0 | AF20: 0 | AG20: 0 | AI20: 0 | AJ20: 0 | AK20: 0 | AM20: 0 | AN20: 0 | AO20: 0 | AQ20: 0 | AR20: 0 | AS20: 0 | AU20: 0 | AV20: 0 | AW20: 0
A21: Thiara Silveira | B21: 66 | C21: 10 | D21: 38 | E21: 0 | G21: 15 | H21: 28 | I21: 0 | K21: 0 | L21: 0 | M21: 0 | O21: 0 | P21: 0 | Q21: 0 | S21: 0 | T21: 0 | U21: 0 | W21: 0 | X21: 0 | Y21: 0 | AA21: 0 | AB21: 0 | AC21: 0 | AE21: 0 | AF21: 0 | AG21: 0 | AI21: 0 | AJ21: 0 | AK21: 0 | AM21: 0 | AN21: 0 | AO21: 0 | AQ21: 0 | AR21: 0 | AS21: 0 | AU21: 0 | AV21: 0 | AW21: 0
A22: Roberto Torres | B22: 368 | C22: 0 | D22: 0 | E22: 0 | G22: 17 | H22: 24 | I22: 0 | K22: 3 | L22: 52 | M22: 0 | O22: 25 | P22: 16 | Q22: 0 | S22: 11 | T22: 36 | U22: 0 | W22: 4 | X22: 50 | Y22: 0 | AA22: 0 | AB22: 0 | AC22: 0 | AE22: 6 | AF22: 46 | AG22: 0 | AI22: 25 | AJ22: 16 | AK22: 0 | AM22: 1 | AN22: 60 | AO22: 0 | AQ22: 7 | AR22: 44 | AS22: 0 | AU22: 17 | AV22: 24 | AW22: 0
A23: EQUIPE 4 | B23: 514 | D23: 80 | E23: 0 | H23: 31 | I23: 0 | L23: 64 | M23: 0 | P23: 36 | Q23: 0 | T23: 42 | U23: 0 | X23: 35 | Y23: 0 | AB23: 31 | AC23: 0 | AF23: 20 | AG23: 0 | AJ23: 51 | AK23: 0 | AN23: 26 | AO23: 0 | AR23: 52 | AS23: 0 | AV23: 46 | AW23: 0
A24: Daniel Nahum | B24: 375 | C24: 12 | D24: 34 | E24: 0 | G24: 23 | H24: 18 | I24: 0 | K24: 5 | L24: 48 | M24: 0 | O24: 22 | P24: 19 | Q24: 0 | S24: 8 | T24: 42 | U24: 0 | W24: 19 | X24: 22 | Y24: 0 | AA24: 21 | AB24: 20 | AC24: 0 | AE24: 21 | AF24: 20 | AG24: 0 | AI24: 15 | AJ24: 28 | AK24: 0 | AM24: 16 | AN24: 26 | AO24: 0 | AQ24: 3 | AR24: 52 | AS24: 0 | AU24: 6 | AV24: 46 | AW24: 0
A25: Ivan Renault | B25: 43 | C25: 14 | D25: 30 | E25: 0 | G25: 28 | H25: 13 | I25: 0 | K25: 0 | L25: 0 | M25: 0 | O25: 0 | P25: 0 | Q25: 0 | S25: 0 | T25: 0 | U25: 0 | W25: 0 | X25: 0 | Y25: 0 | AA25: 0 | AB25: 0 | AC25: 0 | AE25: 0 | AF25: 0 | AG25: 0 | AI25: 0 | AJ25: 0 | AK25: 0 | AM25: 0 | AN25: 0 | AO25: 0 | AQ25: 0 | AR25: 0 | AS25: 0 | AU25: 0 | AV25: 0 | AW25: 0
A26: Adriano Morato | B26: 37 | C26: 34 | D26: 7 | E26: 0 | G26: 0 | H26: 0 | I26: 0 | K26: 0 | L26: 0 | M26: 0 | O26: 24 | P26: 17 | Q26: 0 | S26: 0 | T26: 0 | U26: 0 | W26: 28 | X26: 13 | Y26: 0 | AA26: 0 | AB26: 0 | AC26: 0 | AE26: 0 | AF26: 0 | AG26: 0 | AI26: 0 | AJ26: 0 | AK26: 0 | AM26: 0 | AN26: 0 | AO26: 0 | AQ26: 0 | AR26: 0 | AS26: 0 | AU26: 0 | AV26: 0 | AW26: 0
A27: Samuel Silva | B27: 59 | C27: 32 | D27: 9 | E27: 0 | G27: 0 | H27: 0 | I27: 0 | K27: 25 | L27: 16 | M27: 0 | O27: 0 | P27: 0 | Q27: 0 | S27: 0 | T27: 0 | U27: 0 | W27: 0 | X27: 0 | Y27: 0 | AA27: 30 | AB27: 11 | AC27: 0 | AE27: 0 | AF27: 0 | AG27: 0 | AI27: 18 | AJ27: 23 | AK27: 0 | AM27: 0 | AN27: 0 | AO27: 0 | AQ27: 0 | AR27: 0 | AS27: 0 | AU27: 0 | AV27: 0 | AW27: 0
A28: XXX | B28: 0
A29: EQUIPE 5 | B29: 949 | D29: 112 | E29: 0 | H29: 95 | I29: 0 | L29: 90 | M29: 0 | P29: 84 | Q29: 0 | T29: 80 | U29: 0 | X29: 70 | Y29: 0 | AB29: 62 | AC29: 0 | AF29: 80 | AG29: 0 | AJ29: 102 | AK29: 2 | AN29: 38 | AO29: 0 | AR29: 80 | AS29: 2 | AV29: 52 | AW29: 0
A30: Wesley Bambirra | B30: 532 | C30: 4 | D30: 50 | E30: 0 | G30: 7 | H30: 44 | I30: 0 | K30: 12 | L30: 34 | M30: 0 | O30: 3 | P30: 52 | Q30: 0 | S30: 4 | T30: 50 | U30: 0 | W30: 16 | X30: 26 | Y30: 0 | AA30: 9 | AB30: 40 | AC30: 0 | AE30: 3 | AF30: 52 | AG30: 0 | AI30: 1 | AJ30: 60 | AK30: 2 | AM30: 23 | AN30: 18 | AO30: 0 | AQ30: 4 | AR30: 50 | AS30: 2 | AU30: 3 | AV30: 52 | AW30: 0
A31: Roberto Veloso | B31: 58 | C31: 0 | D31: 0 | E31: 0 | G31: 27 | H31: 14 | I31: 0 | K31: 7 | L31: 44 | M31: 0 | O31: 0 | P31: 0 | Q31: 0 | S31: 0 | T31: 0 | U31: 0 | W31: 0 | X31: 0 | Y31: 0 | AA31: 0 | AB31: 0 | AC31: 0 | AE31: 0 | AF31: 0 | AG31: 0 | AI31: 0 | AJ31: 0 | AK31: 0 | AM31: 0 | AN31: 0 | AO31: 0 | AQ31: 0 | AR31: 0 | AS31: 0 | AU31: 0 | AV31: 0 | AW31: 0
A32: Antônio Mourão | B32: 55 | C32: 7 | D32: 44 | E32: 0 | G32: 30 | H32: 11 | I32: 0 | K32: 0 | L32: 0 | M32: 0 | O32: 0 | P32: 0 | Q32: 0 | S32: 0 | T32: 0 | U32: 0 | W32: 0 | X32: 0 | Y32: 0 | AA32: 0 | AB32: 0 | AC32: 0 | AE32: 0 | AF32: 0 | AG32: 0 | AI32: 0 | AJ32: 0 | AK32: 0 | AM32: 0 | AN32: 0 | AO32: 0 | AQ32: 0 | AR32: 0 | AS32: 0 | AU32: 0 | AV32: 0 | AW32: 0
A33: Rafael Alves | B33: 304 | C33: 23 | D33: 18 | E33: 0 | G33: 16 | H33: 26 | I33: 0 | K33: 29 | L33: 12 | M33: 0 | O33: 13 | P33: 32 | Q33: 0 | S33: 14 | T33: 30 | U33: 0 | W33: 7 | X33: 44 | Y33: 0 | AA33: 19 | AB33: 22 | AC33: 0 | AE33: 15 | AF33: 28 | AG33: 0 | AI33: 8 | AJ33: 42 | AK33: 0 | AM33: 21 | AN33: 20 | AO33: 0 | AQ33: 14 | AR33: 30 | AS33: 0 | AU33: 0 | AV33: 0 | AW33: 0
A34: XXX | B34: 0
A35: EQUIPE 6 | B35: 1142 | D35: 37 | E35: 0 | H35: 64 | I35: 0 | L35: 49 | M35: 0 | P35: 76 | Q35: 0 | T35: 108 | U35: 2 | X35: 137 | Y35: 2 | AB35: 132 | AC35: 2 | AF35: 133 | AG35: 2 | AJ35: 124 | AK35: 0 | AN35: 64 | AO35: 0 | AR35: 115 | AS35: 0 | AV35: 95 | AW35: 0
A36: Fernando Medeiros | B36: 532 | C36: 18 | D36: 23 | E36: 0 | G36: 10 | H36: 38 | I36: 0 | K36: 16 | L36: 26 | M36: 0 | O36: 2 | P36: 55 | Q36: 0 | S36: 2 | T36: 55 | U36: 2 | W36: 8 | X36: 42 | Y36: 0 | AA36: 5 | AB36: 48 | AC36: 2 | AE36: 4 | AF36: 50 | AG36: 2 | AI36: 3 | AJ36: 52 | AK36: 0 | AM36: 8 | AN36: 42 | AO36: 0 | AQ36: 2 | AR36: 55 | AS36: 0 | AU36: 9 | AV36: 40 | AW36: 0
A37: Heimar Mata | B37: 51 | C37: 0 | D37: 0 | E37: 0 | G37: 31 | H37: 10 | I37: 0 | K37: 0 | L37: 0 | M37: 0 | O37: 0 | P37: 0 | Q37: 0 | S37: 0 | T37: 0 | U37: 0 | W37: 22 | X37: 19 | Y37: 0 | AA37: 0 | AB37: 0 | AC37: 0 | AE37: 0 | AF37: 0 | AG37: 0 | AI37: 19 | AJ37: 22 | AK37: 0 | AM37: 0 | AN37: 0 | AO37: 0 | AQ37: 0 | AR37: 0 | AS37: 0 | AU37: 0 | AV37: 0 | AW37: 0
A38: Daniel Paranhos | B38: 180 | C38: 27 | D38: 14 | E38: 0 | G38: 25 | H38: 16 | I38: 0 | K38: 18 | L38: 23 | M38: 0 | O38: 20 | P38: 21 | Q38: 0 | S38: 10 | T38: 38 | U38: 0 | W38: 20 | X38: 21 | Y38: 0 | AA38: 17 | AB38: 24 | AC38: 0 | AE38: 18 | AF38: 23 | AG38: 0 | AI38: 0 | AJ38: 0 | AK38: 0 | AM38: 0 | AN38: 0 | AO38: 0 | AQ38: 0 | AR38: 0 | AS38: 0 | AU38: 0 | AV38: 0 | AW38: 0
A39: Leonardo Oliveira | B39: 379 | C39: 0 | D39: 0 | E39: 0 | G39: 0 | H39: 0 | I39: 0 | K39: 0 | L39: 0 | M39: 0 | O39: 0 | P39: 0 | Q39: 0 | S39: 26 | T39: 15 | U39: 0 | W39: 2 | X39: 55 | Y39: 2 | AA39: 1 | AB39: 60 | AC39: 0 | AE39: 1 | AF39: 60 | AG39: 0 | AI39: 4 | AJ39: 50 | AK39: 0 | AM39: 19 | AN39: 22 | AO39: 0 | AQ39: 1 | AR39: 60 | AS39: 0 | AU39: 2 | AV39: 55 | AW39: 0
A40: XXX
A41: EQUIPE 7 | B41: 1439 | D41: 117 | E41: 0 | H41: 164 | I41: 0 | L41: 115 | M41: 0 | P41: 154 | Q41: 2 | T41: 100 | U41: 0 | X41: 162 | Y41: 0 | AB41: 120 | AC41: 0 | AF41: 124 | AG41: 0 | AJ41: 58 | AK41: 0 | AN41: 126 | AO41: 0 | AR41: 104 | AS41: 0 | AV41: 93 | AW41: 0
A42: Marconi Teixeira | B42: 421 | C42: 1 | D42: 60 | E42: 0 | G42: 3 | H42: 52 | I42: 0 | K42: 2 | L42: 55 | M42: 0 | O42: 1 | P42: 60 | Q42: 2 | S42: 0 | T42: 0 | U42: 0 | W42: 1 | X42: 60 | Y42: 0 | AA42: 7 | AB42: 44 | AC42: 0 | AE42: 8 | AF42: 42 | AG42: 0 | AI42: 0 | AJ42: 0 | AK42: 0 | AM42: 0 | AN42: 0 | AO42: 0 | AQ42: 6 | AR42: 46 | AS42: 0 | AU42: 0 | AV42: 0 | AW42: 0
A43: Wesley Canuto | B43: 237 | C43: 25 | D43: 16 | E43: 0 | G43: 11 | H43: 36 | I43: 0 | K43: 17 | L43: 24 | M43: 0 | O43: 17 | P43: 24 | Q43: 0 | S43: 13 | T43: 32 | U43: 0 | W43: 15 | X43: 28 | Y43: 0 | AA43: 0 | AB43: 0 | AC43: 0 | AE43: 17 | AF43: 24 | AG43: 0 | AI43: 0 | AJ43: 0 | AK43: 0 | AM43: 14 | AN43: 30 | AO43: 0 | AQ43: 0 | AR43: 0 | AS43: 0 | AU43: 18 | AV43: 23 | AW43: 0
A44: Diego Silva | B44: 362 | C44: 24 | D44: 17 | E44: 0 | G44: 20 | H44: 21 | I44: 0 | K44: 19 | L44: 22 | M44: 0 | O44: 16 | P44: 26 | Q44: 0 | S44: 19 | T44: 22 | U44: 0 | W44: 10 | X44: 38 | Y44: 0 | AA44: 6 | AB44: 46 | AC44: 0 | AE44: 19 | AF44: 22 | AG44: 0 | AI44: 9 | AJ44: 40 | AK44: 0 | AM44: 6 | AN44: 46 | AO44: 0 | AQ44: 16 | AR44: 26 | AS44: 0 | AU44: 11 | AV44: 36 | AW44: 0
A45: Pedro Fialho | B45: 419 | C45: 17 | D45: 24 | E45: 0 | G45: 2 | H45: 55 | I45: 0 | K45: 27 | L45: 14 | M45: 0 | O45: 7 | P45: 44 | Q45: 0 | S45: 6 | T45: 46 | U45: 0 | W45: 11 | X45: 36 | Y45: 0 | AA45: 14 | AB45: 30 | AC45: 0 | AE45: 11 | AF45: 36 | AG45: 0 | AI45: 23 | AJ45: 18 | AK45: 0 | AM45: 4 | AN45: 50 | AO45: 0 | AQ45: 13 | AR45: 32 | AS45: 0 | AU45: 12 | AV45: 34 | AW45: 0
A46: XXX
A47: EQUIPE 8 | B47: 813 | D47: 87 | E47: 0 | H47: 116 | I47: 0 | L47: 84 | M47: 0 | P47: 69 | Q47: 0 | T47: 53 | U47: 0 | X47: 94 | Y47: 0 | AB47: 57 | AC47: 0 | AF47: 78 | AG47: 0 | AJ47: 48 | AK47: 0 | AN47: 61 | AO47: 0 | AR47: 34 | AS47: 0 | AV47: 32 | AW47: 0
A48: Jarbas Reis | B48: 293 | C48: 16 | D48: 26 | E48: 0 | G48: 12 | H48: 34 | I48: 0 | K48: 11 | L48: 36 | M48: 0 | O48: 30 | P48: 11 | Q48: 0 | S48: 32 | T48: 9 | U48: 0 | W48: 26 | X48: 15 | Y48: 0 | AA48: 10 | AB48: 38 | AC48: 0 | AE48: 10 | AF48: 38 | AG48: 0 | AI48: 5 | AJ48: 48 | AK48: 0 | AM48: 10 | AN48: 38 | AO48: 0 | AQ48: 0 | AR48: 0 | AS48: 0 | AU48: 0 | AV48: 0 | AW48: 0
A49: Raphael Reis | B49: 216 | C49: 19 | D49: 22 | E49: 0 | G49: 8 | H49: 42 | I49: 0 | K49: 23 | L49: 18 | M49: 0 | O49: 9 | P49: 40 | Q49: 0 | S49: 20 | T49: 21 | U49: 0 | W49: 25 | X49: 16 | Y49: 0 | AA49: 0 | AB49: 0 | AC49: 0 | AE49: 0 | AF49: 0 | AG49: 0 | AI49: 0 | AJ49: 0 | AK49: 0 | AM49: 18 | AN49: 23 | AO49: 0 | AQ49: 12 | AR49: 34 | AS49: 0 | AU49: 0 | AV49: 0 | AW49: 0
A50: Leandro Malias | B50: 53 | C50: 22 | D50: 19 | E50: 0 | G50: 24 | H50: 17 | I50: 0 | K50: 0 | L50: 0 | M50: 0 | O50: 0 | P50: 0 | Q50: 0 | S50: 0 | T50: 0 | U50: 0 | W50: 24 | X50: 17 | Y50: 0 | AA50: 0 | AB50: 0 | AC50: 0 | AE50: 0 | AF50: 0 | AG50: 0 | AI50: 0 | AJ50: 0 | AK50: 0 | AM50: 0 | AN50: 0 | AO50: 0 | AQ50: 0 | AR50: 0 | AS50: 0 | AU50: 0 | AV50: 0 | AW50: 0
A51: Oldack Sérgio | B51: 251 | C51: 21 | D51: 20 | E51: 0 | G51: 18 | H51: 23 | I51: 0 | K51: 14 | L51: 30 | M51: 0 | O51: 23 | P51: 18 | Q51: 0 | S51: 18 | T51: 23 | U51: 0 | W51: 6 | X51: 46 | Y51: 0 | AA51: 22 | AB51: 19 | AC51: 0 | AE51: 9 | AF51: 40 | AG51: 0 | AI51: 0 | AJ51: 0 | AK51: 0 | AM51: 0 | AN51: 0 | AO51: 0 | AQ51: 0 | AR51: 0 | AS51: 0 | AU51: 13 | AV51: 32 | AW51: 0
A52: XXX
A53: EQUIPE 9 | B53: 953 | D53: 114 | E53: 0 | H53: 81 | I53: 0 | L53: 113 | M53: 0 | P53: 76 | Q53: 0 | T53: 57 | U53: 0 | X53: 41 | Y53: 0 | AB53: 78 | AC53: 0 | AF53: 47 | AG53: 0 | AJ53: 93 | AK53: 0 | AN53: 91 | AO53: 0 | AR53: 84 | AS53: 0 | AV53: 78 | AW53: 0
A54: Marcelo Sant'anna | B54: 388 | C54: 9 | D54: 40 | E54: 0 | G54: 32 | H54: 9 | I54: 0 | K54: 10 | L54: 38 | M54: 0 | O54: 14 | P54: 30 | Q54: 0 | S54: 7 | T54: 44 | U54: 0 | W54: 18 | X54: 23 | Y54: 0 | AA54: 16 | AB54: 26 | AC54: 0 | AE54: 20 | AF54: 21 | AG54: 0 | AI54: 2 | AJ54: 55 | AK54: 0 | AM54: 11 | AN54: 36 | AO54: 0 | AQ54: 11 | AR54: 36 | AS54: 0 | AU54: 14 | AV54: 30 | AW54: 0
A55: Leonardo Bastos | B55: 392 | C55: 26 | D55: 15 | E55: 0 | G55: 19 | H55: 22 | I55: 0 | K55: 26 | L55: 15 | M55: 0 | O55: 6 | P55: 46 | Q55: 0 | S55: 32 | T55: 9 | U55: 0 | W55: 23 | X55: 18 | Y55: 0 | AA55: 3 | AB55: 52 | AC55: 0 | AE55: 16 | AF55: 26 | AG55: 0 | AI55: 10 | AJ55: 38 | AK55: 0 | AM55: 2 | AN55: 55 | AO55: 0 | AQ55: 5 | AR55: 48 | AS55: 0 | AU55: 5 | AV55: 48 | AW55: 0
A56: Junior Torres | B56: 15 | C56: 30 | D56: 11 | E56: 0 | G56: 0 | H56: 0 | I56: 0 | K56: 0 | L56: 0 | M56: 0 | O56: 0 | P56: 0 | Q56: 0 | S56: 37 | T56: 4 | U56: 0 | W56: 0 | X56: 0 | Y56: 0 | AA56: 0 | AB56: 0 | AC56: 0 | AE56: 0 | AF56: 0 | AG56: 0 | AI56: 0 | AJ56: 0 | AK56: 0 | AM56: 0 | AN56: 0 | AO56: 0 | AQ56: 0 | AR56: 0 | AS56: 0 | AU56: 0 | AV56: 0 | AW56: 0
A57: XXXXXXX | B57: 158 | C57: 5 | D57: 48 | E57: 0 | G57: 4 | H57: 50 | I57: 0 | K57: 1 | L57: 60 | M57: 0 | O57: 0 | P57: 0 | Q57: 0 | S57: 0 | T57: 0 | U57: 0 | W57: 0 | X57: 0 | Y57: 0 | AA57: 0 | AB57: 0 | AC57: 0 | AE57: 0 | AF57: 0 | AG57: 0 | AI57: 0 | AJ57: 0 | AK57: 0 | AM57: 0 | AN57: 0 | AO57: 0 | AQ57: 0 | AR57: 0 | AS57: 0 | AU57: 0 | AV57: 0 | AW57: 0
A58: XXX
A59: EQUIPE 10 | B59: 563 | D59: 84 | E59: 0 | H59: 66 | I59: 0 | L59: 61 | M59: 0 | P59: 58 | Q59: 0 | T59: 62 | U59: 0 | X59: 52 | Y59: 0 | AB59: 44 | AC59: 0 | AF59: 32 | AG59: 0 | AJ59: 54 | AK59: 0 | AN59: 44 | AO59: 0 | AR59: 6 | AS59: 0 | AV59: 0 | AW59: 0
A60: Alexandre Melillo | B60: 272 | C60: 11 | D60: 36 | E60: 0 | G60: 21 | H60: 20 | I60: 0 | K60: 9 | L60: 40 | M60: 0 | O60: 19 | P60: 22 | Q60: 0 | S60: 15 | T60: 28 | U60: 0 | W60: 21 | X60: 20 | Y60: 0 | AA60: 13 | AB60: 32 | AC60: 0 | AE60: 0 | AF60: 0 | AG60: 0 | AI60: 14 | AJ60: 30 | AK60: 0 | AM60: 7 | AN60: 44 | AO60: 0 | AQ60: 0 | AR60: 0 | AS60: 0 | AU60: 0 | AV60: 0 | AW60: 0
A61: Marcelo Surerus | B61: 197 | C61: 0 | D61: 0 | E61: 0 | G61: 0 | H61: 0 | I61: 0 | K61: 20 | L61: 21 | M61: 0 | O61: 11 | P61: 36 | Q61: 0 | S61: 12 | T61: 34 | U61: 0 | W61: 13 | X61: 32 | Y61: 0 | AA61: 29 | AB61: 12 | AC61: 0 | AE61: 13 | AF61: 32 | AG61: 0 | AI61: 17 | AJ61: 24 | AK61: 0 | AM61: 0 | AN61: 0 | AO61: 0 | AQ61: 35 | AR61: 6 | AS61: 0 | AU61: 0 | AV61: 0 | AW61: 0
A62: Lucas Mourão | B62: 6 | C62: 35 | D62: 6 | E62: 0 | G62: 0 | H62: 0 | I62: 0 | K62: 0 | L62: 0 | M62: 0 | O62: 0 | P62: 0 | Q62: 0 | S62: 0 | T62: 0 | U62: 0 | W62: 0 | X62: 0 | Y62: 0 | AA62: 0 | AB62: 0 | AC62: 0 | AE62: 0 | AF62: 0 | AG62: 0 | AI62: 0 | AJ62: 0 | AK62: 0 | AM62: 0 | AN62: 0 | AO62: 0 | AQ62: 0 | AR62: 0 | AS62: 0 | AU62: 0 | AV62: 0 | AW62: 0
A63: Marcus Silva | B63: 88 | C63: 8 | D63: 42 | E63: 0 | G63: 6 | H63: 46 | I63: 0 | K63: 0 | L63: 0 | M63: 0 | O63: 0 | P63: 0 | Q63: 0 | S63: 0 | T63: 0 | U63: 0 | W63: 0 | X63: 0 | Y63: 0 | AA63: 0 | AB63: 0 | AC63: 0 | AE63: 0 | AF63: 0 | AG63: 0 | AI63: 0 | AJ63: 0 | AK63: 0 | AM63: 0 | AN63: 0 | AO63: 0 | AQ63: 0 | AR63: 0 | AS63: 0 | AU63: 0 | AV63: 0 | AW63: 0
A64: XXX
A65: EQUIPE 11 | B65: 927 | D65: 29 | E65: 0 | H65: 51 | I65: 0 | L65: 73 | M65: 0 | P65: 93 | Q65: 0 | T65: 98 | U65: 0 | X65: 96 | Y65: 0 | AB65: 99 | AC65: 0 | AF65: 81 | AG65: 0 | AJ65: 75 | AK65: 0 | AN65: 100 | AO65: 2 | AR65: 66 | AS65: 0 | AV65: 64 | AW65: 0
A66: Guilherme Alves | B66: 350 | C66: 0 | D66: 0 | E66: 0 | G66: 0 | H66: 0 | I66: 0 | K66: 32 | L66: 9 | M66: 0 | O66: 18 | P66: 23 | Q66: 0 | S66: 3 | T66: 52 | U66: 0 | W66: 5 | X66: 48 | Y66: 0 | AA66: 8 | AB66: 42 | AC66: 0 | AE66: 14 | AF66: 30 | AG66: 0 | AI66: 12 | AJ66: 34 | AK66: 0 | AM66: 5 | AN66: 48 | AO66: 2 | AQ66: 17 | AR66: 24 | AS66: 0 | AU66: 10 | AV66: 38 | AW66: 0
A67: Eduardo Henrique | B67: 369 | C67: 0 | D67: 0 | E67: 0 | G67: 13 | H67: 32 | I67: 0 | K67: 22 | L67: 19 | M67: 0 | O67: 4 | P67: 50 | Q67: 0 | S67: 16 | T67: 26 | U67: 0 | W67: 12 | X67: 34 | Y67: 0 | AA67: 12 | AB67: 34 | AC67: 0 | AE67: 12 | AF67: 34 | AG67: 0 | AI67: 21 | AJ67: 20 | AK67: 0 | AM67: 3 | AN67: 52 | AO67: 0 | AQ67: 8 | AR67: 42 | AS67: 0 | AU67: 16 | AV67: 26 | AW67: 0
A68: Luis Almeida | B68: 170 | C68: 33 | D68: 8 | E68: 0 | G68: 22 | H68: 19 | I68: 0 | K68: 15 | L68: 28 | M68: 0 | O68: 21 | P68: 20 | Q68: 0 | S68: 21 | T68: 20 | U68: 0 | W68: 27 | X68: 14 | Y68: 0 | AA68: 18 | AB68: 23 | AC68: 0 | AE68: 24 | AF68: 17 | AG68: 0 | AI68: 20 | AJ68: 21 | AK68: 0 | AM68: 0 | AN68: 0 | AO68: 0 | AQ68: 0 | AR68: 0 | AS68: 0 | AU68: 0 | AV68: 0 | AW68: 0
A69: Marcelo Horta | B69: 38 | C69: 20 | D69: 21 | E69: 0 | G69: 0 | H69: 0 | I69: 0 | K69: 24 | L69: 17 | M69: 0 | O69: 0 | P69: 0 | Q69: 0 | S69: 0 | T69: 0 | U69: 0 | W69: 0 | X69: 0 | Y69: 0 | AA69: 0 | AB69: 0 | AC69: 0 | AE69: 0 | AF69: 0 | AG69: 0 | AI69: 0 | AJ69: 0 | AK69: 0 | AM69: 0 | AN69: 0 | AO69: 0 | AQ69: 0 | AR69: 0 | AS69: 0 | AU69: 0 | AV69: 0 | AW69: 0
A70: XXX

Sheet Class Elimin 2 Piores Equip
A1: 2020 | D1: OK | H1: OK | L1: OK | P1: OK | T1: OK | X1: OK | AB1: OK | AF1: OK | AJ1: OK | AN1: OK | AR1: OK | AV1: OK
C2: 1ª etapa | G2: 2ª etapa | K2: 3ª etapa | O2: 4ª etapa | S2: 5ª etapa | W2: 6ª etapa | AA2: 7ª etapa | AE2: 8ª etapa | AI2: 9ª etapa | AM2: 10ª etapa | AQ2: 11ª etapa | AU2: 12ª etapa
C3: 00:00:00 | G3: 00:00:00 | K3: 00:00:00 | O3: 00:00:00 | S3: 00:00:00 | W3: 00:00:00 | AA3: 00:00:00 | AE3: 00:00:00 | AI3: 00:00:00 | AM3: 00:00:00 | AQ3: 00:00:00 | AU3: 00:00:00
A4: EQUIPES | B4: Pontuação Geral | C4: Posição | D4: Pontos | E4: Bônus | F4: Penalidade | G4: Posição | H4: Pontos | I4: Bônus | J4: Penalidade | K4: Posição | L4: Pontos | M4: Bônus | N4: Penalidade | O4: Posição | P4: Pontos | Q4: Bônus | R4: Penalidade | S4: Posição | T4: Pontos | U4: Bônus | V4: Penalidade | W4: Posição | X4: Pontos | Y4: Bônus | Z4: Penalidade | AA4: Posição | AB4: Pontos | AC4: Bônus | AD4: Penalidade | AE4: Posição | AF4: Pontos | AG4: Bônus | AH4: Penalidade | AI4: Posição | AJ4: Pontos | AK4: Bônus | AL4: Penalidade | AM4: Posição | AN4: Pontos | AO4: Bônus | AP4: Penalidade | AQ4: Posição | AR4: Pontos | AS4: Bônus | AT4: Penalidade | AU4: Posição | AV4: Pontos | AW4: Bônus | AX4: Penalidade
A5: EQUIPE 7 | B5: 1163 | D5: 101 | E5: 0 | H5: 143 | I5: 0 | L5: 101 | M5: 0 | P5: 130 | Q5: 2 | T5: 100 | U5: 0 | X5: 134 | Y5: 0 | AB5: 120 | AC5: 0 | AF5: 102 | AG5: 0 | AJ5: 58* | AK5: 0 | AN5: 126 | AO5: 0 | AR5: 104 | AS5: 0 | AV5: 93* | AW5: 0
A6: Marconi Teixeira | B6: 421 | C6: 1 | D6: 60 | E6: 0 | G6: 3 | H6: 52 | I6: 0 | K6: 2 | L6: 55 | M6: 0 | O6: 1 | P6: 60 | Q6: 2 | S6: 0 | T6: 0 | U6: 0 | W6: 1 | X6: 60 | Y6: 0 | AA6: 7 | AB6: 44 | AC6: 0 | AE6: 8 | AF6: 42 | AG6: 0 | AI6: 0 | AJ6: 0* | AK6: 0 | AM6: 0 | AN6: 0 | AO6: 0 | AQ6: 6 | AR6: 46 | AS6: 0 | AU6: 0 | AV6: 0* | AW6: 0
A7: Wesley Canuto | B7: 146 | C7: 25 | D7: 16* | E7: 0 | G7: 11 | H7: 36 | I7: 0 | K7: 17 | L7: 24 | M7: 0 | O7: 17 | P7: 24* | Q7: 0 | S7: 13 | T7: 32 | U7: 0 | W7: 15 | X7: 28* | Y7: 0 | AA7: 0 | AB7: 0 | AC7: 0 | AE7: 17 | AF7: 24 | AG7: 0 | AI7: 0 | AJ7: 0* | AK7: 0 | AM7: 14 | AN7: 30 | AO7: 0 | AQ7: 0 | AR7: 0 | AS7: 0 | AU7: 18 | AV7: 23* | AW7: 0
A8: Diego Silva | B8: 243 | C8: 24 | D8: 17 | E8: 0 | G8: 20 | H8: 21* | I8: 0 | K8: 19 | L8: 22 | M8: 0 | O8: 16 | P8: 26 | Q8: 0 | S8: 19 | T8: 22 | U8: 0 | W8: 10 | X8: 38 | Y8: 0 | AA8: 6 | AB8: 46 | AC8: 0 | AE8: 19 | AF8: 22* | AG8: 0 | AI8: 9 | AJ8: 40* | AK8: 0 | AM8: 6 | AN8: 46 | AO8: 0 | AQ8: 16 | AR8: 26 | AS8: 0 | AU8: 11 | AV8: 36* | AW8: 0
A9: Pedro Fialho | B9: 353 | C9: 17 | D9: 24 | E9: 0 | G9: 2 | H9: 55 | I9: 0 | K9: 27 | L9: 14* | M9: 0 | O9: 7 | P9: 44 | Q9: 0 | S9: 6 | T9: 46 | U9: 0 | W9: 11 | X9: 36 | Y9: 0 | AA9: 14 | AB9: 30 | AC9: 0 | AE9: 11 | AF9: 36 | AG9: 0 | AI9: 23 | AJ9: 18* | AK9: 0 | AM9: 4 | AN9: 50 | AO9: 0 | AQ9: 13 | AR9: 32 | AS9: 0 | AU9: 12 | AV9: 34* | AW9: 0
A10: XXX | B10: 0 | AJ10: * | AV10: *
A11: EQUIPE 6 | B11: 1037 | D11: 37* | E11: 0 | H11: 64 | I11: 0 | L11: 49* | M11: 0 | P11: 76 | Q11: 0 | T11: 108 | U11: 2 | X11: 118 | Y11: 2 | AB11: 132 | AC11: 2 | AF11: 133 | AG11: 2 | AJ11: 124 | AK11: 0 | AN11: 64 | AO11: 0 | AR11: 115 | AS11: 0 | AV11: 95 | AW11: 0
A12: Fernando Medeiros | B12: 483 | C12: 18 | D12: 23* | E12: 0 | G12: 10 | H12: 38 | I12: 0 | K12: 16 | L12: 26* | M12: 0 | O12: 2 | P12: 55 | Q12: 0 | S12: 2 | T12: 55 | U12: 2 | W12: 8 | X12: 42 | Y12: 0 | AA12: 5 | AB12: 48 | AC12: 2 | AE12: 4 | AF12: 50 | AG12: 2 | AI12: 3 | AJ12: 52 | AK12: 0 | AM12: 8 | AN12: 42 | AO12: 0 | AQ12: 2 | AR12: 55 | AS12: 0 | AU12: 9 | AV12: 40 | AW12: 0
A13: Heimar Mata | B13: 32 | C13: 0 | D13: 0* | E13: 0 | G13: 31 | H13: 10 | I13: 0 | K13: 0 | L13: 0* | M13: 0 | O13: 0 | P13: 0 | Q13: 0 | S13: 0 | T13: 0 | U13: 0 | W13: 22 | X13: 19* | Y13: 0 | AA13: 0 | AB13: 0 | AC13: 0 | AE13: 0 | AF13: 0 | AG13: 0 | AI13: 19 | AJ13: 22 | AK13: 0 | AM13: 0 | AN13: 0 | AO13: 0 | AQ13: 0 | AR13: 0 | AS13: 0 | AU13: 0 | AV13: 0 | AW13: 0
A14: Daniel Paranhos | B14: 143 | C14: 27 | D14: 14* | E14: 0 | G14: 25 | H14: 16 | I14: 0 | K14: 18 | L14: 23* | M14: 0 | O14: 20 | P14: 21 | Q14: 0 | S14: 10 | T14: 38 | U14: 0 | W14: 20 | X14: 21 | Y14: 0 | AA14: 17 | AB14: 24 | AC14: 0 | AE14: 18 | AF14: 23 | AG14: 0 | AI14: 0 | AJ14: 0 | AK14: 0 | AM14: 0 | AN14: 0 | AO14: 0 | AQ14: 0 | AR14: 0 | AS14: 0 | AU14: 0 | AV14: 0 | AW14: 0
A15: Leonardo Oliveira | B15: 379 | C15: 0 | D15: 0* | E15: 0 | G15: 0 | H15: 0 | I15: 0 | K15: 0 | L15: 0* | M15: 0 | O15: 0 | P15: 0 | Q15: 0 | S15: 26 | T15: 15 | U15: 0 | W15: 2 | X15: 55 | Y15: 2 | AA15: 1 | AB15: 60 | AC15: 0 | AE15: 1 | AF15: 60 | AG15: 0 | AI15: 4 | AJ15: 50 | AK15: 0 | AM15: 19 | AN15: 22 | AO15: 0 | AQ15: 1 | AR15: 60 | AS15: 0 | AU15: 2 | AV15: 55 | AW15: 0
A16: XXX | B16: 0 | D16: * | L16: *
A17: EQUIPE 1 | B17: 988 | D17: 111 | E17: 2 | H17: 108 | I17: 2 | L17: 109 | M17: 0 | P17: 90 | Q17: 0 | T17: 80 | U17: 0 | X17: 82 | Y17: 0 | AB17: 105 | AC17: 0 | AF17: 92 | AG17: 0 | AJ17: 95 | AK17: 0 | AN17: 55* | AO17: 0 | AR17: 40* | AS17: 0 | AV17: 110 | AW17: 2
A18: Marcelo Pereira | B18: 495 | C18: 2 | D18: 55 | E18: 2 | G18: 5 | H18: 48 | I18: 0 | K18: 4 | L18: 50 | M18: 0 | O18: 5 | P18: 48 | Q18: 0 | S18: 5 | T18: 48 | U18: 0 | W18: 3 | X18: 52 | Y18: 0 | AA18: 4 | AB18: 50 | AC18: 0 | AE18: 5 | AF18: 48 | AG18: 0 | AI18: 13 | AJ18: 32 | AK18: 0 | AM18: 0 | AN18: 0* | AO18: 0 | AQ18: 0 | AR18: 0* | AS18: 0 | AU18: 1 | AV18: 60 | AW18: 2
A19: Sylvio Junior | B19: 10 | C19: 31 | D19: 10 | E19: 0 | G19: 0 | H19: 0 | I19: 0 | K19: 0 | L19: 0 | M19: 0 | O19: 0 | P19: 0 | Q19: 0 | S19: 0 | T19: 0 | U19: 0 | W19: 0 | X19: 0 | Y19: 0 | AA19: 0 | AB19: 0 | AC19: 0 | AE19: 0 | AF19: 0 | AG19: 0 | AI19: 0 | AJ19: 0 | AK19: 0 | AM19: 0 | AN19: 0* | AO19: 0 | AQ19: 0 | AR19: 0* | AS19: 0 | AU19: 0 | AV19: 0 | AW19: 0
A20: Wesley Camargos | B20: 50 | C20: 0 | D20: 0 | E20: 0 | G20: 0 | H20: 0 | I20: 0 | K20: 28 | L20: 13 | M20: 0 | O20: 0 | P20: 0 | Q20: 0 | S20: 23 | T20: 18 | U20: 0 | W20: 0 | X20: 0 | Y20: 0 | AA20: 0 | AB20: 0 | AC20: 0 | AE20: 0 | AF20: 0 | AG20: 0 | AI20: 22 | AJ20: 19 | AK20: 0 | AM20: 20 | AN20: 21* | AO20: 0 | AQ20: 0 | AR20: 0* | AS20: 0 | AU20: 0 | AV20: 0 | AW20: 0
A21: Marcelo Campos | B21: 433 | C21: 6 | D21: 46 | E21: 0 | G21: 1 | H21: 60 | I21: 2 | K21: 6 | L21: 46 | M21: 0 | O21: 8 | P21: 42 | Q21: 0 | S21: 27 | T21: 14 | U21: 0 | W21: 14 | X21: 30 | Y21: 0 | AA21: 2 | AB21: 55 | AC21: 0 | AE21: 7 | AF21: 44 | AG21: 0 | AI21: 7 | AJ21: 44 | AK21: 0 | AM21: 12 | AN21: 34* | AO21: 0 | AQ21: 9 | AR21: 40* | AS21: 0 | AU21: 4 | AV21: 50 | AW21: 0
A22: XXX | B22: 0 | AN22: * | AR22: *
A23: EQUIPE 3 | B23: 988 | D23: 122 | E23: 0 | H23: 64 | I23: 0 | L23: 114 | M23: 0 | P23: 82 | Q23: 0 | T23: 136 | U23: 0 | X23: 90 | Y23: 0 | AB23: 28* | AC23: 0 | AF23: 120 | AG23: 0 | AJ23: 62* | AK23: 0 | AN23: 120 | AO23: 0 | AR23: 72 | AS23: 0 | AV23: 68 | AW23: 0
A24: Cláudio Dumont | B24: 269 | C24: 3 | D24: 52 | E24: 0 | G24: 29 | H24: 12 | I24: 0 | K24: 21 | L24: 20 | M24: 0 | O24: 10 | P24: 38 | Q24: 0 | S24: 1 | T24: 60 | U24: 0 | W24: 0 | X24: 0 | Y24: 0 | AA24: 0 | AB24: 0* | AC24: 0 | AE24: 2 | AF24: 55 | AG24: 0 | AI24: 0 | AJ24: 0* | AK24: 0 | AM24: 13 | AN24: 32 | AO24: 0 | AQ24: 0 | AR24: 0 | AS24: 0 | AU24: 0 | AV24: 0 | AW24: 0
A25: Rodrigo Mercadante | B25: 301 | C25: 13 | D25: 32 | E25: 0 | G25: 34 | H25: 7* | I25: 0 | K25: 8 | L25: 42 | M25: 0 | O25: 15 | P25: 28 | Q25: 0 | S25: 9 | T25: 40 | U25: 0 | W25: 9 | X25: 40 | Y25: 0 | AA25: 15 | AB25: 28* | AC25: 0 | AE25: 22 | AF25: 19 | AG25: 0 | AI25: 6 | AJ25: 46* | AK25: 0 | AM25: 15 | AN25: 28 | AO25: 0 | AQ25: 15 | AR25: 28 | AS25: 0 | AU25: 7 | AV25: 44 | AW25: 0
A26: Will Conrad | B26: 0 | C26: 29 | D26: 12* | E26: 0 | G26: 33 | H26: 8* | I26: 0 | K26: 0 | L26: 0 | M26: 0 | O26: 0 | P26: 0 | Q26: 0 | S26: 0 | T26: 0 | U26: 0 | W26: 0 | X26: 0 | Y26: 0 | AA26: 0 | AB26: 0* | AC26: 0 | AE26: 0 | AF26: 0 | AG26: 0 | AI26: 0 | AJ26: 0* | AK26: 0 | AM26: 0 | AN26: 0 | AO26: 0 | AQ26: 0 | AR26: 0 | AS26: 0 | AU26: 0 | AV26: 0 | AW26: 0
A27: Thiara Silveira | B27: 66 | C27: 10 | D27: 38 | E27: 0 | G27: 15 | H27: 28 | I27: 0 | K27: 0 | L27: 0 | M27: 0 | O27: 0 | P27: 0 | Q27: 0 | S27: 0 | T27: 0 | U27: 0 | W27: 0 | X27: 0 | Y27: 0 | AA27: 0 | AB27: 0* | AC27: 0 | AE27: 0 | AF27: 0 | AG27: 0 | AI27: 0 | AJ27: 0* | AK27: 0 | AM27: 0 | AN27: 0 | AO27: 0 | AQ27: 0 | AR27: 0 | AS27: 0 | AU27: 0 | AV27: 0 | AW27: 0
A28: Roberto Torres | B28: 352 | C28: 0 | D28: 0 | E28: 0 | G28: 17 | H28: 24 | I28: 0 | K28: 3 | L28: 52 | M28: 0 | O28: 25 | P28: 16 | Q28: 0 | S28: 11 | T28: 36 | U28: 0 | W28: 4 | X28: 50 | Y28: 0 | AA28: 0 | AB28: 0* | AC28: 0 | AE28: 6 | AF28: 46 | AG28: 0 | AI28: 25 | AJ28: 16* | AK28: 0 | AM28: 1 | AN28: 60 | AO28: 0 | AQ28: 7 | AR28: 44 | AS28: 0 | AU28: 17 | AV28: 24 | AW28: 0
A29: EQUIPE 9 | B29: 854 | D29: 103 | E29: 0 | H29: 81 | I29: 0 | L29: 113 | M29: 0 | P29: 76 | Q29: 0 | T29: 57 | U29: 0 | X29: 41* | Y29: 0 | AB29: 78 | AC29: 0 | AF29: 47* | AG29: 0 | AJ29: 93 | AK29: 0 | AN29: 91 | AO29: 0 | AR29: 84 | AS29: 0 | AV29: 78 | AW29: 0
A30: Marcelo Sant'anna | B30: 344 | C30: 9 | D30: 40 | E30: 0 | G30: 32 | H30: 9 | I30: 0 | K30: 10 | L30: 38 | M30: 0 | O30: 14 | P30: 30 | Q30: 0 | S30: 7 | T30: 44 | U30: 0 | W30: 18 | X30: 23* | Y30: 0 | AA30: 16 | AB30: 26 | AC30: 0 | AE30: 20 | AF30: 21* | AG30: 0 | AI30: 2 | AJ30: 55 | AK30: 0 | AM30: 11 | AN30: 36 | AO30: 0 | AQ30: 11 | AR30: 36 | AS30: 0 | AU30: 14 | AV30: 30 | AW30: 0
A31: Leonardo Bastos | B31: 348 | C31: 26 | D31: 15 | E31: 0 | G31: 19 | H31: 22 | I31: 0 | K31: 26 | L31: 15 | M31: 0 | O31: 6 | P31: 46 | Q31: 0 | S31: 32 | T31: 9 | U31: 0 | W31: 23 | X31: 18* | Y31: 0 | AA31: 3 | AB31: 52 | AC31: 0 | AE31: 16 | AF31: 26* | AG31: 0 | AI31: 10 | AJ31: 38 | AK31: 0 | AM31: 2 | AN31: 55 | AO31: 0 | AQ31: 5 | AR31: 48 | AS31: 0 | AU31: 5 | AV31: 48 | AW31: 0
A32: Junior Torres | B32: 4 | C32: 30 | D32: 11* | E32: 0 | G32: 0 | H32: 0 | I32: 0 | K32: 0 | L32: 0 | M32: 0 | O32: 0 | P32: 0 | Q32: 0 | S32: 37 | T32: 4 | U32: 0 | W32: 0 | X32: 0* | Y32: 0 | AA32: 0 | AB32: 0 | AC32: 0 | AE32: 0 | AF32: 0* | AG32: 0 | AI32: 0 | AJ32: 0 | AK32: 0 | AM32: 0 | AN32: 0 | AO32: 0 | AQ32: 0 | AR32: 0 | AS32: 0 | AU32: 0 | AV32: 0 | AW32: 0
A33: XXXXXXX | B33: 158 | C33: 5 | D33: 48 | E33: 0 | G33: 4 | H33: 50 | I33: 0 | K33: 1 | L33: 60 | M33: 0 | O33: 0 | P33: 0 | Q33: 0 | S33: 0 | T33: 0 | U33: 0 | W33: 0 | X33: 0* | Y33: 0 | AA33: 0 | AB33: 0 | AC33: 0 | AE33: 0 | AF33: 0* | AG33: 0 | AI33: 0 | AJ33: 0 | AK33: 0 | AM33: 0 | AN33: 0 | AO33: 0 | AQ33: 0 | AR33: 0 | AS33: 0 | AU33: 0 | AV33: 0 | AW33: 0
A34: XXX | B34: 0 | X34: * | AF34: *
A35: EQUIPE 5 | B35: 848 | D35: 112 | E35: 0 | H35: 84 | I35: 0 | L35: 90 | M35: 0 | P35: 84 | Q35: 0 | T35: 80 | U35: 0 | X35: 70 | Y35: 0 | AB35: 62 | AC35: 0 | AF35: 80 | AG35: 0 | AJ35: 102 | AK35: 2 | AN35: 38* | AO35: 0 | AR35: 80 | AS35: 2 | AV35: 52* | AW35: 0
A36: Wesley Bambirra | B36: 462 | C36: 4 | D36: 50 | E36: 0 | G36: 7 | H36: 44 | I36: 0 | K36: 12 | L36: 34 | M36: 0 | O36: 3 | P36: 52 | Q36: 0 | S36: 4 | T36: 50 | U36: 0 | W36: 16 | X36: 26 | Y36: 0 | AA36: 9 | AB36: 40 | AC36: 0 | AE36: 3 | AF36: 52 | AG36: 0 | AI36: 1 | AJ36: 60 | AK36: 2 | AM36: 23 | AN36: 18* | AO36: 0 | AQ36: 4 | AR36: 50 | AS36: 2 | AU36: 3 | AV36: 52* | AW36: 0
A37: Roberto Veloso | B37: 58 | C37: 0 | D37: 0 | E37: 0 | G37: 27 | H37: 14 | I37: 0 | K37: 7 | L37: 44 | M37: 0 | O37: 0 | P37: 0 | Q37: 0 | S37: 0 | T37: 0 | U37: 0 | W37: 0 | X37: 0 | Y37: 0 | AA37: 0 | AB37: 0 | AC37: 0 | AE37: 0 | AF37: 0 | AG37: 0 | AI37: 0 | AJ37: 0 | AK37: 0 | AM37: 0 | AN37: 0* | AO37: 0 | AQ37: 0 | AR37: 0 | AS37: 0 | AU37: 0 | AV37: 0* | AW37: 0
A38: Antônio Mourão | B38: 44 | C38: 7 | D38: 44 | E38: 0 | G38: 30 | H38: 11* | I38: 0 | K38: 0 | L38: 0 | M38: 0 | O38: 0 | P38: 0 | Q38: 0 | S38: 0 | T38: 0 | U38: 0 | W38: 0 | X38: 0 | Y38: 0 | AA38: 0 | AB38: 0 | AC38: 0 | AE38: 0 | AF38: 0 | AG38: 0 | AI38: 0 | AJ38: 0 | AK38: 0 | AM38: 0 | AN38: 0* | AO38: 0 | AQ38: 0 | AR38: 0 | AS38: 0 | AU38: 0 | AV38: 0* | AW38: 0
A39: Rafael Alves | B39: 284 | C39: 23 | D39: 18 | E39: 0 | G39: 16 | H39: 26 | I39: 0 | K39: 29 | L39: 12 | M39: 0 | O39: 13 | P39: 32 | Q39: 0 | S39: 14 | T39: 30 | U39: 0 | W39: 7 | X39: 44 | Y39: 0 | AA39: 19 | AB39: 22 | AC39: 0 | AE39: 15 | AF39: 28 | AG39: 0 | AI39: 8 | AJ39: 42 | AK39: 0 | AM39: 21 | AN39: 20* | AO39: 0 | AQ39: 14 | AR39: 30 | AS39: 0 | AU39: 0 | AV39: 0* | AW39: 0
A40: XXX | B40: 0 | AN40: * | AV40: *
A41: EQUIPE 11 | B41: 838 | D41: 29* | E41: 0 | H41: 51* | I41: 0 | L41: 64 | M41: 0 | P41: 93 | Q41: 0 | T41: 98 | U41: 0 | X41: 96 | Y41: 0 | AB41: 99 | AC41: 0 | AF41: 81 | AG41: 0 | AJ41: 75 | AK41: 0 | AN41: 100 | AO41: 2 | AR41: 66 | AS41: 0 | AV41: 64 | AW41: 0
A42: Guilherme Alves | B42: 341 | C42: 0 | D42: 0* | E42: 0 | G42: 0 | H42: 0* | I42: 0 | K42: 32 | L42: 9* | M42: 0 | O42: 18 | P42: 23 | Q42: 0 | S42: 3 | T42: 52 | U42: 0 | W42: 5 | X42: 48 | Y42: 0 | AA42: 8 | AB42: 42 | AC42: 0 | AE42: 14 | AF42: 30 | AG42: 0 | AI42: 12 | AJ42: 34 | AK42: 0 | AM42: 5 | AN42: 48 | AO42: 2 | AQ42: 17 | AR42: 24 | AS42: 0 | AU42: 10 | AV42: 38 | AW42: 0
A43: Eduardo Henrique | B43: 337 | C43: 0 | D43: 0* | E43: 0 | G43: 13 | H43: 32* | I43: 0 | K43: 22 | L43: 19 | M43: 0 | O43: 4 | P43: 50 | Q43: 0 | S43: 16 | T43: 26 | U43: 0 | W43: 12 | X43: 34 | Y43: 0 | AA43: 12 | AB43: 34 | AC43: 0 | AE43: 12 | AF43: 34 | AG43: 0 | AI43: 21 | AJ43: 20 | AK43: 0 | AM43: 3 | AN43: 52 | AO43: 0 | AQ43: 8 | AR43: 42 | AS43: 0 | AU43: 16 | AV43: 26 | AW43: 0
A44: Luis Almeida | B44: 143 | C44: 33 | D44: 8* | E44: 0 | G44: 22 | H44: 19* | I44: 0 | K44: 15 | L44: 28 | M44: 0 | O44: 21 | P44: 20 | Q44: 0 | S44: 21 | T44: 20 | U44: 0 | W44: 27 | X44: 14 | Y44: 0 | AA44: 18 | AB44: 23 | AC44: 0 | AE44: 24 | AF44: 17 | AG44: 0 | AI44: 20 | AJ44: 21 | AK44: 0 | AM44: 0 | AN44: 0 | AO44: 0 | AQ44: 0 | AR44: 0 | AS44: 0 | AU44: 0 | AV44: 0 | AW44: 0
A45: Marcelo Horta | B45: 17 | C45: 20 | D45: 21* | E45: 0 | G45: 0 | H45: 0* | I45: 0 | K45: 24 | L45: 17 | M45: 0 | O45: 0 | P45: 0 | Q45: 0 | S45: 0 | T45: 0 | U45: 0 | W45: 0 | X45: 0 | Y45: 0 | AA45: 0 | AB45: 0 | AC45: 0 | AE45: 0 | AF45: 0 | AG45: 0 | AI45: 0 | AJ45: 0 | AK45: 0 | AM45: 0 | AN45: 0 | AO45: 0 | AQ45: 0 | AR45: 0 | AS45: 0 | AU45: 0 | AV45: 0 | AW45: 0
A46: XXX | B46: 0 | D46: * | H46: *
A47: EQUIPE 8 | B47: 696 | D47: 68 | E47: 0 | H47: 99 | I47: 0 | L47: 84 | M47: 0 | P47: 69 | Q47: 0 | T47: 53 | U47: 0 | X47: 79 | Y47: 0 | AB47: 57 | AC47: 0 | AF47: 78 | AG47: 0 | AJ47: 48 | AK47: 0 | AN47: 61 | AO47: 0 | AR47: 34* | AS47: 0 | AV47: 32* | AW47: 0
A48: Jarbas Reis | B48: 278 | C48: 16 | D48: 26 | E48: 0 | G48: 12 | H48: 34 | I48: 0 | K48: 11 | L48: 36 | M48: 0 | O48: 30 | P48: 11 | Q48: 0 | S48: 32 | T48: 9 | U48: 0 | W48: 26 | X48: 15* | Y48: 0 | AA48: 10 | AB48: 38 | AC48: 0 | AE48: 10 | AF48: 38 | AG48: 0 | AI48: 5 | AJ48: 48 | AK48: 0 | AM48: 10 | AN48: 38 | AO48: 0 | AQ48: 0 | AR48: 0* | AS48: 0 | AU48: 0 | AV48: 0* | AW48: 0
A49: Raphael Reis | B49: 182 | C49: 19 | D49: 22 | E49: 0 | G49: 8 | H49: 42 | I49: 0 | K49: 23 | L49: 18 | M49: 0 | O49: 9 | P49: 40 | Q49: 0 | S49: 20 | T49: 21 | U49: 0 | W49: 25 | X49: 16 | Y49: 0 | AA49: 0 | AB49: 0 | AC49: 0 | AE49: 0 | AF49: 0 | AG49: 0 | AI49: 0 | AJ49: 0 | AK49: 0 | AM49: 18 | AN49: 23 | AO49: 0 | AQ49: 12 | AR49: 34* | AS49: 0 | AU49: 0 | AV49: 0* | AW49: 0
A50: Leandro Malias | B50: 17 | C50: 22 | D50: 19* | E50: 0 | G50: 24 | H50: 17* | I50: 0 | K50: 0 | L50: 0 | M50: 0 | O50: 0 | P50: 0 | Q50: 0 | S50: 0 | T50: 0 | U50: 0 | W50: 24 | X50: 17 | Y50: 0 | AA50: 0 | AB50: 0 | AC50: 0 | AE50: 0 | AF50: 0 | AG50: 0 | AI50: 0 | AJ50: 0 | AK50: 0 | AM50: 0 | AN50: 0 | AO50: 0 | AQ50: 0 | AR50: 0* | AS50: 0 | AU50: 0 | AV50: 0* | AW50: 0
A51: Oldack Sérgio | B51: 219 | C51: 21 | D51: 20 | E51: 0 | G51: 18 | H51: 23 | I51: 0 | K51: 14 | L51: 30 | M51: 0 | O51: 23 | P51: 18 | Q51: 0 | S51: 18 | T51: 23 | U51: 0 | W51: 6 | X51: 46 | Y51: 0 | AA51: 22 | AB51: 19 | AC51: 0 | AE51: 9 | AF51: 40 | AG51: 0 | AI51: 0 | AJ51: 0 | AK51: 0 | AM51: 0 | AN51: 0 | AO51: 0 | AQ51: 0 | AR51: 0* | AS51: 0 | AU51: 13 | AV51: 32* | AW51: 0
A52: XXX | B52: 0 | AR52: * | AV52: *
A53: EQUIPE 2 | B53: 562 | D53: 41 | E53: 0 | H53: 85 | I53: 0 | L53: 53 | M53: 0 | P53: 34 | Q53: 0 | T53: 41 | U53: 0 | X53: 31* | Y53: 0 | AB53: 57 | AC53: 0 | AF53: 34* | AG53: 0 | AJ53: 79 | AK53: 0 | AN53: 64 | AO53: 0 | AR53: 38 | AS53: 0 | AV53: 70 | AW53: 0
A54: Claudio Junqueira | B54: 250 | C54: 15 | D54: 28 | E54: 0 | G54: 14 | H54: 30 | I54: 0 | K54: 33 | L54: 8* | M54: 0 | O54: 0 | P54: 0 | Q54: 0 | S54: 0 | T54: 0 | U54: 0 | W54: 17 | X54: 24* | Y54: 0 | AA54: 11 | AB54: 36 | AC54: 0 | AE54: 0 | AF54: 0* | AG54: 0 | AI54: 11 | AJ54: 36 | AK54: 0 | AM54: 9 | AN54: 40 | AO54: 0 | AQ54: 10 | AR54: 38 | AS54: 0 | AU54: 8 | AV54: 42 | AW54: 0
A55: Fernando Lobo | B55: 165 | C55: 28 | D55: 13 | E55: 0 | G55: 9 | H55: 40 | I55: 0 | K55: 30 | L55: 11 | M55: 0 | O55: 12 | P55: 34 | Q55: 0 | S55: 24 | T55: 17 | U55: 0 | W55: 34 | X55: 7* | Y55: 0 | AA55: 0 | AB55: 0 | AC55: 0 | AE55: 25 | AF55: 16* | AG55: 0 | AI55: 16 | AJ55: 26 | AK55: 0 | AM55: 17 | AN55: 24 | AO55: 0 | AQ55: 0 | AR55: 0 | AS55: 0 | AU55: 0 | AV55: 0 | AW55: 0
A56: Renato Cardoso | B56: 137 | C56: 0 | D56: 0 | E56: 0 | G56: 26 | H56: 15 | I56: 0 | K56: 13 | L56: 32 | M56: 0 | O56: 0 | P56: 0 | Q56: 0 | S56: 17 | T56: 24 | U56: 0 | W56: 0 | X56: 0* | Y56: 0 | AA56: 20 | AB56: 21 | AC56: 0 | AE56: 23 | AF56: 18* | AG56: 0 | AI56: 24 | AJ56: 17 | AK56: 0 | AM56: 0 | AN56: 0 | AO56: 0 | AQ56: 0 | AR56: 0 | AS56: 0 | AU56: 15 | AV56: 28 | AW56: 0
A57: Fred Mello | B57: 10 | C57: 0 | D57: 0 | E57: 0 | G57: 0 | H57: 0 | I57: 0 | K57: 31 | L57: 10 | M57: 0 | O57: 0 | P57: 0 | Q57: 0 | S57: 0 | T57: 0 | U57: 0 | W57: 0 | X57: 0* | Y57: 0 | AA57: 0 | AB57: 0 | AC57: 0 | AE57: 0 | AF57: 0* | AG57: 0 | AI57: 0 | AJ57: 0 | AK57: 0 | AM57: 0 | AN57: 0 | AO57: 0 | AQ57: 0 | AR57: 0 | AS57: 0 | AU57: 0 | AV57: 0 | AW57: 0
A58: XXX | B58: 0 | X58: * | AF58: *
A59: EQUIPE 10 | B59: 557 | D59: 84 | E59: 0 | H59: 66 | I59: 0 | L59: 61 | M59: 0 | P59: 58 | Q59: 0 | T59: 62 | U59: 0 | X59: 52 | Y59: 0 | AB59: 44 | AC59: 0 | AF59: 32 | AG59: 0 | AJ59: 54 | AK59: 0 | AN59: 44 | AO59: 0 | AR59: 6* | AS59: 0 | AV59: 0* | AW59: 0
A60: Alexandre Melillo | B60: 272 | C60: 11 | D60: 36 | E60: 0 | G60: 21 | H60: 20 | I60: 0 | K60: 9 | L60: 40 | M60: 0 | O60: 19 | P60: 22 | Q60: 0 | S60: 15 | T60: 28 | U60: 0 | W60: 21 | X60: 20 | Y60: 0 | AA60: 13 | AB60: 32 | AC60: 0 | AE60: 0 | AF60: 0 | AG60: 0 | AI60: 14 | AJ60: 30 | AK60: 0 | AM60: 7 | AN60: 44 | AO60: 0 | AQ60: 0 | AR60: 0* | AS60: 0 | AU60: 0 | AV60: 0* | AW60: 0
A61: Marcelo Surerus | B61: 191 | C61: 0 | D61: 0 | E61: 0 | G61: 0 | H61: 0 | I61: 0 | K61: 20 | L61: 21 | M61: 0 | O61: 11 | P61: 36 | Q61: 0 | S61: 12 | T61: 34 | U61: 0 | W61: 13 | X61: 32 | Y61: 0 | AA61: 29 | AB61: 12 | AC61: 0 | AE61: 13 | AF61: 32 | AG61: 0 | AI61: 17 | AJ61: 24 | AK61: 0 | AM61: 0 | AN61: 0 | AO61: 0 | AQ61: 35 | AR61: 6* | AS61: 0 | AU61: 0 | AV61: 0* | AW61: 0
A62: Lucas Mourão | B62: 6 | C62: 35 | D62: 6 | E62: 0 | G62: 0 | H62: 0 | I62: 0 | K62: 0 | L62: 0 | M62: 0 | O62: 0 | P62: 0 | Q62: 0 | S62: 0 | T62: 0 | U62: 0 | W62: 0 | X62: 0 | Y62: 0 | AA62: 0 | AB62: 0 | AC62: 0 | AE62: 0 | AF62: 0 | AG62: 0 | AI62: 0 | AJ62: 0 | AK62: 0 | AM62: 0 | AN62: 0 | AO62: 0 | AQ62: 0 | AR62: 0* | AS62: 0 | AU62: 0 | AV62: 0* | AW62: 0
A63: Marcus Silva | B63: 88 | C63: 8 | D63: 42 | E63: 0 | G63: 6 | H63: 46 | I63: 0 | K63: 0 | L63: 0 | M63: 0 | O63: 0 | P63: 0 | Q63: 0 | S63: 0 | T63: 0 | U63: 0 | W63: 0 | X63: 0 | Y63: 0 | AA63: 0 | AB63: 0 | AC63: 0 | AE63: 0 | AF63: 0 | AG63: 0 | AI63: 0 | AJ63: 0 | AK63: 0 | AM63: 0 | AN63: 0 | AO63: 0 | AQ63: 0 | AR63: 0* | AS63: 0 | AU63: 0 | AV63: 0* | AW63: 0
A64: XXX | B64: 0 | AR64: * | AV64: *
A65: EQUIPE 4 | B65: 461 | D65: 73 | E65: 0 | H65: 31 | I65: 0 | L65: 64 | M65: 0 | P65: 36 | Q65: 0 | T65: 42 | U65: 0 | X65: 35 | Y65: 0 | AB65: 31 | AC65: 0 | AF65: 20* | AG65: 0 | AJ65: 51 | AK65: 0 | AN65: 26* | AO65: 0 | AR65: 52 | AS65: 0 | AV65: 46 | AW65: 0
A66: Daniel Nahum | B66: 329 | C66: 12 | D66: 34 | E66: 0 | G66: 23 | H66: 18 | I66: 0 | K66: 5 | L66: 48 | M66: 0 | O66: 22 | P66: 19 | Q66: 0 | S66: 8 | T66: 42 | U66: 0 | W66: 19 | X66: 22 | Y66: 0 | AA66: 21 | AB66: 20 | AC66: 0 | AE66: 21 | AF66: 20* | AG66: 0 | AI66: 15 | AJ66: 28 | AK66: 0 | AM66: 16 | AN66: 26* | AO66: 0 | AQ66: 3 | AR66: 52 | AS66: 0 | AU66: 6 | AV66: 46 | AW66: 0
A67: Ivan Renault | B67: 43 | C67: 14 | D67: 30 | E67: 0 | G67: 28 | H67: 13 | I67: 0 | K67: 0 | L67: 0 | M67: 0 | O67: 0 | P67: 0 | Q67: 0 | S67: 0 | T67: 0 | U67: 0 | W67: 0 | X67: 0 | Y67: 0 | AA67: 0 | AB67: 0 | AC67: 0 | AE67: 0 | AF67: 0* | AG67: 0 | AI67: 0 | AJ67: 0 | AK67: 0 | AM67: 0 | AN67: 0* | AO67: 0 | AQ67: 0 | AR67: 0 | AS67: 0 | AU67: 0 | AV67: 0 | AW67: 0
A68: Adriano Morato | B68: 30 | C68: 34 | D68: 7* | E68: 0 | G68: 0 | H68: 0 | I68: 0 | K68: 0 | L68: 0 | M68: 0 | O68: 24 | P68: 17 | Q68: 0 | S68: 0 | T68: 0 | U68: 0 | W68: 28 | X68: 13 | Y68: 0 | AA68: 0 | AB68: 0 | AC68: 0 | AE68: 0 | AF68: 0* | AG68: 0 | AI68: 0 | AJ68: 0 | AK68: 0 | AM68: 0 | AN68: 0* | AO68: 0 | AQ68: 0 | AR68: 0 | AS68: 0 | AU68: 0 | AV68: 0 | AW68: 0
A69: Samuel Silva | B69: 59 | C69: 32 | D69: 9 | E69: 0 | G69: 0 | H69: 0 | I69: 0 | K69: 25 | L69: 16 | M69: 0 | O69: 0 | P69: 0 | Q69: 0 | S69: 0 | T69: 0 | U69: 0 | W69: 0 | X69: 0 | Y69: 0 | AA69: 30 | AB69: 11 | AC69: 0 | AE69: 0 | AF69: 0* | AG69: 0 | AI69: 18 | AJ69: 23 | AK69: 0 | AM69: 0 | AN69: 0* | AO69: 0 | AQ69: 0 | AR69: 0 | AS69: 0 | AU69: 0 | AV69: 0 | AW69: 0
A70: XXX | B70: 0 | AF70: * | AN70: *

Sheet DADOS GRAF VALOR
B1: ORDEM DE LARGADA
B2: 1 | C2: 2 | D2: 3 | E2: 4 | F2: 5 | G2: 6 | H2: 7 | I2: 8 | J2: 9 | K2: 10 | L2: 11 | M2: 12 | N2: 13 | O2: 14 | P2: 15 | Q2: 16 | R2: 17 | S2: 18 | T2: 19 | U2: 20 | V2: 21 | W2: 22 | X2: 23 | Y2: 24 | Z2: 25 | AA2: 26 | AB2: 27 | AC2: 28 | AD2: 29 | AE2: 30 | AF2: 31 | AG2: 32 | AH2: 33 | AM2: 38 | AN2: 39 | AO2: 40 | AP2: 41
A3: VOLTAS
A4: 0
A5: 1
A6: 2
A7: 3
A8: 4
A9: 5
A10: 6
A11: 7
A12: 8
A13: 9
A14: 10
A15: 11
A16: 12
A17: 13
A18: 14
A19: 15
A20: 16
A21: 17
A22: 18
A23: 19
A24: 20
A25: 21
A26: 22
A27: 23
A28: 24
A29: 25
A30: 26
A31: 27
A32: 28
A33: 29
A34: 30
A35: 31
A36: 32
A37: 33
A38: 34
A39: 35
A40: 36
A41: 37
A42: 38
A43: 39
A44: 40
A45: 41

Sheet GRAF
A1: Obs.: 1. Selecione o nome de um Piloto, 2. Com a tecla Ctrl pressionada, Selecione o seu nome e 3. Clique sobre o Gráfico (Habilite a macro) Para as demais comparações Selecione o nome do Piloto e Clique sobre o Gráfico | G1: PILOTO | H1: =L$48 -> Marcelo Clemente | I1: =M$48 -> Lincoln Gundin | J1: =A2 -> Leonardo Oliveira | M1: 00:00:01
A2: Leonardo Oliveira | G2: MÉDIA | H2: =AVERAGE(L$49:L$105) -> 00:00:50.615 | I2: =AVERAGE(M$49:M$105) -> 00:00:50.535 | J2: =AVERAGE(N$49:N$105) -> 00:00:50.564 | M2: =M1 -> 00:00:01
A3: Marcelo Clemente | G3: MAXIMA | H3: =LARGE(L$49:L$105,1) -> 00:00:54.513 | I3: =LARGE(M$49:M$105,1) -> 00:00:51.968 | J3: =LARGE(N$49:N$105,1) -> 00:00:55.326
A4: Lincoln Gundin | G4: MÍNIMA | H4: =SMALL(L$49:L$105,1) -> 00:00:50.063 | I4: =SMALL(M$49:M$105,1) -> 00:00:50.076 | J4: =SMALL(N$49:N$105,1) -> 00:00:49.946
A5: Marcelo Pereira | G5: Desvio Padrão | H5: =_xlfn.STDEV.S(L$50:L$130) -> 00:00:00.794 | I5: =_xlfn.STDEV.S(M$50:M$130) -> 00:00:00.409 | J5: =_xlfn.STDEV.S(N$50:N$130) -> 00:00:00.920
A6: Cacau Nunes | G6: TEMPO TOTAL | H6: =VLOOKUP(H1,$A$2500:$D$3000,4,FALSE) -> 00:30:26.756 | I6: =VLOOKUP(I1,$A$2500:$D$3000,4,FALSE) -> 00:30:26.557 | J6: =VLOOKUP(J1,$A$2500:$D$3000,4,FALSE) -> 00:31:00.935
A7: Cláudio Dumont
A8: Jarbas Reis
A9: Daniel Nahum
A10: Fernando Cruz
A11: Deo Alves
A12: Guilherme Alves
A13: Alexandre Melillo | J13: =SMALL(H4:J4,1)-K13 -> 00:00:46.946 | K13: 00:00:03
A14: Wesley Canuto | J14: =LARGE(H3:J3,1)+K13 -> 00:00:58.326
A15: Fernando Medeiros
A16: Daniel Santos
A17: Claudio Junqueira
A18: Wesley Bambirra
A19: Marcelo Sant'anna
A20: Raphael Reis
A21: Roberto Veloso
L48: Marcelo Clemente | M48: Lincoln Gundin | N48: Leonardo Oliveira
K49: NÚMERO VOLTAS | L49: Marcelo Clemente | M49: Lincoln Gundin | N49: Leonardo Oliveira
A50: ETAPA | B50: PILOTO | C50: NÚMERO VOLTAS | D50: KART | E50: Volta Tm | F50: velocidade Media | K50: 1 | L50: 00:00:54.513 | M50: 00:00:51.968 | N50: 00:00:55.326
A51: 12 | B51: Leonardo Oliveira | C51: 37 | D51: 138 | E51: 00:00:55.326 | F51: 51,34km/h | K51: 2 | L51: 00:00:50.927 | M51: 00:00:50.846 | N51: 00:00:50.866
A52: 12 | B52: Leonardo Oliveira | C52: 37 | D52: 138 | E52: 00:00:50.866 | F52: 55,84km/h | K52: 3 | L52: 00:00:51.015 | M52: 00:00:51.371 | N52: 00:00:51.081
A53: 12 | B53: Leonardo Oliveira | C53: 37 | D53: 138 | E53: 00:00:51.081 | F53: 55,61km/h | K53: 4 | L53: 00:00:50.338 | M53: 00:00:50.784 | N53: 00:00:51.770
A54: 12 | B54: Leonardo Oliveira | C54: 37 | D54: 138 | E54: 00:00:51.770 | F54: 54,87km/h | K54: 5 | L54: 00:00:50.900 | M54: 00:00:50.110 | N54: 00:00:50.591
A55: 12 | B55: Leonardo Oliveira | C55: 37 | D55: 138 | E55: 00:00:50.591 | F55: 56,14km/h | K55: 6 | L55: 00:00:50.570 | M55: 00:00:50.449 | N55: 00:00:50.714
A56: 12 | B56: Leonardo Oliveira | C56: 37 | D56: 138 | E56: 00:00:50.714 | F56: 56,01km/h | K56: 7 | L56: 00:00:50.465 | M56: 00:00:50.103 | N56: 00:00:50.306
A57: 12 | B57: Leonardo Oliveira | C57: 37 | D57: 138 | E57: 00:00:50.306 | F57: 56,46km/h | K57: 8 | L57: 00:00:50.407 | M57: 00:00:50.462 | N57: 00:00:51.392
A58: 12 | B58: Leonardo Oliveira | C58: 37 | D58: 138 | E58: 00:00:51.392 | F58: 55,27km/h | K58: 9 | L58: 00:00:50.252 | M58: 00:00:50.246 | N58: 00:00:50.261
A59: 12 | B59: Leonardo Oliveira | C59: 37 | D59: 138 | E59: 00:00:50.261 | F59: 56,51km/h | K59: 10 | L59: 00:00:50.097 | M59: 00:00:50.090 | N59: 00:00:50.960
A60: 12 | B60: Leonardo Oliveira | C60: 37 | D60: 138 | E60: 00:00:50.960 | F60: 55,74km/h | K60: 11 | L60: 00:00:50.273 | M60: 00:00:50.205 | N60: 00:00:50.642
A61: 12 | B61: Leonardo Oliveira | C61: 37 | D61: 138 | E61: 00:00:50.642 | F61: 56,09km/h | K61: 12 | L61: 00:00:50.290 | M61: 00:00:50.286 | N61: 00:00:50.419
A62: 12 | B62: Leonardo Oliveira | C62: 37 | D62: 138 | E62: 00:00:50.419 | F62: 56,34km/h | K62: 13 | L62: 00:00:50.288 | M62: 00:00:50.304 | N62: 00:00:50.226
A63: 12 | B63: Leonardo Oliveira | C63: 37 | D63: 138 | E63: 00:00:50.226 | F63: 56,55km/h | K63: 14 | L63: 00:00:50.281 | M63: 00:00:50.310 | N63: 00:00:50.157
A64: 12 | B64: Leonardo Oliveira | C64: 37 | D64: 138 | E64: 00:00:50.157 | F64: 56,63km/h | K64: 15 | L64: 00:00:50.194 | M64: 00:00:50.268 | N64: 00:00:50.025
A65: 12 | B65: Leonardo Oliveira | C65: 37 | D65: 138 | E65: 00:00:50.025 | F65: 56,78km/h | K65: 16 | L65: 00:00:50.267 | M65: 00:00:50.164 | N65: 00:00:50.468
A66: 12 | B66: Leonardo Oliveira | C66: 37 | D66: 138 | E66: 00:00:50.468 | F66: 56,28km/h | K66: 17 | L66: 00:00:50.202 | M66: 00:00:50.283 | N66: 00:00:50.113
A67: 12 | B67: Leonardo Oliveira | C67: 37 | D67: 138 | E67: 00:00:50.113 | F67: 56,68km/h | K67: 18 | L67: 00:00:50.324 | M67: 00:00:50.336 | N67: 00:00:50.096
A68: 12 | B68: Leonardo Oliveira | C68: 37 | D68: 138 | E68: 00:00:50.096 | F68: 56,7km/h | K68: 19 | L68: 00:00:52.521 | M68: 00:00:50.935 | N68: 00:00:50.092
A69: 12 | B69: Leonardo Oliveira | C69: 37 | D69: 138 | E69: 00:00:50.092 | F69: 56,7km/h | K69: 20 | L69: 00:00:50.553 | M69: 00:00:50.556 | N69: 00:00:49.946
A70: 12 | B70: Leonardo Oliveira | C70: 37 | D70: 138 | E70: 00:00:49.946 | F70: 56,87km/h | K70: 21 | L70: 00:00:51.071 | M70: 00:00:50.710 | N70: 00:00:50.065
A71: 12 | B71: Leonardo Oliveira | C71: 37 | D71: 138 | E71: 00:00:50.065 | F71: 56,73km/h | K71: 22 | L71: 00:00:51.268 | M71: 00:00:50.802 | N71: 00:00:50.338
A72: 12 | B72: Leonardo Oliveira | C72: 37 | D72: 138 | E72: 00:00:50.338 | F72: 56,43km/h | K72: 23 | L72: 00:00:50.243 | M72: 00:00:50.555 | N72: 00:00:49.992
A73: 12 | B73: Leonardo Oliveira | C73: 37 | D73: 138 | E73: 00:00:49.992 | F73: 56,82km/h | K73: 24 | L73: 00:00:50.293 | M73: 00:00:51.019 | N73: 00:00:50.461
A74: 12 | B74: Leonardo Oliveira | C74: 37 | D74: 138 | E74: 00:00:50.461 | F74: 56,29km/h | K74: 25 | L74: 00:00:50.331 | M74: 00:00:50.494 | N74: 00:00:50.876
A75: 12 | B75: Leonardo Oliveira | C75: 37 | D75: 138 | E75: 00:00:50.876 | F75: 55,83km/h | K75: 26 | L75: 00:00:50.317 | M75: 00:00:50.519 | N75: 00:00:50.293
A76: 12 | B76: Leonardo Oliveira | C76: 37 | D76: 138 | E76: 00:00:50.293 | F76: 56,48km/h | K76: 27 | L76: 00:00:50.605 | M76: 00:00:51.177 | N76: 00:00:51.506
A77: 12 | B77: Leonardo Oliveira | C77: 37 | D77: 138 | E77: 00:00:51.506 | F77: 55,15km/h | K77: 28 | L77: 00:00:50.356 | M77: 00:00:50.692 | N77: 00:00:50.240
A78: 12 | B78: Leonardo Oliveira | C78: 37 | D78: 138 | E78: 00:00:50.240 | F78: 56,54km/h | K78: 29 | L78: 00:00:50.337 | M78: 00:00:51.123 | N78: 00:00:50.469
A79: 12 | B79: Leonardo Oliveira | C79: 37 | D79: 138 | E79: 00:00:50.469 | F79: 56,28km/h | K79: 30 | L79: 00:00:50.328 | M79: 00:00:50.574 | N79: 00:00:50.037
A80: 12 | B80: Leonardo Oliveira | C80: 37 | D80: 138 | E80: 00:00:50.037 | F80: 56,77km/h | K80: 31 | L80: 00:00:50.210 | M80: 00:00:50.548 | N80: 00:00:50.202
A81: 12 | B81: Leonardo Oliveira | C81: 37 | D81: 138 | E81: 00:00:50.202 | F81: 56,58km/h | K81: 32 | L81: 00:00:50.924 | M81: 00:00:50.239 | N81: 00:00:50.282
A82: 12 | B82: Leonardo Oliveira | C82: 37 | D82: 138 | E82: 00:00:50.282 | F82: 56,49km/h | K82: 33 | L82: 00:00:50.063 | M82: 00:00:50.076 | N82: 00:00:50.064
A83: 12 | B83: Leonardo Oliveira | C83: 37 | D83: 138 | E83: 00:00:50.064 | F83: 56,74km/h | K83: 34 | L83: 00:00:50.376 | M83: 00:00:50.327 | N83: 00:00:50.311
A84: 12 | B84: Leonardo Oliveira | C84: 37 | D84: 138 | E84: 00:00:50.311 | F84: 56,46km/h | K84: 35 | L84: 00:00:50.524 | M84: 00:00:50.236 | N84: 00:00:50.185
A85: 12 | B85: Leonardo Oliveira | C85: 37 | D85: 138 | E85: 00:00:50.185 | F85: 56,6km/h | K85: 36 | L85: 00:00:50.474 | M85: 00:00:50.150 | N85: 00:00:49.982
A86: 12 | B86: Leonardo Oliveira | C86: 37 | D86: 138 | E86: 00:00:49.982 | F86: 56,83km/h | K86: 37 | L86: 00:00:50.374 | M86: 00:00:50.475 | N86: 00:00:50.112
A87: 12 | B87: Leonardo Oliveira | C87: 37 | D87: 138 | E87: 00:00:50.112 | F87: 56,68km/h | K87: 38
A88: 12 | B88: Marcelo Clemente | C88: 37 | D88: 130 | E88: 00:00:54.513 | F88: 52,11km/h | K88: 39
A89: 12 | B89: Marcelo Clemente | C89: 37 | D89: 130 | E89: 00:00:50.927 | F89: 55,77km/h | K89: 40
A90: 12 | B90: Marcelo Clemente | C90: 37 | D90: 130 | E90: 00:00:51.015 | F90: 55,68km/h | K90: 41
A91: 12 | B91: Marcelo Clemente | C91: 37 | D91: 130 | E91: 00:00:50.338 | F91: 56,43km/h | K91: 42
A92: 12 | B92: Marcelo Clemente | C92: 37 | D92: 130 | E92: 00:00:50.900 | F92: 55,8km/h | K92: 43
A93: 12 | B93: Marcelo Clemente | C93: 37 | D93: 130 | E93: 00:00:50.570 | F93: 56,17km/h | K93: 44
A94: 12 | B94: Marcelo Clemente | C94: 37 | D94: 130 | E94: 00:00:50.465 | F94: 56,28km/h | K94: 45
A95: 12 | B95: Marcelo Clemente | C95: 37 | D95: 130 | E95: 00:00:50.407 | F95: 56,35km/h | K95: 46
A96: 12 | B96: Marcelo Clemente | C96: 37 | D96: 130 | E96: 00:00:50.252 | F96: 56,52km/h | K96: 47
A97: 12 | B97: Marcelo Clemente | C97: 37 | D97: 130 | E97: 00:00:50.097 | F97: 56,7km/h | K97: 48
A98: 12 | B98: Marcelo Clemente | C98: 37 | D98: 130 | E98: 00:00:50.273 | F98: 56,5km/h | K98: 49
A99: 12 | B99: Marcelo Clemente | C99: 37 | D99: 130 | E99: 00:00:50.290 | F99: 56,48km/h | K99: 50
A100: 12 | B100: Marcelo Clemente | C100: 37 | D100: 130 | E100: 00:00:50.288 | F100: 56,48km/h | K100: 51
A101: 12 | B101: Marcelo Clemente | C101: 37 | D101: 130 | E101: 00:00:50.281 | F101: 56,49km/h | K101: 52
A102: 12 | B102: Marcelo Clemente | C102: 37 | D102: 130 | E102: 00:00:50.194 | F102: 56,59km/h | K102: 53
A103: 12 | B103: Marcelo Clemente | C103: 37 | D103: 130 | E103: 00:00:50.267 | F103: 56,51km/h | K103: 54
A104: 12 | B104: Marcelo Clemente | C104: 37 | D104: 130 | E104: 00:00:50.202 | F104: 56,58km/h | K104: 55
A105: 12 | B105: Marcelo Clemente | C105: 37 | D105: 130 | E105: 00:00:50.324 | F105: 56,44km/h | K105: 56
A106: 12 | B106: Marcelo Clemente | C106: 37 | D106: 130 | E106: 00:00:52.521 | F106: 54,08km/h | K106: 57
A107: 12 | B107: Marcelo Clemente | C107: 37 | D107: 130 | E107: 00:00:50.553 | F107: 56,19km/h | K107: 58
A108: 12 | B108: Marcelo Clemente | C108: 37 | D108: 130 | E108: 00:00:51.071 | F108: 55,62km/h | K108: 59
A109: 12 | B109: Marcelo Clemente | C109: 37 | D109: 130 | E109: 00:00:51.268 | F109: 55,4km/h | K109: 60
A110: 12 | B110: Marcelo Clemente | C110: 37 | D110: 130 | E110: 00:00:50.243 | F110: 56,53km/h | K110: 61
A111: 12 | B111: Marcelo Clemente | C111: 37 | D111: 130 | E111: 00:00:50.293 | F111: 56,48km/h | K111: 62
A112: 12 | B112: Marcelo Clemente | C112: 37 | D112: 130 | E112: 00:00:50.331 | F112: 56,43km/h | K112: 63
A113: 12 | B113: Marcelo Clemente | C113: 37 | D113: 130 | E113: 00:00:50.317 | F113: 56,45km/h
A114: 12 | B114: Marcelo Clemente | C114: 37 | D114: 130 | E114: 00:00:50.605 | F114: 56,13km/h
A115: 12 | B115: Marcelo Clemente | C115: 37 | D115: 130 | E115: 00:00:50.356 | F115: 56,41km/h
A116: 12 | B116: Marcelo Clemente | C116: 37 | D116: 130 | E116: 00:00:50.337 | F116: 56,43km/h
A117: 12 | B117: Marcelo Clemente | C117: 37 | D117: 130 | E117: 00:00:50.328 | F117: 56,44km/h
A118: 12 | B118: Marcelo Clemente | C118: 37 | D118: 130 | E118: 00:00:50.210 | F118: 56,57km/h
A119: 12 | B119: Marcelo Clemente | C119: 37 | D119: 130 | E119: 00:00:50.924 | F119: 55,78km/h
A120: 12 | B120: Marcelo Clemente | C120: 37 | D120: 130 | E120: 00:00:50.063 | F120: 56,74km/h
A121: 12 | B121: Marcelo Clemente | C121: 37 | D121: 130 | E121: 00:00:50.376 | F121: 56,38km/h
A122: 12 | B122: Marcelo Clemente | C122: 37 | D122: 130 | E122: 00:00:50.524 | F122: 56,22km/h
A123: 12 | B123: Marcelo Clemente | C123: 37 | D123: 130 | E123: 00:00:50.474 | F123: 56,27km/h
A124: 12 | B124: Marcelo Clemente | C124: 37 | D124: 130 | E124: 00:00:50.374 | F124: 56,39km/h
A125: 12 | B125: Lincoln Gundin | C125: 37 | D125: 111 | E125: 00:00:51.968 | F125: 54,66km/h
A126: 12 | B126: Lincoln Gundin | C126: 37 | D126: 111 | E126: 00:00:50.846 | F126: 55,86km/h
A127: 12 | B127: Lincoln Gundin | C127: 37 | D127: 111 | E127: 00:00:51.371 | F127: 55,29km/h
A128: 12 | B128: Lincoln Gundin | C128: 37 | D128: 111 | E128: 00:00:50.784 | F128: 55,93km/h
A129: 12 | B129: Lincoln Gundin | C129: 37 | D129: 111 | E129: 00:00:50.110 | F129: 56,68km/h
A130: 12 | B130: Lincoln Gundin | C130: 37 | D130: 111 | E130: 00:00:50.449 | F130: 56,3km/h
A131: 12 | B131: Lincoln Gundin | C131: 37 | D131: 111 | E131: 00:00:50.103 | F131: 56,69km/h
A132: 12 | B132: Lincoln Gundin | C132: 37 | D132: 111 | E132: 00:00:50.462 | F132: 56,29km/h
A133: 12 | B133: Lincoln Gundin | C133: 37 | D133: 111 | E133: 00:00:50.246 | F133: 56,53km/h
A134: 12 | B134: Lincoln Gundin | C134: 37 | D134: 111 | E134: 00:00:50.090 | F134: 56,71km/h
A135: 12 | B135: Lincoln Gundin | C135: 37 | D135: 111 | E135: 00:00:50.205 | F135: 56,58km/h
A136: 12 | B136: Lincoln Gundin | C136: 37 | D136: 111 | E136: 00:00:50.286 | F136: 56,48km/h
A137: 12 | B137: Lincoln Gundin | C137: 37 | D137: 111 | E137: 00:00:50.304 | F137: 56,46km/h
A138: 12 | B138: Lincoln Gundin | C138: 37 | D138: 111 | E138: 00:00:50.310 | F138: 56,46km/h
A139: 12 | B139: Lincoln Gundin | C139: 37 | D139: 111 | E139: 00:00:50.268 | F139: 56,51km/h
A140: 12 | B140: Lincoln Gundin | C140: 37 | D140: 111 | E140: 00:00:50.164 | F140: 56,62km/h
A141: 12 | B141: Lincoln Gundin | C141: 37 | D141: 111 | E141: 00:00:50.283 | F141: 56,49km/h
A142: 12 | B142: Lincoln Gundin | C142: 37 | D142: 111 | E142: 00:00:50.336 | F142: 56,43km/h
A143: 12 | B143: Lincoln Gundin | C143: 37 | D143: 111 | E143: 00:00:50.935 | F143: 55,77km/h
A144: 12 | B144: Lincoln Gundin | C144: 37 | D144: 111 | E144: 00:00:50.556 | F144: 56,18km/h
A145: 12 | B145: Lincoln Gundin | C145: 37 | D145: 111 | E145: 00:00:50.710 | F145: 56,01km/h
A146: 12 | B146: Lincoln Gundin | C146: 37 | D146: 111 | E146: 00:00:50.802 | F146: 55,91km/h
A147: 12 | B147: Lincoln Gundin | C147: 37 | D147: 111 | E147: 00:00:50.555 | F147: 56,18km/h
A148: 12 | B148: Lincoln Gundin | C148: 37 | D148: 111 | E148: 00:00:51.019 | F148: 55,67km/h
A149: 12 | B149: Lincoln Gundin | C149: 37 | D149: 111 | E149: 00:00:50.494 | F149: 56,25km/h
A150: 12 | B150: Lincoln Gundin | C150: 37 | D150: 111 | E150: 00:00:50.519 | F150: 56,22km/h
A151: 12 | B151: Lincoln Gundin | C151: 37 | D151: 111 | E151: 00:00:51.177 | F151: 55,5km/h
A152: 12 | B152: Lincoln Gundin | C152: 37 | D152: 111 | E152: 00:00:50.692 | F152: 56,03km/h
A153: 12 | B153: Lincoln Gundin | C153: 37 | D153: 111 | E153: 00:00:51.123 | F153: 55,56km/h
A154: 12 | B154: Lincoln Gundin | C154: 37 | D154: 111 | E154: 00:00:50.574 | F154: 56,16km/h
A155: 12 | B155: Lincoln Gundin | C155: 37 | D155: 111 | E155: 00:00:50.548 | F155: 56,19km/h
A156: 12 | B156: Lincoln Gundin | C156: 37 | D156: 111 | E156: 00:00:50.239 | F156: 56,54km/h
A157: 12 | B157: Lincoln Gundin | C157: 37 | D157: 111 | E157: 00:00:50.076 | F157: 56,72km/h
A158: 12 | B158: Lincoln Gundin | C158: 37 | D158: 111 | E158: 00:00:50.327 | F158: 56,44km/h
A159: 12 | B159: Lincoln Gundin | C159: 37 | D159: 111 | E159: 00:00:50.236 | F159: 56,54km/h
A160: 12 | B160: Lincoln Gundin | C160: 37 | D160: 111 | E160: 00:00:50.150 | F160: 56,64km/h
A161: 12 | B161: Lincoln Gundin | C161: 37 | D161: 111 | E161: 00:00:50.475 | F161: 56,27km/h
A162: 12 | B162: Marcelo Pereira | C162: 37 | D162: 122 | E162: 00:00:51.822 | F162: 54,81km/h
A163: 12 | B163: Marcelo Pereira | C163: 37 | D163: 122 | E163: 00:00:50.823 | F163: 55,89km/h
A164: 12 | B164: Marcelo Pereira | C164: 37 | D164: 122 | E164: 00:00:50.953 | F164: 55,75km/h
A165: 12 | B165: Marcelo Pereira | C165: 37 | D165: 122 | E165: 00:00:50.385 | F165: 56,37km/h
A166: 12 | B166: Marcelo Pereira | C166: 37 | D166: 122 | E166: 00:00:50.264 | F166: 56,51km/h
A167: 12 | B167: Marcelo Pereira | C167: 37 | D167: 122 | E167: 00:00:50.048 | F167: 56,75km/h
A168: 12 | B168: Marcelo Pereira | C168: 37 | D168: 122 | E168: 00:00:50.139 | F168: 56,65km/h
A169: 12 | B169: Marcelo Pereira | C169: 37 | D169: 122 | E169: 00:00:50.307 | F169: 56,46km/h
A170: 12 | B170: Marcelo Pereira | C170: 37 | D170: 122 | E170: 00:00:50.235 | F170: 56,54km/h
A171: 12 | B171: Marcelo Pereira | C171: 37 | D171: 122 | E171: 00:00:50.330 | F171: 56,44km/h
A172: 12 | B172: Marcelo Pereira | C172: 37 | D172: 122 | E172: 00:00:50.417 | F172: 56,34km/h
A173: 12 | B173: Marcelo Pereira | C173: 37 | D173: 122 | E173: 00:00:50.337 | F173: 56,43km/h
A174: 12 | B174: Marcelo Pereira | C174: 37 | D174: 122 | E174: 00:00:50.335 | F174: 56,43km/h
A175: 12 | B175: Marcelo Pereira | C175: 37 | D175: 122 | E175: 00:00:50.391 | F175: 56,37km/h
A176: 12 | B176: Marcelo Pereira | C176: 37 | D176: 122 | E176: 00:00:50.744 | F176: 55,98km/h
A177: 12 | B177: Marcelo Pereira | C177: 37 | D177: 122 | E177: 00:00:50.718 | F177: 56km/h
A178: 12 | B178: Marcelo Pereira | C178: 37 | D178: 122 | E178: 00:00:50.552 | F178: 56,19km/h
A179: 12 | B179: Marcelo Pereira | C179: 37 | D179: 122 | E179: 00:00:50.607 | F179: 56,13km/h
A180: 12 | B180: Marcelo Pereira | C180: 37 | D180: 122 | E180: 00:00:52.407 | F180: 54,2km/h
A181: 12 | B181: Marcelo Pereira | C181: 37 | D181: 122 | E181: 00:00:50.465 | F181: 56,28km/h
A182: 12 | B182: Marcelo Pereira | C182: 37 | D182: 122 | E182: 00:00:50.697 | F182: 56,03km/h
A183: 12 | B183: Marcelo Pereira | C183: 37 | D183: 122 | E183: 00:00:50.327 | F183: 56,44km/h
A184: 12 | B184: Marcelo Pereira | C184: 37 | D184: 122 | E184: 00:00:50.447 | F184: 56,3km/h
A185: 12 | B185: Marcelo Pereira | C185: 37 | D185: 122 | E185: 00:00:50.452 | F185: 56,3km/h
A186: 12 | B186: Marcelo Pereira | C186: 37 | D186: 122 | E186: 00:00:50.566 | F186: 56,17km/h
A187: 12 | B187: Marcelo Pereira | C187: 37 | D187: 122 | E187: 00:00:50.560 | F187: 56,18km/h
A188: 12 | B188: Marcelo Pereira | C188: 37 | D188: 122 | E188: 00:00:51.771 | F188: 54,86km/h
A189: 12 | B189: Marcelo Pereira | C189: 37 | D189: 122 | E189: 00:00:50.910 | F189: 55,79km/h
A190: 12 | B190: Marcelo Pereira | C190: 37 | D190: 122 | E190: 00:00:50.989 | F190: 55,71km/h
A191: 12 | B191: Marcelo Pereira | C191: 37 | D191: 122 | E191: 00:00:51.594 | F191: 55,05km/h
A192: 12 | B192: Marcelo Pereira | C192: 37 | D192: 122 | E192: 00:00:50.590 | F192: 56,15km/h
A193: 12 | B193: Marcelo Pereira | C193: 37 | D193: 122 | E193: 00:00:50.325 | F193: 56,44km/h
A194: 12 | B194: Marcelo Pereira | C194: 37 | D194: 122 | E194: 00:00:50.163 | F194: 56,62km/h
A195: 12 | B195: Marcelo Pereira | C195: 37 | D195: 122 | E195: 00:00:50.279 | F195: 56,49km/h
A196: 12 | B196: Marcelo Pereira | C196: 37 | D196: 122 | E196: 00:00:50.062 | F196: 56,74km/h
A197: 12 | B197: Marcelo Pereira | C197: 37 | D197: 122 | E197: 00:00:50.187 | F197: 56,6km/h
A198: 12 | B198: Marcelo Pereira | C198: 37 | D198: 122 | E198: 00:00:50.021 | F198: 56,78km/h
A199: 12 | B199: Cacau Nunes | C199: 37 | D199: 135 | E199: 00:00:53.007 | F199: 53,59km/h
A200: 12 | B200: Cacau Nunes | C200: 37 | D200: 135 | E200: 00:00:50.867 | F200: 55,84km/h
A201: 12 | B201: Cacau Nunes | C201: 37 | D201: 135 | E201: 00:00:50.460 | F201: 56,29km/h
A202: 12 | B202: Cacau Nunes | C202: 37 | D202: 135 | E202: 00:00:51.447 | F202: 55,21km/h
A203: 12 | B203: Cacau Nunes | C203: 37 | D203: 135 | E203: 00:00:50.424 | F203: 56,33km/h
A204: 12 | B204: Cacau Nunes | C204: 37 | D204: 135 | E204: 00:00:50.693 | F204: 56,03km/h
A205: 12 | B205: Cacau Nunes | C205: 37 | D205: 135 | E205: 00:00:50.425 | F205: 56,33km/h
A206: 12 | B206: Cacau Nunes | C206: 37 | D206: 135 | E206: 00:00:51.141 | F206: 55,54km/h
A207: 12 | B207: Cacau Nunes | C207: 37 | D207: 135 | E207: 00:00:50.580 | F207: 56,16km/h
A208: 12 | B208: Cacau Nunes | C208: 37 | D208: 135 | E208: 00:00:51.185 | F208: 55,49km/h
A209: 12 | B209: Cacau Nunes | C209: 37 | D209: 135 | E209: 00:00:50.944 | F209: 55,76km/h
A210: 12 | B210: Cacau Nunes | C210: 37 | D210: 135 | E210: 00:00:50.187 | F210: 56,6km/h
A211: 12 | B211: Cacau Nunes | C211: 37 | D211: 135 | E211: 00:00:50.280 | F211: 56,49km/h
A212: 12 | B212: Cacau Nunes | C212: 37 | D212: 135 | E212: 00:00:50.002 | F212: 56,81km/h
A213: 12 | B213: Cacau Nunes | C213: 37 | D213: 135 | E213: 00:00:50.050 | F213: 56,75km/h
A214: 12 | B214: Cacau Nunes | C214: 37 | D214: 135 | E214: 00:00:50.414 | F214: 56,34km/h
A215: 12 | B215: Cacau Nunes | C215: 37 | D215: 135 | E215: 00:00:50.228 | F215: 56,55km/h
A216: 12 | B216: Cacau Nunes | C216: 37 | D216: 135 | E216: 00:00:50.104 | F216: 56,69km/h
A217: 12 | B217: Cacau Nunes | C217: 37 | D217: 135 | E217: 00:00:50.077 | F217: 56,72km/h
A218: 12 | B218: Cacau Nunes | C218: 37 | D218: 135 | E218: 00:00:50.013 | F218: 56,79km/h
A219: 12 | B219: Cacau Nunes | C219: 37 | D219: 135 | E219: 00:00:50.017 | F219: 56,79km/h
A220: 12 | B220: Cacau Nunes | C220: 37 | D220: 135 | E220: 00:00:50.617 | F220: 56,12km/h
A221: 12 | B221: Cacau Nunes | C221: 37 | D221: 135 | E221: 00:00:49.904 | F221: 56,92km/h
A222: 12 | B222: Cacau Nunes | C222: 37 | D222: 135 | E222: 00:00:50.232 | F222: 56,55km/h
A223: 12 | B223: Cacau Nunes | C223: 37 | D223: 135 | E223: 00:00:50.253 | F223: 56,52km/h
A224: 12 | B224: Cacau Nunes | C224: 37 | D224: 135 | E224: 00:00:50.589 | F224: 56,15km/h
A225: 12 | B225: Cacau Nunes | C225: 37 | D225: 135 | E225: 00:00:52.956 | F225: 53,64km/h
A226: 12 | B226: Cacau Nunes | C226: 37 | D226: 135 | E226: 00:00:49.790 | F226: 57,05km/h
... 632 more rows

Sheet ULTRAPASSAGENS
A1: ULTRAPASSAGENS
A2: ETAPA | B2: PILOTO | C2: ULTRAPASSAGENS | F2: Rótulos de Linha | G2: Soma de ULTRAPASSAGENS
F3: (vazio)
F4: Total Geral

Sheet VOLTAS EM PRIMEIRO
A1: VOLTAS EM PRIMEIRO
A2: ETAPA | B2: PILOTO | C2: VOLTA | D2: KART | E2: Volta Tm | F2: velocidade Media
I3: Rótulos de Linha | J3: Contagem de PILOTO
I4: (vazio)
I5: Total Geral

Sheet DEZ MELHORES VOLTAS POR ETA
A1: DEZ MELHORES VOLTAS POR ETAPA
A2: ETAPA | B2: PILOTO | C2: NÚMERO VOLTAS | D2: KART | E2: Volta Tm | F2: velocidade Media | G2: PISTA
I3: Rótulos de Linha | J3: Contagem de PILOTO | N3: Rótulos de Linha | O3: Contagem de KART
I4: (vazio) | N4: (vazio)
I5: Total Geral | N5: (vazio)
N6: Total Geral

Sheet Posição x Pontos
H1: Posição | I1: Pontos
H2: 1 | I2: 45
H3: 2 | I3: 40
H4: 3 | I4: 37
H5: 4 | I5: 35
H6: 5 | I6: 33
H7: 6 | I7: 31
H8: 7 | I8: 29
H9: 8 | I9: 28
H10: 9 | I10: 27
H11: 10 | I11: 26
H12: 11 | I12: 25
H13: 12 | I13: 24
H14: 13 | I14: 23
H15: 14 | I15: 22
H16: 15 | I16: 21
H17: 16 | I17: 20
H18: 17 | I18: 19
H19: 18 | I19: 18
H20: 19 | I20: 17
H21: 20 | I21: 16
H22: 21 | I22: 15
H23: 22 | I23: 14
H24: 23 | I24: 13
H25: 24 | I25: 12
H26: 25 | I26: 11
H27: 26 | I27: 10
H28: 27 | I28: 9
H29: 28 | I29: 8
H30: 29 | I30: 7
H31: 30 | I31: 6
H32: 31 | I32: 5
H33: 32 | I33: 4
H34: 33 | I34: 3
H35: 34 | I35: 2
H36: 35 | I36: 1
H37: 36 | I37: 1
